﻿Operation number;Beneficiary name;Operation name;Operation summary;Funds;Operation start date;Operation end date;Total amount programmed;Amount co-financing European Union;Union co-financing rate (%);Project location;Project territory;Country;Name of category of intervention for the operation;Date of last update
Numéro opération;Nom du bénéficiaire;Nom de l'opération;Résumé de l'opération;Fonds;Date de début de l'opération;Date de fin de l'opération;Montant total programmé;Montant UE;Taux de cofinancement UE (%);Localisation du projet;Territoire du projet;Pays;Catégorie d'intervention dont relève l'opération;Date dernière mise à jour
14310;CIREF-CENTRE INTERREGIONAL RECHERCHE ET EXPERIMENTATIONDE LA FRAISE;QUALICHARLOTTE;;FEDER;01/07/2015;30/06/2019;550 000,00;220 000,00;40,00%;24140 Douville;Aquitain;France;061 Activités de recherche et d’innovation dans les centres de recherche privés, y compris la mise en réseau;22/02/2024
15310;AGROTEC;Construction d'une plateforme agro-industrielle du futur pour le secteur des fruits et légumes;;FEDER;01/01/2015;30/06/2016;1 276 546,00;191 482,00;15,00%;47310 Estillac;Aquitain;France;059 Infrastructures de recherche et d’innovation (privées, y compris les parcs scientifiques);22/02/2024
17010;ASS REG DEVELOP INDUSTRIES ALIMENTAIRE ARDIA;Agroveille 2015;;FEDER;01/01/2015;31/12/2015;97 915,63;48 891,40;49,93%;33400 Talence;Aquitain;France;066 Services d'appui avancé aux PME et groupes de PME (y compris services de gestion, de commercialisation et de conception);22/02/2024
17810;ASSOCIATION MIGADO;Programme 2015 de restauration des poissons migrateurs Dordogne et Garonne en Aquitaine;;FEDER;15/09/2014;15/06/2016;516 916,00;194 677,00;37,66%;47520 Passage;Aquitain;France;085 Protection et amélioration de la biodiversité, protection de la nature et infrastructure verte;22/02/2024
21510;ASSOCIATION MIGADO;Conservation du stock d'esturgeons européens, animation du Plan National d'Action - 2015;;FEDER;15/09/2014;15/06/2016;498 460,00;89 159,00;17,89%;47520 Passage;Aquitain;France;085 Protection et amélioration de la biodiversité, protection de la nature et infrastructure verte;22/02/2024
22310;GRAINE AQUITAINE;Programme régional 2015-2016 d'éducation à la biodiversité et à la transition écologique;;FEDER;01/01/2015;31/03/2016;145 186,00;72 400,00;49,87%;33830 Belin-Béliet;Aquitain;France;085 Protection et amélioration de la biodiversité, protection de la nature et infrastructure verte;22/02/2024
23710;Centre Information Jeunesse Aquitaine;L'information au service de l'insertion;;FSE;01/01/2014;31/12/2014;297 897,09;134 246,09;45,06%;33000 BORDEAUX;Aquitain;France;117 Amélioration de l'égalité d'accès à l'apprentissage tout au long de la vie pour toutes les catégories d'âges dans un cadre formel,...;22/02/2024
25110;AGROPOLE SERVICES;Accompagnement des entreprises 2015;;FEDER;01/01/2015;31/12/2015;241 000,00;100 000,00;41,49%;47310 Estillac;Aquitain;France;067 Développement commercial des PME, soutien à l’esprit d’entreprise et à l’incubation (y compris le soutien aux entreprises issues de l'essaimage);22/02/2024
26810;DEPARTEMENT DE LA DORDOGNE;Sanctuarisation de la colline de Lascaux: aménagement du Centre International de l'Art Pariétal;;FEDER;01/01/2014;30/06/2016;9 555 078,90;7 644 062,92;80,00%;24000 Périgueux;Aquitain;France;094 Protection, développement et promotion des actifs culturels et patrimoniaux publics;22/02/2024
26910;MEDOC ENERGIES;Création d'une unité de méthanisation à Hourtin;;FEDER;01/03/2015;01/06/2017;10 107 868,00;871 956,00;8,63%;33990 Hourtin;Aquitain;France;011 Énergies renouvelables: énergie de biomasse;22/02/2024
27210;AKKA INGENIERIE PRODUIT;Développement d'outils de formation multimedia pour la géothermie profonde;L'opération visée par la demande de financement consiste en la conception d'un simulateur et d'un Learning Management System ou LMS (modules de formation numérique) dédié à la géothermie profonde.;FEDER;01/01/2015;30/03/2018;1 169 410,35;584 705,17;50,00%;64000 PAU;Aquitain;France;012 Autres types d’énergies renouvelables (y compris l’énergie hydroélectrique, géothermique et marine) et intégration des énergies renouvelables;22/02/2024
27410;Chambre de Commerce et d'Industrie de Région Nouvelle-Aquitaine -;Développement de l'alternance 2015 en Aquitaine;;FSE;01/01/2015;31/12/2015;444 641,00;222 320,00;50,00%;33000 BORDEAUX;Aquitain;France;117 Amélioration de l'égalité d'accès à l'apprentissage tout au long de la vie pour toutes les catégories d'âges dans un cadre formel,...;22/02/2024
27610;ADORA;LES RENDEZ-VOUS PRO;;FSE;01/01/2014;31/12/2014;128 152,00;9 457,00;7,38%;33000 Bordeaux;Aquitain;France;117 Amélioration de l'égalité d'accès à l'apprentissage tout au long de la vie pour toutes les catégories d'âges dans un cadre formel,...;22/02/2024
27810;ASS CLIMATOLOGIQUE  MOYENNE-GARONNE ET SUD-OUEST;Projet de recherche collaborative PRECIEL;;FEDER;27/11/2014;30/06/2020;325 000,00;195 000,00;60,00%;47310 ESTILLAC;Aquitain;France;064 Processus de recherche et d’innovation dans les PME (y compris systèmes de bons, processus, conception, service et innovation sociale);22/02/2024
27910;Région Nouvelle-Aquitaine;Concours des Olympiades des Métiers en Aquitaine 2016, 2017, 2018;;FSE;06/10/2014;06/10/2018;5 730 450,11;2 865 225,05;50,00%;33063 Bordeaux;Aquitain;France;117 Amélioration de l'égalité d'accès à l'apprentissage tout au long de la vie pour toutes les catégories d'âges dans un cadre formel,...;22/02/2024
28110;INSTITUT NATIONAL DE RECHERCHE INFORMATIQUE ET EN AUTOMATIQUE - INRIA;POPPY EDUCATION;;FEDER;01/01/2014;30/04/2018;996 526,59;498 020,16;49,98%;33400 Talence;Aquitain;France;082 Services et applications TIC pour les PME (y compris le commerce électronique, le e-Business et les processus d’entreprise en réseau), les laboratoires vivants, les entrepreneurs web et les start-ups en matière de TIC;22/02/2024
28210;BORDEAUX GIRONDE INVESTISSEMENT;Programme d'actions 2015 - Accueil d'investisseurs en Gironde;;FEDER;01/01/2015;31/12/2015;2 272 039,00;530 000,00;23,33%;33000 Bordeaux;Aquitain;France;066 Services d'appui avancé aux PME et groupes de PME (y compris services de gestion, de commercialisation et de conception);22/02/2024
28710;CHAMBRE DE METIERS ET DE L ARTISANAT D E LA REGION AQUITAINE - CMARA;Développement de l'alternance en Aquitaine 2015;;FSE;01/01/2015;31/12/2015;425 132,00;212 566,00;50,00%;33000 Bordeaux;Aquitain;France;117 Amélioration de l'égalité d'accès à l'apprentissage tout au long de la vie pour toutes les catégories d'âges dans un cadre formel,...;22/02/2024
28810;CHAMBRE RGLE AGRIC AQUITAINE; Développement de l'alternance en Aquitaine 2015;;FSE;01/01/2015;31/12/2015;94 907,38;47 453,69;50,00%;87060 LIMOGES CEDEX 2;Aquitain;France;117 Amélioration de l'égalité d'accès à l'apprentissage tout au long de la vie pour toutes les catégories d'âges dans un cadre formel,...;22/02/2024
28910;INVENIO;OPTIFRAISE;;FEDER;01/02/2015;31/12/2018;335 888,55;132 710,84;39,51%;47252 Sainte-Livrade-sur-Lot;Aquitain;France;061 Activités de recherche et d’innovation dans les centres de recherche privés, y compris la mise en réseau;22/02/2024
29010;LES TRUITES DE LA CÔTE D ARGENT;"Projet R&amp;D aquaculture en circuits fermés en Aquitaine";;FEDER;19/01/2015;31/12/2017;1 778 990,00;220 000,00;12,37%;40120 Roquefort;Aquitain;France;002 Processus de recherche et d’innovation dans les grandes entreprises;22/02/2024
29210;ASS POUR DROIT A L INITIATIVE ECONOMIQ UE - ADIE;Accompagnement à la création d'entreprises par un public en difficulté - 2015;;FEDER;01/01/2015;31/12/2015;654 924,00;186 454,00;28,47%;33249 Lormont;Aquitain;France;067 Développement commercial des PME, soutien à l’esprit d’entreprise et à l’incubation (y compris le soutien aux entreprises issues de l'essaimage);22/02/2024
29310;CHAMBRE DE COMMERCE ET D'INDUSTRIE DE DORDOGNE;Volet 1 Axe 2 projet 2 Favoriser l'emploi des apprenti(e)s;;FSE;01/01/2015;30/06/2016;83 844,00;41 922,00;50,00%;24660 Coulounieix-Chamiers;Aquitain;France;117 Amélioration de l'égalité d'accès à l'apprentissage tout au long de la vie pour toutes les catégories d'âges dans un cadre formel,...;22/02/2024
29410;ASS FORMATION EDUC PERMANENT TIVOLI AFEPT;Ecole 2ème Chance Bordeaux Métropole Aquitaine;;IEJ;01/09/2014;31/12/2017;1 609 364,33;907 590,88;56,39%;33000 BORDEAUX;Aquitain;France;103 Intégration durable sur le marché du travail des jeunes, en particulier ceux qui sont sans emploi et qui ne suivent ni enseignement ni formation, en mettant notamment en oeuvre la garantie pour la jeunesse;22/02/2024
29510;INVENIO;BIO CASTANEA;;FEDER;01/06/2015;31/12/2018;345 476,57;138 190,63;40,00%;33140 Villenave-d'Ornon;Aquitain;France;061 Activités de recherche et d’innovation dans les centres de recherche privés, y compris la mise en réseau;22/02/2024
29710;FRANCE ACTIVE AQUITAINE;Cap'Amorçage - Animation, expertise, accompagnement des microprojets associatifs et coopératifs;;FSE;01/01/2014;31/12/2016;298 213,00;149 106,00;50,00%;33000 BORDEAUX;Aquitain;France;104 Emploi indépendant, entrepreneuriat et création d'entreprises, y compris les micro, petites et moyennes entreprises innovantes;22/02/2024
29910;INSTITUT BERGONIE;Programme Optique Physique Radiothérapie  en Aquitaine (POPRA);;FEDER;01/09/2014;31/12/2017;1 314 159,19;328 539,79;25,00%;33000 Bordeaux;Aquitain;France;061 Activités de recherche et d’innovation dans les centres de recherche privés, y compris la mise en réseau;22/02/2024
30010;HJCPACK;Réimplantation industrielle de la société ADAM;;FEDER;01/07/2014;30/06/2016;3 900 000,00;585 000,00;15,00%;33417 Sainte-Hélène;Aquitain;France;001 Investissement productif générique dans les petites et moyennes entreprises («PME»);22/02/2024
30410;EXOES;Projet EVE-TRUCK - Développement d'un système de récupération de chaleur à l'échappement des camions;;FEDER;01/09/2014;31/03/2017;1 999 709,00;300 000,00;15,00%;33170 Gradignan;Aquitain;France;064 Processus de recherche et d’innovation dans les PME (y compris systèmes de bons, processus, conception, service et innovation sociale);22/02/2024
30710;COMITE INSERTION PERSONNES HANDICAPEES;Accompagnement VAE global, sécurisé et personnalisé pour des personnes handicapées;;FSE;01/01/2015;31/12/2015;97 642,05;48 548,69;49,72%;64000 Pau;Aquitain;France;117 Amélioration de l'égalité d'accès à l'apprentissage tout au long de la vie pour toutes les catégories d'âges dans un cadre formel,...;22/02/2024
30910;MISSION LOCALE TECHNOWEST;ESPACE METIERS AQUITAINE TECHNOWEST;;FSE;01/01/2015;31/12/2016;121 143,90;60 571,95;50,00%;33700 Mérignac;Aquitain;France;117 Amélioration de l'égalité d'accès à l'apprentissage tout au long de la vie pour toutes les catégories d'âges dans un cadre formel,...;22/02/2024
31110;CENTRE DE GESTION DE LA FONCTION PUBLIQUE TERRITORIALE DES LANDES;Elaboration de Plans Communaux de Sauvegarde (PCS);;FEDER;01/01/2015;31/12/2018;701 362,00;412 903,00;58,87%;40000 Mont-de-Marsan;Aquitain;France;087 Mesures d'adaptation au changement climatique, prévention et gestion des risques liés au climat, comme l’érosion, les incendies, les inondations,...;22/02/2024
31310;BGE SUD OUEST;Couveuses BGE Dordogne, Gironde et Lot-et-Garonne : tester et réussir son projet de création d'entre;;FEDER;01/01/2015;31/12/2015;236 835,00;91 785,00;38,75%;33000 Bordeaux;Aquitain;France;067 Développement commercial des PME, soutien à l’esprit d’entreprise et à l’incubation (y compris le soutien aux entreprises issues de l'essaimage);22/02/2024
31410;SERMA TECHNOLOGIES;Projet E-FAN - Développement d'un avion électrique / Volet SERMA;;FEDER;01/01/2015;30/06/2016;684 345,19;273 673,18;39,99%;33600 Pessac;Aquitain;France;002 Processus de recherche et d’innovation dans les grandes entreprises;22/02/2024
31510;AQUITAINE CHIMIE DURABLE - ACD;"PROGRAMME D'ANIMATION ""INNOVATION"" - 2015/2016";;FEDER;01/01/2015;31/12/2016;373 080,47;298 464,37;80,00%;33520 Bruges;Aquitain;France;063 Soutien aux grappes et réseaux d’entreprises, principalement au profit des PME;22/02/2024
32310;MISSION LOCALE TECHNOWEST;Fabrique à Projets - Dispositif d'Accompagnement à la Création d'Entreprises;;FSE;01/01/2015;31/12/2016;115 490,00;57 745,00;50,00%;33700 Mérignac;Aquitain;France;117 Amélioration de l'égalité d'accès à l'apprentissage tout au long de la vie pour toutes les catégories d'âges dans un cadre formel,...;22/02/2024
32410;INSUP AQUITAINE - BORDEAUX;L'Art d'Agir / PROCCREA;;IEJ;01/09/2014;05/07/2015;120 590,45;52 672,22;43,68%;33119 Cenon;Aquitain;France;103 Intégration durable sur le marché du travail des jeunes, en particulier ceux qui sont sans emploi et qui ne suivent ni enseignement ni formation, en mettant notamment en oeuvre la garantie pour la jeunesse;22/02/2024
32810;COMITE LIAISON ACTEURS DE LA PROMOTION DANS SUD-OUEST - CLAP SUD-OUEST;"Plates formes accueil évaluation linguistique &amp; suivi  s/ Bx intra-muros rive droite  &amp; rive gauche";;FSE;01/01/2014;31/12/2014;318 562,00;148 062,00;46,48%;33063 Bordeaux;Aquitain;France;117 Amélioration de l'égalité d'accès à l'apprentissage tout au long de la vie pour toutes les catégories d'âges dans un cadre formel,...;22/02/2024
33010;LES 3 A;Les 3â - bureau d'accompagnement culture;;FSE;01/01/2015;31/12/2015;83 574,12;19 205,32;22,98%;33130 BEGLES;Aquitain;France;104 Emploi indépendant, entrepreneuriat et création d'entreprises, y compris les micro, petites et moyennes entreprises innovantes;22/02/2024
33110;COMMUNAUTÉ D AGGLOMÉRATION DU LIBOURNAIS - CALI;Elaboration d'une Stratégie Urbaine Intégrée;;FEDER;01/07/2014;30/06/2015;43 496,00;13 049,00;30,00%;33500 Billaux;Aquitain;France;097 Initiatives de développement local menées par les acteurs locaux dans les zones urbaines et rurales;22/02/2024
33210;LPO GUSTAVE EIFFEL - CFA EIFFEL FERBOS;CFA GustaveEiffel - SRA - V1 - Poursuite des expérimentations;;FSE;01/01/2015;30/06/2016;111 304,00;55 652,00;50,00%;33000 Bordeaux;Aquitain;France;117 Amélioration de l'égalité d'accès à l'apprentissage tout au long de la vie pour toutes les catégories d'âges dans un cadre formel,...;22/02/2024
33310;MAISON DE LA PROMOTION SOCIALE;TRAVersE (Tremplin de Remobilisation Active vers l'Emploi);;FSE;01/03/2015;29/02/2016;49 929,96;21 750,86;43,56%;33063 Bordeaux;Aquitain;France;117 Amélioration de l'égalité d'accès à l'apprentissage tout au long de la vie pour toutes les catégories d'âges dans un cadre formel,...;22/02/2024
33810;CMNAUTE D'AGGLO DU GRAND DAX;Elaboration de la stratégie urbaine intégrée;;FEDER;01/07/2014;30/06/2015;53 677,00;26 838,00;50,00%;40100 Dax;Aquitain;France;097 Initiatives de développement local menées par les acteurs locaux dans les zones urbaines et rurales;22/02/2024
34210;LP HAROUN TAZIEFF- CFA BOIS ET HABITAT;AMELIORER LES SERVICES DU CFA;;FSE;01/01/2015;30/06/2016;12 718,60;6 359,30;50,00%;40990 Mées;Aquitain;France;117 Amélioration de l'égalité d'accès à l'apprentissage tout au long de la vie pour toutes les catégories d'âges dans un cadre formel,...;22/02/2024
34310;LEGTA HECTOR SERRES - CFAA;CFAA40-SRA-V1-P1-Amélioration du système de formation et d'orientation;;FSE;01/01/2015;30/06/2016;41 774,00;20 887,00;50,00%;40180 Oeyreluy;Aquitain;France;117 Amélioration de l'égalité d'accès à l'apprentissage tout au long de la vie pour toutes les catégories d'âges dans un cadre formel,...;22/02/2024
34410;DESTINATION;INVESTISSEMENTS MATERIELS et LOGICIELS - DESTINATION - Bordeaux;;FEDER;01/07/2014;31/12/2015;2 312 482,32;427 967,37;18,51%;33063 Bordeaux;Aquitain;France;001 Investissement productif générique dans les petites et moyennes entreprises («PME»);22/02/2024
34510;INSTITUT EDUCATION PERMANENTE AQUITAIN E - INSTEP AQUITAINE;De la Création à la Confection - Du Tissage à la Couture-2015;;FSE;26/01/2015;28/12/2015;60 970,14;30 233,71;49,59%;64445 Pau;Aquitain;France;117 Amélioration de l'égalité d'accès à l'apprentissage tout au long de la vie pour toutes les catégories d'âges dans un cadre formel,...;22/02/2024
34610;SAS LES ELEVEURS GIRONDINS ABATTAGE;Investissements matériels et immobiliers : Création d'un outil d'abattage de proximité;;FEDER;27/08/2014;31/12/2019;3 190 226,00;500 000,00;15,67%;33039 Bègles;Aquitain;France;001 Investissement productif générique dans les petites et moyennes entreprises («PME»);22/02/2024
34810;FEDERATION REGIONALE MAISONS FAMILIALES RURALES AQUITAINE;CFA MFR - SRA - V1 - P1 - Mieux prendre en considération le candidat, l'apprenti et l'entreprise...;;FSE;01/01/2015;30/06/2016;17 074,89;8 537,44;50,00%;33370 Loupes;Aquitain;France;117 Amélioration de l'égalité d'accès à l'apprentissage tout au long de la vie pour toutes les catégories d'âges dans un cadre formel,...;22/02/2024
34910;CHAMBRE DE COMMERCE ET D'INDUSTRIE DE DORDOGNE;Volet 1 Axe 1 Projet 1 : Stratégie du CFA CCI 24;;FSE;01/01/2015;30/06/2016;83 586,00;41 793,00;50,00%;24660 Coulounieix-Chamiers;Aquitain;France;117 Amélioration de l'égalité d'accès à l'apprentissage tout au long de la vie pour toutes les catégories d'âges dans un cadre formel,...;22/02/2024
35010;CMNAUTE AGGLO VAL DE GARONNE AGGLO;Ingénierie pour l'élaboration de la stratégie urbaine Intégrée Val de Garonne Agglomération;;FEDER;01/07/2014;30/06/2015;97 920,00;40 800,00;41,67%;47200 Marmande;Aquitain;France;097 Initiatives de développement local menées par les acteurs locaux dans les zones urbaines et rurales;22/02/2024
35210;INHNI - INSTITUT NATIONAL DE L HYGIÈNE ET DU NETTOYAGE INDUSTRIEL;STRATEGIE DE DEVELOPPEMENT DU CFA PROPRETE INHNI AQUITAINE ;;FSE;01/01/2015;30/06/2016;45 898,00;22 949,00;50,00%;33600 Pessac;Aquitain;France;117 Amélioration de l'égalité d'accès à l'apprentissage tout au long de la vie pour toutes les catégories d'âges dans un cadre formel,...;22/02/2024
35410;MAISON DE L EMPLOI DE L INSERTION ECON OMIQUE ET DE L ENTREPRISE DE BORDEAUX;Salon du recrutement en Alternance 2015;;FSE;01/01/2015;31/12/2015;48 101,00;24 050,00;50,00%;33300 Bordeaux;Aquitain;France;117 Amélioration de l'égalité d'accès à l'apprentissage tout au long de la vie pour toutes les catégories d'âges dans un cadre formel,...;22/02/2024
35510;CENTRE D INFORMATION SUR LES DROITS DE S FEMMES ET DES FAMILLES DE LA GIRONDE;Favoriser l'entrepreneuriat féminin;;FSE;01/01/2014;31/12/2014;160 056,55;70 072,59;43,78%;33000 Bordeaux;Aquitain;France;104 Emploi indépendant, entrepreneuriat et création d'entreprises, y compris les micro, petites et moyennes entreprises innovantes;22/02/2024
35610;ASS BEARNAISE DEVELOP EMPLOI AGRICOLE;Dispositif d'accompagnement à l'installation en agriculture;;FSE;01/01/2015;31/12/2016;24 975,00;12 487,50;50,00%;64140 BILLERE;Aquitain;France;104 Emploi indépendant, entrepreneuriat et création d'entreprises, y compris les micro, petites et moyennes entreprises innovantes;22/02/2024
35710;FÉDÉRATION DE LA GIRONDE POUR LA PÊCHE ET LA PROTECTION DU MILIEU AQUATIQUE;Continuité des cours d'eau en Gironde : animation et suivi des ouvrages prioritaires - 2015;;FEDER;05/01/2015;31/12/2015;127 913,00;13 855,00;10,83%;33750 Beychac-et-Caillau;Aquitain;France;085 Protection et amélioration de la biodiversité, protection de la nature et infrastructure verte;22/02/2024
35910;IFAID AQUITAINE;Formation aux compétences de la coordination de projet de solidarité internationale et locale;;FSE;01/06/2014;31/08/2015;312 000,00;62 400,00;20,00%;33300 Bordeaux;Aquitain;France;117 Amélioration de l'égalité d'accès à l'apprentissage tout au long de la vie pour toutes les catégories d'âges dans un cadre formel,...;22/02/2024
36110;FÉDÉRATION DE LA GIRONDE POUR LA PÊCHE ET LA PROTECTION DU MILIEU AQUATIQUE;Poissons migrateurs : suivi anguille et étude lamproie - Gironde - 2015;;FEDER;05/01/2015;31/12/2017;58 327,00;15 271,00;26,18%;33750 Beychac-et-Caillau;Aquitain;France;085 Protection et amélioration de la biodiversité, protection de la nature et infrastructure verte;22/02/2024
36210;FÉDÉRATION DE LA GIRONDE POUR LA PÊCHE ET LA PROTECTION DU MILIEU AQUATIQUE;Sensibilisation et éducation à l'environnement aquatique d'eau douce en Gironde - programme 2015;;FEDER;05/01/2015;31/12/2015;72 973,00;20 419,00;27,98%;33750 Beychac-et-Caillau;Aquitain;France;085 Protection et amélioration de la biodiversité, protection de la nature et infrastructure verte;22/02/2024
36310;AGENCE NATIONALE POUR LA FORMATION PRO FESSIONNELLE DES ADULTES;Nouvelle Chance par l'Alternance;;IEJ;01/01/2015;31/12/2015;1 028 974,17;451 784,50;43,91%;33200 BORDEAUX;Aquitain;France;103 Intégration durable sur le marché du travail des jeunes, en particulier ceux qui sont sans emploi et qui ne suivent ni enseignement ni formation, en mettant notamment en oeuvre la garantie pour la jeunesse;22/02/2024
36410;RESCOLL;Investissements matériels et immobiliers;;FEDER;01/01/2015;30/06/2017;3 748 852,00;740 000,00;19,74%;33600 Pessac;Aquitain;France;056 Investissements dans les infrastructures, capacités et équipements des PME directement liés aux activités de recherche et d’innovation;22/02/2024
36710;CCI BAYONNE PAYS BASQUE;Programme d'actions 2015 - Accueil d'investisseurs au Pays Basque;;FEDER;01/01/2015;31/12/2015;310 859,34;119 994,42;38,60%;64100 Bayonne;Aquitain;France;066 Services d'appui avancé aux PME et groupes de PME (y compris services de gestion, de commercialisation et de conception);22/02/2024
36810;AGGLOMERATION COTE BASQUE - ADOUR;Adaptation des moyens mis en oeuvre aux réalités du marché et aux besoins des apprentis;;FSE;01/01/2015;30/06/2016;33 634,37;16 817,18;50,00%;64100 Bayonne;Aquitain;France;117 Amélioration de l'égalité d'accès à l'apprentissage tout au long de la vie pour toutes les catégories d'âges dans un cadre formel,...;22/02/2024
37510;IFRIA INSTITUT DE FORMATION REGIONAL INDUSTRIES ALIMENTAIRES D AQUITAINE;Objectif : 200 apprentis en 2017;;FSE;01/01/2015;31/12/2016;18 154,24;9 077,12;50,00%;33600 Pessac;Aquitain;France;117 Amélioration de l'égalité d'accès à l'apprentissage tout au long de la vie pour toutes les catégories d'âges dans un cadre formel,...;22/02/2024
37710;DEPARTEMENT DE LA DORDOGNE;Aménagements scénographiques et numériques du Centre International de l'Art Pariétal;;FEDER;01/01/2014;30/06/2016;5 466 252,23;3 094 992,01;56,62%;24000 Périgueux;Aquitain;France;079 Accès aux informations du secteur public (y compris les données culturelles libres de droit en ligne, les bibliothèques numériques, les contenus numériques et le tourisme en ligne);22/02/2024
37810;CHAMBRE RÉGIONALE D AGRICULTURE NOUVEL LE-AQUITAINE;Dispositif d'accompagnement à l'installation en agriculture;;FSE;01/01/2015;31/12/2015;280 125,00;140 062,50;50,00%;33000 Bordeaux;Aquitain;France;104 Emploi indépendant, entrepreneuriat et création d'entreprises, y compris les micro, petites et moyennes entreprises innovantes;22/02/2024
37910;ESTIA-ECOLE SUP TECHNOLOGIES INDUST AVANCEES CCI BAYONNE;Détection et accompagnement des jeunes entreprises innovantes - 2015;;FEDER;01/01/2015;31/12/2015;456 453,00;160 000,00;35,05%;64210 Bidart;Aquitain;France;067 Développement commercial des PME, soutien à l’esprit d’entreprise et à l’incubation (y compris le soutien aux entreprises issues de l'essaimage);22/02/2024
38010;LYCEE AGR DEPTAL STE LIVRADE PC CDFAA;AMELIORER LES SERVICES DU CFA EN ADEQUATION AVEC LE PROJET DE CENTRE;;FSE;01/01/2015;30/06/2016;114 142,00;57 071,00;50,00%;47110 Sainte-Livrade-sur-Lot;Aquitain;France;117 Amélioration de l'égalité d'accès à l'apprentissage tout au long de la vie pour toutes les catégories d'âges dans un cadre formel,...;22/02/2024
38110;EXCO FIDUCIAIRE DU SUD OUEST;Dispositif d'accompagnement à l'installation en agriculture;;FSE;01/01/2015;31/12/2016;20 250,00;10 125,00;50,00%;64120 Saint-Palais;Aquitain;France;104 Emploi indépendant, entrepreneuriat et création d'entreprises, y compris les micro, petites et moyennes entreprises innovantes;22/02/2024
38210;TALIS ITINÉRAIRE EMPLOI;"ACTION  ""NOUVELLE CHANCE""- SECURISATION DES PARCOURS DE FORMATION PAR LE DAEU";;FSE;01/08/2015;31/07/2016;52 537,00;26 000,00;49,49%;24100 Bergerac;Aquitain;France;117 Amélioration de l'égalité d'accès à l'apprentissage tout au long de la vie pour toutes les catégories d'âges dans un cadre formel,...;22/02/2024
38510;SCA UNICOQUE;Investissements immobiliers et matériels de la coopérative Unicoque;;FEDER;16/02/2015;30/06/2018;3 054 000,00;600 000,00;19,65%;47290 Cancon;Aquitain;France;001 Investissement productif générique dans les petites et moyennes entreprises («PME»);22/02/2024
38610;FONTAULAB;Espace de travail partagé FontauLab;;FEDER;01/12/2014;31/12/2015;147 734,71;67 639,60;45,78%;33318 Pessac;Aquitain;France;067 Développement commercial des PME, soutien à l’esprit d’entreprise et à l’incubation (y compris le soutien aux entreprises issues de l'essaimage);22/02/2024
38710;CHAMBRE DE METIERS ET DE L ARTISANAT DE REGION AQUITAINE;Convention d'Accompagnement Personnalisée dans l'Artisanat (CAP Artisanat) ;;IEJ;01/01/2015;31/12/2017;909 799,98;818 820,24;90,00%;33000 Bordeaux;Aquitain;France;103 Intégration durable sur le marché du travail des jeunes, en particulier ceux qui sont sans emploi et qui ne suivent ni enseignement ni formation, en mettant notamment en oeuvre la garantie pour la jeunesse;22/02/2024
38810;LPO de Borda - CFA des Métiers de l'Hôtellerie des Landes;"CFA DE BORDA DAX - SRA - V1 - P1 ""Elaboration du Projet d'Etablissement""";;FSE;09/03/2015;31/08/2016;25 986,26;12 993,13;50,00%;40107 DAX CEDEX;Aquitain;France;117 Amélioration de l'égalité d'accès à l'apprentissage tout au long de la vie pour toutes les catégories d'âges dans un cadre formel,...;22/02/2024
39510;COMITE REGIONAL CONCHYLICULTURE ARCACHON AQUITAINE;Dispositif d'accompagnement à l'installation en agriculture - Volet conchyliculture;;FSE;01/01/2015;31/12/2016;12 825,00;6 412,50;50,00%;33470 Gujan-Mestras;Aquitain;France;104 Emploi indépendant, entrepreneuriat et création d'entreprises, y compris les micro, petites et moyennes entreprises innovantes;22/02/2024
39610;ASSOCIATION DE GESTION ET COMPTABILITE 47;Dispositif d'accompagnement à l'installation en agriculture;;FSE;01/01/2015;31/12/2016;48 150,00;24 075,00;50,00%;47000 Agen;Aquitain;France;104 Emploi indépendant, entrepreneuriat et création d'entreprises, y compris les micro, petites et moyennes entreprises innovantes;22/02/2024
39710;CENTRE DE GESTION AGRICOLE ET RURAL - CEGARA;Dispositif d'accompagnement à l'installation en agriculture;;FSE;01/01/2015;31/12/2016;30 150,00;15 075,00;50,00%;33650 Martillac;Aquitain;France;104 Emploi indépendant, entrepreneuriat et création d'entreprises, y compris les micro, petites et moyennes entreprises innovantes;22/02/2024
39810;Chambre de Métiers et de l'Artisanat Interdépartementale Dordogne-Gironde - Lot-et-Garonne;CFA CMARA33 - SRA - V1 - P2 - INSERTION DURABLE DES APPRENTIS;;FSE;01/01/2015;30/06/2016;66 482,00;33 241,00;50,00%;33074 BORDEAUX CEDEX;Aquitain;France;117 Amélioration de l'égalité d'accès à l'apprentissage tout au long de la vie pour toutes les catégories d'âges dans un cadre formel,...;22/02/2024
40010;EPLEFPA BORDEAUX GIRONDE LEGTA DE BLANQUEFORT;@GRO'CAP : Mise en oeuvre du protocole @gro'Pass ;;FSE;01/01/2015;30/06/2016;21 492,00;10 746,00;50,00%;33290 Blanquefort;Aquitain;France;117 Amélioration de l'égalité d'accès à l'apprentissage tout au long de la vie pour toutes les catégories d'âges dans un cadre formel,...;22/02/2024
40110;ASSOCIATION DE GESTION ET DE COMPTABILITE DU PERIGORD;Dispositif d'accompagnement à l'installation en agriculture;;FSE;01/01/2015;31/12/2016;14 850,00;7 425,00;50,00%;24660 Coulounieix-Chamiers;Aquitain;France;104 Emploi indépendant, entrepreneuriat et création d'entreprises, y compris les micro, petites et moyennes entreprises innovantes;22/02/2024
40210;EUSKAL HERRIKO LABORANTZA GA NBARA;Dispositif d'accompagnement à l'installation en agriculture;;FSE;01/01/2015;31/12/2015;29 700,00;14 850,00;50,00%;64220 Ainhice-Mongelos;Aquitain;France;104 Emploi indépendant, entrepreneuriat et création d'entreprises, y compris les micro, petites et moyennes entreprises innovantes;22/02/2024
40310;LA MAISON DES PAYSANS - ASSOCIATION POUR LA PROMOTION DE L INSTALLATION ET DE L AGRICULTURE PAYSANNE EN DORDOGNE;Dispositif d'accompagnement à l'installation en agriculture;;FSE;01/01/2015;31/12/2016;19 575,00;9 787,50;50,00%;24100 Bergerac;Aquitain;France;104 Emploi indépendant, entrepreneuriat et création d'entreprises, y compris les micro, petites et moyennes entreprises innovantes;22/02/2024
40410;EPA CITÉ DE LA FORMATION MARMANDE;Volet 1: Faire converger les différentes dimensions de l'apprentissage pour la réussite du jeune;;FSE;01/01/2015;30/06/2016;69 963,42;34 981,71;50,00%;47200 Marmande;Aquitain;France;117 Amélioration de l'égalité d'accès à l'apprentissage tout au long de la vie pour toutes les catégories d'âges dans un cadre formel,...;22/02/2024
40510;Chambre de Métiers et de l'Artisanat Interdépartementale Dordogne-Gironde - Lot-et-Garonne;Stratégie du Centre de Formation CFA CMARA24 - Projet d'Etablissement;;FSE;01/01/2015;30/06/2016;47 694,00;23 847,00;50,00%;24053 Boulazac;Aquitain;France;117 Amélioration de l'égalité d'accès à l'apprentissage tout au long de la vie pour toutes les catégories d'âges dans un cadre formel,...;22/02/2024
41010;AGC GIRONDE;Dispositif d'accompagnement à l'installation en agriculture;;FSE;01/01/2015;31/12/2016;51 525,00;25 762,50;50,00%;33370 Loupes;Aquitain;France;104 Emploi indépendant, entrepreneuriat et création d'entreprises, y compris les micro, petites et moyennes entreprises innovantes;22/02/2024
41610;COMMUNAUTE D AGGLOMERATION BERGERACOISE;Aide à l'ingénierie pour la Stratégie Urbaine Intégrée de la Communauté d'Agglomération Bergeracoise;;FEDER;01/08/2014;30/06/2015;58 800,00;29 400,00;50,00%;24037 Bergerac;Aquitain;France;097 Initiatives de développement local menées par les acteurs locaux dans les zones urbaines et rurales;22/02/2024
41710;ASSOCIATION DE GESTION ET DE COMPTABILITE ADOUR OCEAN;Dispositif d'accompagnement à l'installation en agriculture;;FSE;01/01/2015;31/12/2016;14 175,00;7 087,50;50,00%;40280 SAINT PIERRE DU MONT;Aquitain;France;104 Emploi indépendant, entrepreneuriat et création d'entreprises, y compris les micro, petites et moyennes entreprises innovantes;22/02/2024
41910;ASPECT AQUITAINE;"CFA ASPECT- SRA-V1-P1 ""Développer l'apprentissage dans l'Enseignement Privé sous Contrat Aquitain""";;FSE;01/07/2015;30/06/2016;8 333,31;4 166,65;50,00%;33300 Bordeaux;Aquitain;France;117 Amélioration de l'égalité d'accès à l'apprentissage tout au long de la vie pour toutes les catégories d'âges dans un cadre formel,...;22/02/2024
42010;ASS CAP SCIENCES;Programme de diffusion de la culture scientifique et technique en Aquitaine - année 2015;;FEDER;01/01/2015;31/12/2015;767 508,00;450 000,00;58,63%;33300 Bordeaux;Aquitain;France;066 Services d'appui avancé aux PME et groupes de PME (y compris services de gestion, de commercialisation et de conception);22/02/2024
42110;CFA DU GRAND BERGERACOIS DES MÉTIERS T RADITIONNELS ET DE LA SANTÉ;Renforcer l'information et la promotion du dispositif apprentissage sur le territoire;;FSE;01/01/2015;30/06/2016;15 293,38;7 646,69;50,00%;24037 Bergerac;Aquitain;France;117 Amélioration de l'égalité d'accès à l'apprentissage tout au long de la vie pour toutes les catégories d'âges dans un cadre formel,...;22/02/2024
42310;EPLEFPA DU PERIGORD LYCEE AGRI DEP COULOUNIEIX CDFAA;Accompagnement renforcé des apprentis;;FSE;01/01/2015;30/06/2016;35 953,07;17 976,53;50,00%;24138 Coulounieix-Chamiers;Aquitain;France;117 Amélioration de l'égalité d'accès à l'apprentissage tout au long de la vie pour toutes les catégories d'âges dans un cadre formel,...;22/02/2024
42410;CHAMBRE DE METIERS ET DE L ARTISANAT INTERDEPARTEMENT DORDOGNE GIRONDE LOT;Développement de l'apprentissage en Aquitaine 2016;;FSE;01/01/2016;31/12/2016;457 167,00;228 583,00;50,00%;33000 Bordeaux;Aquitain;France;117 Amélioration de l'égalité d'accès à l'apprentissage tout au long de la vie pour toutes les catégories d'âges dans un cadre formel,...;22/02/2024
42510;CISTUDE NATURE;Atlas des mammifères d'Aquitaine 2015 - dernier tome - pilotage et édition;;FEDER;01/01/2015;31/12/2015;65 448,00;21 597,00;33,00%;33185 Le Haillan;Aquitain;France;085 Protection et amélioration de la biodiversité, protection de la nature et infrastructure verte;22/02/2024
42610;CISTUDE NATURE;Plan Régional d'Actions Sonneur à ventre jaune - tranche 2015;;FEDER;01/01/2015;31/12/2015;56 580,18;28 995,61;51,25%;33185 Le Haillan;Aquitain;France;085 Protection et amélioration de la biodiversité, protection de la nature et infrastructure verte;22/02/2024
42710;CISTUDE NATURE;Programme régional de connaissance et de sensibilisation sur les serpents - tranche 2015;;FEDER;01/01/2015;31/12/2015;122 532,00;63 768,00;52,04%;33185 Le Haillan;Aquitain;France;085 Protection et amélioration de la biodiversité, protection de la nature et infrastructure verte;22/02/2024
42810;BTP CFA AQUITAINE LOT ET GARONNE;CFA BTP47 - V1 - P2 - Améliorer la qualité de l'information et de l'accueil;;FSE;01/01/2015;30/06/2016;36 213,08;18 106,54;50,00%;47000 Agen;Aquitain;France;117 Amélioration de l'égalité d'accès à l'apprentissage tout au long de la vie pour toutes les catégories d'âges dans un cadre formel,...;22/02/2024
42910;LGT PRIVE STE FAMILLE SAINTONGE OGEC STE FAMILLE - ST MICHEL;Tout est possible : Accompagnement et orientation des jeunes vers l'apprentissage;;IEJ;01/03/2015;30/06/2017;203 211,77;156 473,06;77,00%;33000 Bordeaux;Aquitain;France;103 Intégration durable sur le marché du travail des jeunes, en particulier ceux qui sont sans emploi et qui ne suivent ni enseignement ni formation, en mettant notamment en oeuvre la garantie pour la jeunesse;22/02/2024
43110;BTP CFA AQUITAINE LOT ET GARONNE;BTP CFA47 - V1 - P1 - Construire et conduire la mise en oeuvre du Projet d'établissement;;FSE;01/01/2015;30/06/2016;35 998,00;17 999,00;50,00%;47001 Agen;Aquitain;France;117 Amélioration de l'égalité d'accès à l'apprentissage tout au long de la vie pour toutes les catégories d'âges dans un cadre formel,...;22/02/2024
43610;BTP CFA AQUITAINE DE PAU;BTP CFA64 - SRA - V1 - P1 - Conduire la mise en oeuvre du projet d'établissement;;FSE;01/01/2015;30/06/2016;52 410,00;26 205,00;50,00%;64000 Pau;Aquitain;France;117 Amélioration de l'égalité d'accès à l'apprentissage tout au long de la vie pour toutes les catégories d'âges dans un cadre formel,...;22/02/2024
44010;COBAS - CFA BASSIN DE FORMATION;Développement de l'Apprentissage;;FSE;01/01/2015;30/06/2016;30 000,00;15 000,00;50,00%;33260 Teste-de-Buch;Aquitain;France;117 Amélioration de l'égalité d'accès à l'apprentissage tout au long de la vie pour toutes les catégories d'âges dans un cadre formel,...;22/02/2024
44110;COBAS - CFA BASSIN DE FORMATION;  Apprentissage en Parcours Individualisés (API);;FSE;01/01/2015;30/06/2016;90 000,00;45 000,00;50,00%;33260 Teste-de-Buch;Aquitain;France;117 Amélioration de l'égalité d'accès à l'apprentissage tout au long de la vie pour toutes les catégories d'âges dans un cadre formel,...;22/02/2024
44310;LES COMPAGNONS DU DEVOIR;Donner l'accès à l'apprentissage en accompagnant chaque jeune dans sa recherche d'entreprise;;FSE;01/01/2015;30/06/2016;18 500,00;9 250,00;50,00%;33063 Bordeaux;Aquitain;France;117 Amélioration de l'égalité d'accès à l'apprentissage tout au long de la vie pour toutes les catégories d'âges dans un cadre formel,...;22/02/2024
44410;EPA CITÉ DE LA FORMATION MARMANDE;Sécuriser les parcours en apprentissage, du projet de formation au projet professionnel.;;IEJ;01/04/2015;30/06/2017;26 389,00;20 319,53;77,00%;47200 Marmande;Aquitain;France;103 Intégration durable sur le marché du travail des jeunes, en particulier ceux qui sont sans emploi et qui ne suivent ni enseignement ni formation, en mettant notamment en oeuvre la garantie pour la jeunesse;22/02/2024
44510;CHAMBRE DE METIERS ET DE L ARTISANAT D E LA REGION AQUITAINE - CMARA;  formalisation et déclinaison  du projet d'Etablissement;;FSE;01/01/2015;30/06/2016;19 675,32;9 837,66;50,00%;33000 Bordeaux;Aquitain;France;117 Amélioration de l'égalité d'accès à l'apprentissage tout au long de la vie pour toutes les catégories d'âges dans un cadre formel,...;22/02/2024
44610;CHAMBRE DE METIERS ET DE L ARTISANAT D E LA REGION AQUITAINE - CMARA;Dispositif Global d'Accompagnement à l'Insertion Professionnelle;;FSE;01/01/2015;30/06/2016;26 254,01;13 127,00;50,00%;33000 Bordeaux;Aquitain;France;117 Amélioration de l'égalité d'accès à l'apprentissage tout au long de la vie pour toutes les catégories d'âges dans un cadre formel,...;22/02/2024
44710;GIP LITTORAL AQUITAIN GIP L A;Gestion des risques côtiers stratégies régionale et  locales 2016-2017 GIP;;FEDER;01/12/2015;01/09/2017;113 481,60;45 846,50;40,40%;33700 Mérignac;Aquitain;France;087 Mesures d'adaptation au changement climatique, prévention et gestion des risques liés au climat, comme l’érosion, les incendies, les inondations,...;22/02/2024
45010;GIP CHEMPARC;Programme d'actions 2015 - Accueil d'investisseurs sur le bassin de Lacq;;FEDER;01/01/2015;31/12/2015;329 929,08;51 623,15;15,65%;64300 Lacq;Aquitain;France;066 Services d'appui avancé aux PME et groupes de PME (y compris services de gestion, de commercialisation et de conception);22/02/2024
45210;AGENCE DEVELOP  INNOVATION NOUVELLE AQUITAINE;"Programme d'actions ""innovation"" 2015";;FEDER;01/01/2015;31/12/2015;3 265 260,95;1 428 591,95;43,75%;33600 Pessac;Aquitain;France;066 Services d'appui avancé aux PME et groupes de PME (y compris services de gestion, de commercialisation et de conception);22/02/2024
45410;LACQ ODYSSEE CENTRE CULTURE SCIENTIFIQ TECHNIQUE INDUSTRIELLE DES PAYS ADOUR;Actions de médiation de la culture scientifique, technique et industrielle en Pays Adour - 2015;;FEDER;01/01/2015;31/12/2015;144 177,00;80 000,00;55,49%;64150 Mourenx;Aquitain;France;066 Services d'appui avancé aux PME et groupes de PME (y compris services de gestion, de commercialisation et de conception);22/02/2024
45610;GIP DSU CONTRAT VILLE AGGLO DE PAU;Favoriser la création et reprise d'entreprises pour le public des quartiers prioritaires de Pau;;FSE;01/01/2014;30/06/2015;61 432,89;22 692,33;36,94%;64445 Pau;Aquitain;France;104 Emploi indépendant, entrepreneuriat et création d'entreprises, y compris les micro, petites et moyennes entreprises innovantes;22/02/2024
45710;ECOLE NATIONALE SUPERIEURE D ARTS ET METIERS - ENSAM;Développement des platesformes IRT Saint-Exupéry et GAME;;FEDER;01/04/2014;30/09/2016;6 680 761,92;1 742 807,46;26,09%;33522 Talence;Aquitain;France;058 Infrastructures de recherche et d’innovation (publiques);22/02/2024
45810;HYGIE FORMATIONS PHARMACIE D AQUITAINE - CFA ET FORMATION CONTINUE;"HYGIE FORMATIONS - SRA - V1 - P1 "" Projet Qualité Apprentis/Maîtres d'apprentissage""";;FSE;01/01/2015;01/07/2016;36 421,99;18 210,99;50,00%;33310 Lormont;Aquitain;France;117 Amélioration de l'égalité d'accès à l'apprentissage tout au long de la vie pour toutes les catégories d'âges dans un cadre formel,...;22/02/2024
45910;MAISON INITIATIVE ENTREPRENEURIAT;Tester et réussir son projet de création d'entreprise dans la couveuse ANABASE - 2015;;FEDER;01/01/2015;31/12/2015;84 828,00;28 228,00;33,28%;33000 Bordeaux;Aquitain;France;067 Développement commercial des PME, soutien à l’esprit d’entreprise et à l’incubation (y compris le soutien aux entreprises issues de l'essaimage);22/02/2024
46110;ICFA-INSTITUT CONSULAIRE DE FORMATION EN ALTERNANCE;"ICFA-SRA-V1-P1 ""consolidation des parcours pour la réussite et l'insertion des apprentis""";;FSE;01/01/2015;30/06/2016;125 390,00;62 695,00;50,00%;33000 Bordeaux;Aquitain;France;117 Amélioration de l'égalité d'accès à l'apprentissage tout au long de la vie pour toutes les catégories d'âges dans un cadre formel,...;22/02/2024
46210;ADAIAQ;Ingénierie Période Professionnelle à l'international (IPPI);;FSE;30/06/2015;30/06/2016;46 990,93;23 495,46;50,00%;33520 Bruges;Aquitain;France;117 Amélioration de l'égalité d'accès à l'apprentissage tout au long de la vie pour toutes les catégories d'âges dans un cadre formel,...;22/02/2024
46510;CFA DU GRAND BERGERACOIS DES MÉTIERS T RADITIONNELS ET DE LA SANTÉ;Structurer une stratégie pour un CFA évolutif au sein de son environnement territorial;;FSE;01/01/2015;30/06/2016;15 886,00;7 943,00;50,00%;24100 Bergerac;Aquitain;France;117 Amélioration de l'égalité d'accès à l'apprentissage tout au long de la vie pour toutes les catégories d'âges dans un cadre formel,...;22/02/2024
46710;BTP CFA AQUITAINE LANDES;"BTP CFA40 - SRA  - V1 - P2 ""Améliorer la qualité de l'information et de l'accueil""";;FSE;01/01/2015;30/06/2016;35 800,00;17 900,00;50,00%;40197 Morcenx;Aquitain;France;117 Amélioration de l'égalité d'accès à l'apprentissage tout au long de la vie pour toutes les catégories d'âges dans un cadre formel,...;22/02/2024
46810;EPLEFPA DU PERIGORD LYCEE AGRI DEP COULOUNIEIX CDFAA;Accroître l'efficacité de la formation entre tous les acteurs par l'optimisation des organisations  ;;FSE;01/01/2015;30/06/2016;52 484,22;26 242,11;50,00%;24138 Coulounieix-Chamiers;Aquitain;France;117 Amélioration de l'égalité d'accès à l'apprentissage tout au long de la vie pour toutes les catégories d'âges dans un cadre formel,...;22/02/2024
47010;INSTITUT FCBA - FORET CELLULOSE BOIS - CONSTRUCTION AMEUBLEMENT;PROGRAMME DE RESSOURCEMENT SCIENTIFIQUE 2015-2016;;FEDER;01/05/2015;30/11/2016;981 481,00;343 518,00;35,00%;33063 Bordeaux;Aquitain;France;062 Transfert de technologies et coopération entre universités et entreprises, principalement au profit des PME;22/02/2024
47110;ICFA-INSTITUT CONSULAIRE DE FORMATION EN ALTERNANCE;Plateforme d'échange et de mutualisation;;FSE;01/01/2015;30/06/2016;95 000,00;47 500,00;50,00%;33000 Bordeaux;Aquitain;France;117 Amélioration de l'égalité d'accès à l'apprentissage tout au long de la vie pour toutes les catégories d'âges dans un cadre formel,...;22/02/2024
47210;Centre Information Jeunesse Aquitaine;Information Jeunesse : Maillage territorial pour l'emploi et l'insertion des jeunes;;FSE;01/01/2015;31/12/2015;296 527,00;144 134,00;48,61%;33000 BORDEAUX;Aquitain;France;117 Amélioration de l'égalité d'accès à l'apprentissage tout au long de la vie pour toutes les catégories d'âges dans un cadre formel,...;22/02/2024
47310;ESTIA - Ecole Sup des Technologies  Industrielles Avancées;Entrepreneuriat et innovation technologique;;FSE;01/03/2015;30/06/2016;65 000,00;32 500,00;50,00%;64210 BIDART;Aquitain;France;117 Amélioration de l'égalité d'accès à l'apprentissage tout au long de la vie pour toutes les catégories d'âges dans un cadre formel,...;22/02/2024
47410;UNIVERSITE BORDEAUX MONTAIGNE III;Favoriser le développement de l'apprentissage et la réussite des apprentis du CFA de l'UBM;;FSE;01/01/2015;30/06/2016;30 759,72;15 379,86;50,00%;33318 Pessac;Aquitain;France;117 Amélioration de l'égalité d'accès à l'apprentissage tout au long de la vie pour toutes les catégories d'âges dans un cadre formel,...;22/02/2024
47510;Chambre de Métiers et de l'Artisanat Interdépartementale Dordogne-Gironde - Lot-et-Garonne;CFA CMARA33 - SRA - V1 - P1 - Amélioration durable et continue du projet du CFA;;FSE;01/01/2015;30/06/2016;55 201,99;27 600,99;50,00%;33074 BORDEAUX CEDEX;Aquitain;France;117 Amélioration de l'égalité d'accès à l'apprentissage tout au long de la vie pour toutes les catégories d'âges dans un cadre formel,...;22/02/2024
47610;GIP AMENAGEMENT DU TERRITOIRE ET GESTION DES RISQUES - GIP ATGERI;Plateforme de l'Information Géographique 2015-2016 (PIGMA 3);;FEDER;01/01/2015;31/12/2016;2 964 588,65;1 219 643,69;41,14%;33300 Bordeaux;Aquitain;France;079 Accès aux informations du secteur public (y compris les données culturelles libres de droit en ligne, les bibliothèques numériques, les contenus numériques et le tourisme en ligne);22/02/2024
47710;BTP CFA AQUITAINE;Développer l'outil numérique dans la formation des apprentis;;FSE;01/01/2015;30/06/2016;207 616,00;103 808,00;50,00%;33520 Bruges;Aquitain;France;117 Amélioration de l'égalité d'accès à l'apprentissage tout au long de la vie pour toutes les catégories d'âges dans un cadre formel,...;22/02/2024
47810;EPLEFPA BORDEAUX GIRONDE LEGTA DE BLANQUEFORT;@GRO'SAS : Premiers pas dans les pépinières de la réussite pour les NEET;;IEJ;01/01/2015;31/12/2016;197 586,22;152 141,39;77,00%;33290 Blanquefort;Aquitain;France;103 Intégration durable sur le marché du travail des jeunes, en particulier ceux qui sont sans emploi et qui ne suivent ni enseignement ni formation, en mettant notamment en oeuvre la garantie pour la jeunesse;22/02/2024
47910;BTP CFA AQUITAINE;Développer une plateforme d'information et de collaboration;;FSE;01/01/2015;30/06/2016;247 851,62;122 851,62;49,57%;33520 Bruges;Aquitain;France;117 Amélioration de l'égalité d'accès à l'apprentissage tout au long de la vie pour toutes les catégories d'âges dans un cadre formel,...;22/02/2024
48110;BTP CFA AQUITAINE GIRONDE;BTP CFA 33 - SRA - V1 - P2 -  Améliorer la qualité de l'information et de l'accueil;;FSE;01/01/2015;30/06/2016;60 073,56;30 036,78;50,00%;33056 Blanquefort;Aquitain;France;117 Amélioration de l'égalité d'accès à l'apprentissage tout au long de la vie pour toutes les catégories d'âges dans un cadre formel,...;22/02/2024
48210;LIGUE POUR LA PROTECTION DES OISEAUX - DELEGATION AQUITAINE;Atlas des mammifères d'Aquitaine 2015 - dernier tome - mise en oeuvre;;FEDER;01/01/2015;31/12/2015;37 058,11;9 014,57;24,33%;33140 Villenave-d'Ornon;Aquitain;France;085 Protection et amélioration de la biodiversité, protection de la nature et infrastructure verte;22/02/2024
48410;ICFA-INSTITUT CONSULAIRE DE FORMATION EN ALTERNANCE;"ICFA-SRA-V1-P3 ""amélioration des relations avec les entreprises""";;FSE;01/01/2015;30/06/2016;12 800,00;6 400,00;50,00%;33000 Bordeaux;Aquitain;France;117 Amélioration de l'égalité d'accès à l'apprentissage tout au long de la vie pour toutes les catégories d'âges dans un cadre formel,...;22/02/2024
48510;BTP CFA AQUITAINE LOT ET GARONNE;"BTP CFA 24  -SRA - V1  -P1 ""projet d'établissement""";;FSE;01/01/2015;30/06/2016;29 057,73;14 528,86;50,00%;24322 Périgueux;Aquitain;France;117 Amélioration de l'égalité d'accès à l'apprentissage tout au long de la vie pour toutes les catégories d'âges dans un cadre formel,...;22/02/2024
48610;LEGTA BORDEAUX BLANQUEFORT;AGRO'ACT: Devenir acteur de sa formation  ;;FSE;01/01/2015;30/06/2016;135 000,00;67 500,00;50,00%;33290 Blanquefort;Aquitain;France;117 Amélioration de l'égalité d'accès à l'apprentissage tout au long de la vie pour toutes les catégories d'âges dans un cadre formel,...;22/02/2024
48710;BTP CFA AQUITAINE LANDES;"BTP CFA40 - SRA - V1 - P1 ""Construire et conduire la mise en oeuvre du projet d'établissement""";;FSE;01/01/2015;30/06/2016;17 030,00;8 515,00;50,00%;40197 Morcenx;Aquitain;France;117 Amélioration de l'égalité d'accès à l'apprentissage tout au long de la vie pour toutes les catégories d'âges dans un cadre formel,...;22/02/2024
48810;BTP CFA AQUITAINE GIRONDE;BTP CFA 33 - SRA - V1 - P1 - Construire et conduire la mise en oeuvre du projet d'établissement;;FSE;01/01/2015;30/06/2016;58 288,00;29 144,00;50,00%;33056 Blanquefort;Aquitain;France;117 Amélioration de l'égalité d'accès à l'apprentissage tout au long de la vie pour toutes les catégories d'âges dans un cadre formel,...;22/02/2024
49010;CHAMBRE DE METIERS ET DE L ARTISANAT INTERDEPARTEMENT DORDOGNE GIRONDE LOT;Développer et améliorer les activités clés des CFA en lien avec le niveau régional;;FSE;01/01/2015;30/06/2016;129 735,65;64 867,82;50,00%;24660 Coulounieix-Chamiers;Aquitain;France;117 Amélioration de l'égalité d'accès à l'apprentissage tout au long de la vie pour toutes les catégories d'âges dans un cadre formel,...;22/02/2024
49310;ICFA-INSTITUT CONSULAIRE DE FORMATION EN ALTERNANCE;Accompagnement en amont et en aval de l'apprentissage;;IEJ;01/01/2015;30/06/2017;11 355,88;8 584,68;75,60%;33000 Bordeaux;Aquitain;France;103 Intégration durable sur le marché du travail des jeunes, en particulier ceux qui sont sans emploi et qui ne suivent ni enseignement ni formation, en mettant notamment en oeuvre la garantie pour la jeunesse;22/02/2024
49410;EPLEFPA DE PAU MONTARDON - CENTRE DE F ORMATION APPRENTIS AGRICOLES;CFAA64-SRA-V1-P1-AMÉLIORATION DES PRATIQUES ET MEILLEUR ACCOMPAGNEMENT DES APPRENTIS;;FSE;01/01/2015;30/06/2016;14 464,00;7 232,00;50,00%;64256 Hasparren;Aquitain;France;117 Amélioration de l'égalité d'accès à l'apprentissage tout au long de la vie pour toutes les catégories d'âges dans un cadre formel,...;22/02/2024
49710;BTP CFA AQUITAINE DE PAU;BTP CFA64 - V1- P2- Améliorer la qualité de l'information et de l'accueil ;;FSE;01/01/2015;30/06/2016;44 800,00;22 400,00;50,00%;64000 Pau;Aquitain;France;117 Amélioration de l'égalité d'accès à l'apprentissage tout au long de la vie pour toutes les catégories d'âges dans un cadre formel,...;22/02/2024
50210;UNIVERSITE DE BORDEAUX;PROJET REGIONAL QUALITE APPRENTISSAGE 2015 - Développement de l'apprentissage à l'Université de Bdx;;FSE;01/01/2015;30/06/2016;17 700,00;8 850,00;50,00%;33000 BORDEAUX;Aquitain;France;117 Amélioration de l'égalité d'accès à l'apprentissage tout au long de la vie pour toutes les catégories d'âges dans un cadre formel,...;22/02/2024
50510;BTP CFA AQUITAINE LOT ET GARONNE;"BTP CFA24 - SRA - V1 - P2 - ""Améliorer la qualité de l'information et de l'accueil""";;FSE;01/01/2015;30/06/2016;43 216,27;21 608,13;50,00%;24322 Périgueux;Aquitain;France;117 Amélioration de l'égalité d'accès à l'apprentissage tout au long de la vie pour toutes les catégories d'âges dans un cadre formel,...;22/02/2024
50610;UNISPHERES;"Structuration et amorçage du projet UNISPHERES, Cultures &amp; Arts";;FSE;01/10/2015;30/09/2016;22 927,00;16 000,00;69,79%;33000 Bordeaux;Aquitain;France;104 Emploi indépendant, entrepreneuriat et création d'entreprises, y compris les micro, petites et moyennes entreprises innovantes;22/02/2024
50710;LOU GASCOUN;Extension du site de production;;FEDER;04/11/2014;31/03/2016;3 427 209,00;600 000,00;17,51%;24167 Eymet;Aquitain;France;067 Développement commercial des PME, soutien à l’esprit d’entreprise et à l’incubation (y compris le soutien aux entreprises issues de l'essaimage);22/02/2024
50810;LYCEE AGR DEPTAL STE LIVRADE PC CDFAA;Accroître l'accès à l'emploi des publics NEET dans les métiers de l'agriculture;;IEJ;01/01/2015;30/06/2017;84 638,21;65 171,42;77,00%;47110 Sainte-Livrade-sur-Lot;Aquitain;France;103 Intégration durable sur le marché du travail des jeunes, en particulier ceux qui sont sans emploi et qui ne suivent ni enseignement ni formation, en mettant notamment en oeuvre la garantie pour la jeunesse;22/02/2024
51510;CHAMBRE DE METIERS ET ARTISANAT DEPARTEMENTALE DES LANDES;Projet d'Etablissement, services clés de l'apprentissage et plan de formation des personnels;;FSE;01/01/2015;30/06/2016;34 724,00;17 362,00;50,00%;40192 Mont-de-Marsan;Aquitain;France;117 Amélioration de l'égalité d'accès à l'apprentissage tout au long de la vie pour toutes les catégories d'âges dans un cadre formel,...;22/02/2024
51610;CHAMBRE DE COMMERCE ET D'INDUSTRIE DE DORDOGNE;Plate forme d'accès à l'Apprentissage dédiée aux jeunes;;IEJ;01/01/2015;30/06/2017;138 629,20;106 744,48;77,00%;24660 Coulounieix-Chamiers;Aquitain;France;103 Intégration durable sur le marché du travail des jeunes, en particulier ceux qui sont sans emploi et qui ne suivent ni enseignement ni formation, en mettant notamment en oeuvre la garantie pour la jeunesse;22/02/2024
51710;HABITAT ECO ACTION;Structuration de la CAE et Accompagnement des porteurs de projet à la création de leur activité;;FSE;01/01/2015;31/12/2015;54 079,00;34 009,00;62,89%;40220 Tarnos;Aquitain;France;104 Emploi indépendant, entrepreneuriat et création d'entreprises, y compris les micro, petites et moyennes entreprises innovantes;22/02/2024
51810;CHAMBRE DE MÉTIERS ET DE L ARTISANAT D ÉPARTEMENTALE DES PYRÉNÉES-ATLANTIQUES;Mise en oeuvre de la stratégie du CFA;;FSE;01/01/2015;30/06/2016;27 702,00;13 851,00;50,00%;64000 Pau;Aquitain;France;117 Amélioration de l'égalité d'accès à l'apprentissage tout au long de la vie pour toutes les catégories d'âges dans un cadre formel,...;22/02/2024
51910;Chambre de Métiers et de l'Artisanat Interdépartementale Dordogne-Gironde - Lot-et-Garonne;Développement de la mobilité des apprentis;;FSE;01/01/2015;30/06/2016;107 857,80;53 928,90;50,00%;33074 BORDEAUX CEDEX;Aquitain;France;117 Amélioration de l'égalité d'accès à l'apprentissage tout au long de la vie pour toutes les catégories d'âges dans un cadre formel,...;22/02/2024
52110;DIOTASOFT;Novel Augmented Reality Solutions for Industrial Sites (NARSIS);;FEDER;08/04/2015;28/04/2017;1 193 205,12;278 830,66;23,37%;33600 PESSAC;Aquitain;France;064 Processus de recherche et d’innovation dans les PME (y compris systèmes de bons, processus, conception, service et innovation sociale);22/02/2024
52310;CA DU PAYS BASQUE;Favoriser l'insertion professionnelle des jeunes par l'apprentissage;;IEJ;01/01/2015;30/06/2017;5 990,33;4 612,55;77,00%;64100 BAYONNE;Aquitain;France;103 Intégration durable sur le marché du travail des jeunes, en particulier ceux qui sont sans emploi et qui ne suivent ni enseignement ni formation, en mettant notamment en oeuvre la garantie pour la jeunesse;22/02/2024
52410;EPLEFPA DE PAU MONTARDON - CENTRE DE F ORMATION APPRENTIS AGRICOLES;CFAA64-SRA-V2-P1- AMÉLIORATION DE L'INSERTION PROFESSIONNELLE ET SÉCURISATION DES PARCOURS;;FSE;01/01/2015;30/06/2016;90 840,22;45 420,11;50,00%;64240 Hasparren;Aquitain;France;117 Amélioration de l'égalité d'accès à l'apprentissage tout au long de la vie pour toutes les catégories d'âges dans un cadre formel,...;22/02/2024
52510;LP CHARLES PÉGUY - CFA LE VIGEAN;"CFAVIGEAN-SRA-V1-P1 ""Projet de CFA""";;FSE;01/01/2015;30/06/2016;29 337,28;14 668,64;50,00%;33320 Eysines;Aquitain;France;117 Amélioration de l'égalité d'accès à l'apprentissage tout au long de la vie pour toutes les catégories d'âges dans un cadre formel,...;22/02/2024
52610;LIGUE POUR LA PROTECTION DES OISEAUX DELEGATION AQUITAINE;Observatoire Régional de la Migration des Oiseaux - 2015;;FEDER;01/01/2015;31/12/2015;125 533,00;40 165,00;32,00%;33140 Villenave-d'Ornon;Aquitain;France;085 Protection et amélioration de la biodiversité, protection de la nature et infrastructure verte;22/02/2024
52810;UNIVERSITE DE BORDEAUX;PROJET REGIONAL QUALITE APPRENTISSAGE;;FSE;01/01/2015;30/06/2016;5 725,00;2 862,50;50,00%;33522 Talence;Aquitain;France;117 Amélioration de l'égalité d'accès à l'apprentissage tout au long de la vie pour toutes les catégories d'âges dans un cadre formel,...;22/02/2024
52910;EPLEFPA DE PAU MONTARDON - CENTRE DE F ORMATION APPRENTIS AGRICOLES;CFAA64-SRA-V1-PROMOTION DE L'APPRENTISSAGE ;;FSE;01/01/2015;30/06/2016;24 171,14;12 085,57;50,00%;64240 Hasparren;Aquitain;France;117 Amélioration de l'égalité d'accès à l'apprentissage tout au long de la vie pour toutes les catégories d'âges dans un cadre formel,...;22/02/2024
53010;CHAMBRE DE MÉTIERS ET DE L ARTISANAT D ÉPARTEMENTALE DES PYRÉNÉES-ATLANTIQUES;ACCOMPAGNEMENT QUALITATIF DE L'APPRENTI;;FSE;01/01/2015;30/06/2016;70 746,34;35 373,17;50,00%;64000 Pau;Aquitain;France;117 Amélioration de l'égalité d'accès à l'apprentissage tout au long de la vie pour toutes les catégories d'âges dans un cadre formel,...;22/02/2024
53110;Chambre de Métiers et de l'Artisanat Interdépartementale Dordogne-Gironde - Lot-et-Garonne;Structuration du système d'information;;FSE;01/01/2015;30/06/2016;114 264,80;39 264,80;34,36%;33074 BORDEAUX CEDEX;Aquitain;France;117 Amélioration de l'égalité d'accès à l'apprentissage tout au long de la vie pour toutes les catégories d'âges dans un cadre formel,...;22/02/2024
53310;ASSO REGIONALE DES FEDERATIONS D AQUITAINE POUR LA PECHE;Plan Régional d'Actions en faveur de la sauvegarde de l'Ecrevisses à Pattes Blanches  - Tranche 2015;;FEDER;05/01/2015;31/12/2015;183 375,05;91 086,97;49,67%;33750 Beychac-et-Caillau;Aquitain;France;085 Protection et amélioration de la biodiversité, protection de la nature et infrastructure verte;22/02/2024
53510;ESTIA-ECOLE SUP TECHNOLOGIES INDUST AVANCEES CCI BAYONNE;Convaincre les jeunes de s'orienter vers des métiers via l'apprentissage ou l'entreprenariat;;IEJ;01/03/2015;30/06/2017;141 166,84;108 698,47;77,00%;64210 Bidart;Aquitain;France;103 Intégration durable sur le marché du travail des jeunes, en particulier ceux qui sont sans emploi et qui ne suivent ni enseignement ni formation, en mettant notamment en oeuvre la garantie pour la jeunesse;22/02/2024
53610;AGENCE TECHNIQUE DEPARTEMENTALE 24;e-services 24;Le présent dossier porte sur la création d'un service de cartographie numérique au sein de l'ATD24 et vise le développement du service « Gestion des collectivités ». L'objectif est de permettre aux collectivités de dialoguer avec les partenaires et les citoyens de façon moderne, en proposant des outils adaptés aux usages d'aujourd'hui et interopérables.  Il s'agit donc d'apporter aux collectivités membres de l'ATD, des nouveaux outils numériques permettant de moderniser les pratiques et ainsi de fluidifier les échanges dans la sphère publique mais aussi entre les collectivités et les citoyens.;FEDER;01/01/2015;31/12/2017;772 304,66;387 455,33;50,17%;24000 Périgueux;Aquitain;France;079 Accès aux informations du secteur public (y compris les données culturelles libres de droit en ligne, les bibliothèques numériques, les contenus numériques et le tourisme en ligne);22/02/2024
53710;AQUITAINE CULTURE;ORGANISATION DE RENCONTRES ENTRE ACTEURS ECONOMIQUES ET UN OU PLUSIEURS ARTISTES;;FSE;01/09/2016;28/02/2018;87 929,00;47 878,00;54,45%;33130 BEGLES;Aquitain;France;104 Emploi indépendant, entrepreneuriat et création d'entreprises, y compris les micro, petites et moyennes entreprises innovantes;22/02/2024
53810;CHAMBRE DE METIERS ET ARTISANAT DEPARTEMENTALE DES LANDES;INSERTION DANS L'EMPLOI DES APPRENTIS;;FSE;01/01/2015;30/06/2016;58 147,71;29 073,85;50,00%;40000 Mont-de-Marsan;Aquitain;France;117 Amélioration de l'égalité d'accès à l'apprentissage tout au long de la vie pour toutes les catégories d'âges dans un cadre formel,...;22/02/2024
53910;SUNNA DESIGN;Projet SYSTEMSOL;;FEDER;01/01/2015;31/12/2016;2 565 865,60;769 452,17;29,99%;33290 Blanquefort;Aquitain;France;064 Processus de recherche et d’innovation dans les PME (y compris systèmes de bons, processus, conception, service et innovation sociale);22/02/2024
54010;LYCEE GENERAL TECHNOLOGIQUE AGRICOLE;Favoriser l'accès à l'apprentissage des jeunes;;IEJ;01/01/2015;30/06/2017;62 000,00;47 740,00;77,00%;40180 Oeyreluy;Aquitain;France;103 Intégration durable sur le marché du travail des jeunes, en particulier ceux qui sont sans emploi et qui ne suivent ni enseignement ni formation, en mettant notamment en oeuvre la garantie pour la jeunesse;22/02/2024
54110;UIMM AQUITAINE;PMI en AQT : Projets-Mutations-Innovation en Aquitaine;;FEDER;01/03/2015;31/12/2017;415 708,16;160 217,61;38,54%;33075 Bruges;Aquitain;France;066 Services d'appui avancé aux PME et groupes de PME (y compris services de gestion, de commercialisation et de conception);22/02/2024
54310;ASS REG DE FORMATION PROF INDUSTRIE DU BOIS;CFAIB - SRA - V1 - P1 - la chaîne numérique pédagogique;;FSE;01/01/2015;30/06/2016;16 079,20;8 039,60;50,00%;40180 Seyresse;Aquitain;France;117 Amélioration de l'égalité d'accès à l'apprentissage tout au long de la vie pour toutes les catégories d'âges dans un cadre formel,...;22/02/2024
54710;CA du Pays Basque;Elaboration de la stratégie urbaine intégrée en faveur des quartiers politique de la ville de l'ACBA;;FEDER;01/07/2014;30/06/2015;111 811,76;28 965,01;25,91%;64185 BAYONNE CEDEX;Aquitain;France;097 Initiatives de développement local menées par les acteurs locaux dans les zones urbaines et rurales;22/02/2024
54810;L'EAU D'ICI;Amélioration du franchissement piscicole du seuil d'Haitzé à Ustaritz;;FEDER;01/04/2014;31/12/2015;522 735,00;58 397,00;11,17%;64547 Ustaritz;Aquitain;France;085 Protection et amélioration de la biodiversité, protection de la nature et infrastructure verte;22/02/2024
54910;SEM HELIOPARC PAU PYRENEES;Détection et accompagnement des jeunes entreprises innovantes - 2015;;FEDER;01/01/2015;31/12/2015;277 265,00;50 000,00;18,03%;64000 Pau;Aquitain;France;067 Développement commercial des PME, soutien à l’esprit d’entreprise et à l’incubation (y compris le soutien aux entreprises issues de l'essaimage);22/02/2024
55410;CENTRE D'ETUDE ET DE DECOUVERTE DU PATRIMOINE DU HAUT PERIGORD;Education à l'environnement et sensibilisation aux enjeux biodiversité en Périgord Limousin - 2014;;FEDER;01/01/2014;31/12/2014;304 440,94;59 651,28;19,59%;24360 Varaignes;Aquitain;France;085 Protection et amélioration de la biodiversité, protection de la nature et infrastructure verte;22/02/2024
55510;Hafner Perigord;INVESTISSEMENTS MATERIELS et LOGICIELS ;;FEDER;02/06/2014;30/04/2016;1 265 165,36;77 122,18;6,10%;24360 SAINT BARTHELEMY DE BUSSIERE;Aquitain;France;001 Investissement productif générique dans les petites et moyennes entreprises («PME»);22/02/2024
55810;UNIVERSITE DE BORDEAUX;Salle mixte Rayons X/IRM expérimentale - MUSIC EXPE ;;FEDER;01/07/2015;30/06/2016;2 349 783,99;1 249 885,10;53,19%;33318 Pessac;Aquitain;France;058 Infrastructures de recherche et d’innovation (publiques);22/02/2024
57810;Région Nouvelle-Aquitaine;Dématérialisation et sécurisation de l'émargement des stagiaires de la Form Pro (E MARGOS);;FSE;01/02/2014;01/12/2019;660 459,23;330 229,61;50,00%;33077 BORDEAUX CEDEX;Aquitain;France;117 Amélioration de l'égalité d'accès à l'apprentissage tout au long de la vie pour toutes les catégories d'âges dans un cadre formel,...;22/02/2024
59410;INCUBATEUR POUR LES ENTREPRENEURES INNOVANTES EN NOUVELLE-AQUITAINE;Incubateur d'entreprises au féminin et sensibilisation à l'entrepreneuriat féminin;;FSE;01/01/2015;31/12/2015;140 767,82;31 428,17;22,33%;33100 BORDEAUX;Aquitain;France;104 Emploi indépendant, entrepreneuriat et création d'entreprises, y compris les micro, petites et moyennes entreprises innovantes;22/02/2024
59510;CYCLES ET MANIVELLES;Maison du Vélo et des Mobilités;;FSE;01/07/2015;30/06/2016;86 100,00;16 000,00;18,58%;33039 Bègles;Aquitain;France;104 Emploi indépendant, entrepreneuriat et création d'entreprises, y compris les micro, petites et moyennes entreprises innovantes;22/02/2024
65010;Bonzai;BonzaÏ, la mobilité apprenante;;FSE;01/09/2015;30/06/2016;22 270,00;16 000,00;71,85%;64470 ALOS SIBAS ABENSE;Aquitain;France;104 Emploi indépendant, entrepreneuriat et création d'entreprises, y compris les micro, petites et moyennes entreprises innovantes;22/02/2024
65110;ESTIA-ECOLE SUP TECHNOLOGIES INDUST AVANCEES CCI BAYONNE;Programme de ressourcement scientifique COMPOSITADOUR 2015;;FEDER;01/01/2015;31/12/2015;745 921,77;246 195,69;33,01%;64210 Bidart;Aquitain;France;062 Transfert de technologies et coopération entre universités et entreprises, principalement au profit des PME;22/02/2024
67210;RICOCHET SONORE;RICOCHET SONORE, actions musicales de proximité;;FSE;01/09/2015;31/08/2016;58 471,00;16 000,00;27,36%;33000 BORDEAUX;Aquitain;France;104 Emploi indépendant, entrepreneuriat et création d'entreprises, y compris les micro, petites et moyennes entreprises innovantes;22/02/2024
67910;ASS BORDEAUX TECHNOWEST;Detection et accompagnement de jeunes entreprises innovantes  2015 ;;FEDER;01/01/2015;31/12/2015;1 370 474,00;365 000,00;26,63%;33700 Mérignac;Aquitain;France;067 Développement commercial des PME, soutien à l’esprit d’entreprise et à l’incubation (y compris le soutien aux entreprises issues de l'essaimage);22/02/2024
68410;MARCHES PUBLICS D'AQUITAINE;MODERN'APP;Modernisation de la plateforme et MPS;FEDER;01/10/2014;01/10/2017;437 724,53;218 862,27;50,00%;33000 Bordeaux;Aquitain;France;078 Services et applications d’administration en ligne (y compris passation des marchés publics en ligne, mesures dans le domaine des TIC soutenant la réforme de l’administration publique, mesures dans le domaine de la cybersécurité.....);22/02/2024
68510;ASSOCIATION UNION DES ACTEURS DE L ECO NOMIE SOCIALE ET SOLIDAIRE SUD-GIRONDE;Pour une économie locale durable en milieu rural;;FSE;01/07/2014;31/12/2015;90 885,00;16 909,00;18,60%;33210 LANGON;Aquitain;France;104 Emploi indépendant, entrepreneuriat et création d'entreprises, y compris les micro, petites et moyennes entreprises innovantes;22/02/2024
68810;ASSOCIATION BORDEAUX UNITEC;Détection et accompagnement d'entreprises innovantes - 2015.;;FEDER;01/01/2015;31/12/2015;741 347,31;239 431,08;32,30%;33600 Pessac;Aquitain;France;067 Développement commercial des PME, soutien à l’esprit d’entreprise et à l’incubation (y compris le soutien aux entreprises issues de l'essaimage);22/02/2024
69210;AQUITAINE CAP METIERS;FORMATION ET ORIENTATION POUR TOUS - AQUITAINE CAP METIERS 2015;;FSE;01/01/2015;31/12/2015;2 294 859,43;993 859,43;43,31%;33318 Pessac;Aquitain;France;117 Amélioration de l'égalité d'accès à l'apprentissage tout au long de la vie pour toutes les catégories d'âges dans un cadre formel,...;22/02/2024
69310;KEOLIS BORDEAUX MÉTROPOLE;SMARTRAM ;;FEDER;15/04/2015;31/12/2015;548 899,10;137 224,90;25,00%;33000 Bordeaux;Aquitain;France;079 Accès aux informations du secteur public (y compris les données culturelles libres de droit en ligne, les bibliothèques numériques, les contenus numériques et le tourisme en ligne);22/02/2024
70210;COMMUNAUTÉ DE COMMUNES DU PAYS FOYEN;Ingénierie Stratégie Urbaine Intégrée;;FEDER;01/07/2014;30/06/2015;73 149,00;36 551,00;49,97%;33220 Pineuilh;Aquitain;France;097 Initiatives de développement local menées par les acteurs locaux dans les zones urbaines et rurales;22/02/2024
70310;CENTRE DEPARTEMENTAL DE L ELEVAGE OVIN COOPERATIVE;GENOPYR;;FEDER;01/01/2015;31/12/2017;717 216,61;285 580,29;39,82%;64130 Ordiarp;Aquitain;France;061 Activités de recherche et d’innovation dans les centres de recherche privés, y compris la mise en réseau;22/02/2024
70810;Moon Harbour;Création d'une distillerie de whisky : Investissements matériels et immobiliers;;FEDER;01/03/2015;31/12/2017;3 042 598,00;600 000,00;19,72%;33063 Bordeaux;Aquitain;France;001 Investissement productif générique dans les petites et moyennes entreprises («PME»);22/02/2024
70910;Région Nouvelle-Aquitaine;DEPENSES DE REMUNERATION DES PERSONNELS AFFECTES AU PO FEDER-FSE 2014-2020;;FSE;01/01/2014;31/12/2016;1 077 488,23;538 744,11;50,00%;33077 BORDEAUX CEDEX;Aquitain;France;121 Préparation, mise en oeuvre, suivi et contrôle;22/02/2024
71010;ISOCOMBLE;CHEQUE TRANSFORMATION NUMERIQUE - ISOCOMBLE;;FEDER;01/07/2015;28/04/2016;234 210,00;125 919,32;53,76%;47200 Marmande;Aquitain;France;082 Services et applications TIC pour les PME (y compris le commerce électronique, le e-Business et les processus d’entreprise en réseau), les laboratoires vivants, les entrepreneurs web et les start-ups en matière de TIC;22/02/2024
71410;SAUVEGARDE ENFANCE ADULTE PAYS BASQUE -SEAPB-CET GRAND VOILE ET MOTEURS;Formation des jeunes sous placement judiciaire ou administratif;;FSE;01/01/2015;31/12/2015;225 678,48;49 134,48;21,77%;64102 Bayonne;Aquitain;France;117 Amélioration de l'égalité d'accès à l'apprentissage tout au long de la vie pour toutes les catégories d'âges dans un cadre formel,...;22/02/2024
105410;ASS GAM GROUPE ANIMATION MUSICALE;Création d'ateliers de pratiques artistiques collectives auprès d'un public élargi :monde du travail;;FSE;01/10/2015;30/09/2016;41 306,00;16 000,00;38,74%;64000 Pau;Aquitain;France;104 Emploi indépendant, entrepreneuriat et création d'entreprises, y compris les micro, petites et moyennes entreprises innovantes;22/02/2024
105910;ESPACE ECONOMIE EMPLOI DU BERGERACOIS;Espace Métiers Aquitaine (EMA) - Création : 2 sites (Bergerac et Lalinde);;FSE;01/01/2015;31/12/2016;65 266,04;32 606,91;49,96%;24100 Bergerac;Aquitain;France;117 Amélioration de l'égalité d'accès à l'apprentissage tout au long de la vie pour toutes les catégories d'âges dans un cadre formel,...;22/02/2024
106610;CMNAUTE D AGGLOMERATION DU GRAND VILLENEUVOIS;Ingénierie SUI;;FEDER;01/07/2014;30/06/2015;66 040,00;26 416,00;40,00%;47440 Casseneuil;Aquitain;France;097 Initiatives de développement local menées par les acteurs locaux dans les zones urbaines et rurales;22/02/2024
109310;MISSION LOCALE DU PAYS VILLENEUVOIS;Espace Métiers Aquitaine (EMA) - Création : 1 site (Villeneuve sur Lot);;FSE;09/02/2015;31/12/2016;122 649,89;58 179,89;47,44%;47300 Villeneuve-sur-Lot;Aquitain;France;117 Amélioration de l'égalité d'accès à l'apprentissage tout au long de la vie pour toutes les catégories d'âges dans un cadre formel,...;22/02/2024
109610;MIGRADOUR;Suivi et évaluation 2014-2015 des poissons migrateurs Adour et côtiers;;FEDER;01/01/2014;31/12/2016;727 149,20;213 027,42;29,30%;64290 GAN;Aquitain;France;085 Protection et amélioration de la biodiversité, protection de la nature et infrastructure verte;22/02/2024
112910;CA PAU BEARN PYRENEES;Ingenierie pour l'élaboration de la Stratégie Urbaine Intégrée;;FEDER;01/07/2014;30/06/2015;134 996,26;35 696,43;26,44%;64000 Pau;Aquitain;France;097 Initiatives de développement local menées par les acteurs locaux dans les zones urbaines et rurales;22/02/2024
113210;RESEAU ASSOCIATIF POUR LE DEVELOPPEMENT ET LA SOLIDARITE INTERNATIONALE NOUVELLE-AQUITAINE;Mise en place d'une offre de formation continue en éducation à la citoyenneté mondiale;;FSE;01/10/2015;30/09/2016;31 070,00;16 000,00;51,50%;33600 PESSAC;Aquitain;France;104 Emploi indépendant, entrepreneuriat et création d'entreprises, y compris les micro, petites et moyennes entreprises innovantes;22/02/2024
115910;ITERG - INSTITUT DES CORPS GRAS;Ressourcement scientifique et technique 2015-2016 : chimie verte et nutrition/santé;;FEDER;01/01/2015;31/12/2016;1 770 238,00;568 398,02;32,11%;33600 Pessac;Aquitain;France;061 Activités de recherche et d’innovation dans les centres de recherche privés, y compris la mise en réseau;22/02/2024
121010;CENTRE D INFORMATION SUR LES DROITS DE S FEMMES ET DES FAMILLES DE LA GIRONDE;Renforcer et Développer l'entrepreneuriat féminin;;FSE;01/01/2015;31/12/2015;149 101,00;70 000,00;46,95%;33000 Bordeaux;Aquitain;France;104 Emploi indépendant, entrepreneuriat et création d'entreprises, y compris les micro, petites et moyennes entreprises innovantes;22/02/2024
124210;ASSOCIATION RIZIBIZI;Structuration de la recyclerie Rizibizi;;FSE;01/01/2016;31/08/2016;51 983,00;16 000,00;30,78%;33370 Salleboeuf;Aquitain;France;104 Emploi indépendant, entrepreneuriat et création d'entreprises, y compris les micro, petites et moyennes entreprises innovantes;22/02/2024
127510;GIP DU GRAND PROJET DES HAUT DE GARONNE;Structuration d'un pôle de coopération économique sur la Rive Droite ( BUTTINIERE- Lormont);;FSE;01/03/2015;31/03/2016;51 670,16;28 183,72;54,55%;33150 Cenon;Aquitain;France;104 Emploi indépendant, entrepreneuriat et création d'entreprises, y compris les micro, petites et moyennes entreprises innovantes;22/02/2024
132310;Mission locale Jeunes Pau;Espace Métiers Aquitaine (EMA) - Création : 3 sites (Pau, Lons et Bénéjacq);;FSE;09/02/2015;31/12/2016;220 422,00;110 211,00;50,00%;64000 PAU;Aquitain;France;117 Amélioration de l'égalité d'accès à l'apprentissage tout au long de la vie pour toutes les catégories d'âges dans un cadre formel,...;22/02/2024
134410;ARIAL INDUSTRIE;Programme d'investissement matériel en vue de la mise en place d'une nouvelle ligne de production;;FEDER;30/06/2014;31/12/2017;4 034 331,30;802 595,61;19,89%;64121 Serres-Castet;Aquitain;France;001 Investissement productif générique dans les petites et moyennes entreprises («PME»);22/02/2024
134510;MISSION LOCALE DES LANDES;Espace Métiers Aquitaine (EMA) - Création : 1 site (Dax);;FSE;04/05/2015;31/12/2016;55 785,36;16 805,36;30,13%;40100 Dax;Aquitain;France;117 Amélioration de l'égalité d'accès à l'apprentissage tout au long de la vie pour toutes les catégories d'âges dans un cadre formel,...;22/02/2024
145910;R 2 JEUX (RECYCLAGE DE JEUX);R'2 Jeux : recycler devient un jeu d'enfant;;FSE;01/07/2015;30/06/2016;32 640,00;16 000,00;49,02%;33000 Bordeaux;Aquitain;France;104 Emploi indépendant, entrepreneuriat et création d'entreprises, y compris les micro, petites et moyennes entreprises innovantes;22/02/2024
151310;2 MORO;Projet NPF - développement d'un logiciel multi-cibles dédié à la maintenance aéronautique - phase 1 ;;FEDER;01/10/2014;30/06/2016;977 855,21;199 842,92;20,44%;64210 BIDART;Aquitain;France;064 Processus de recherche et d’innovation dans les PME (y compris systèmes de bons, processus, conception, service et innovation sociale);22/02/2024
151710;CMNAUTE D AGGLO LE GRAND PERIGUEUX;Elaboration de la Startégie Urbaine Intégrée du Grand Périgueux;;FEDER;01/07/2014;30/06/2015;96 000,00;38 400,00;40,00%;24000 Périgueux;Aquitain;France;097 Initiatives de développement local menées par les acteurs locaux dans les zones urbaines et rurales;22/02/2024
151810;MISSION LOCALE AVENIR JEUNES PAYS BASQUE;Espace Métiers Aquitaine (EMA) - Création : 1 site  (Anglet);;FSE;16/03/2015;31/12/2016;119 670,61;42 701,61;35,68%;64600 Anglet;Aquitain;France;117 Amélioration de l'égalité d'accès à l'apprentissage tout au long de la vie pour toutes les catégories d'âges dans un cadre formel,...;22/02/2024
151910;E-TIC DORDOGNE;Création d'un réseau de tiers-lieux, sur le territoire de la Dordogne;;FEDER;01/07/2014;31/12/2017;328 531,76;102 346,21;31,15%;24000 Périgueux;Aquitain;France;082 Services et applications TIC pour les PME (y compris le commerce électronique, le e-Business et les processus d’entreprise en réseau), les laboratoires vivants, les entrepreneurs web et les start-ups en matière de TIC;22/02/2024
152010;HAND2HAND;LUDOSENS : partager des jeux qui font grandir;;FSE;01/09/2015;31/08/2016;45 697,00;16 000,00;35,01%;33730 Noaillan;Aquitain;France;104 Emploi indépendant, entrepreneuriat et création d'entreprises, y compris les micro, petites et moyennes entreprises innovantes;22/02/2024
152110;COMMUNAUTÉ DES COMMUNES DES LUYS DE BÉ ARN;Construction d'une pépinière d'entreprises;;FEDER;15/09/2015;15/11/2016;1 471 304,42;317 548,19;21,58%;64450 Miossens-Lanusse;Aquitain;France;067 Développement commercial des PME, soutien à l’esprit d’entreprise et à l’incubation (y compris le soutien aux entreprises issues de l'essaimage);22/02/2024
152210;BARTHOUIL;"Extension atelier ""Canard"" : Investissements matériels et immobiliers";;FEDER;01/09/2014;31/03/2017;2 197 837,00;450 000,00;20,47%;40300 Peyrehorade;Aquitain;France;001 Investissement productif générique dans les petites et moyennes entreprises («PME»);22/02/2024
152310;ASSOCIATION LAGUNARTE;Centre culturel de rencontre à La Bastide Clairence;;FSE;01/11/2015;31/10/2016;40 707,00;16 000,00;39,31%;64240 Isturits;Aquitain;France;104 Emploi indépendant, entrepreneuriat et création d'entreprises, y compris les micro, petites et moyennes entreprises innovantes;22/02/2024
152810;ASS MISSION LOCALE DES DEUX RIVES;Espace Métiers Aquitaine (EMA) - Création : 1 site (Cadillac);;FSE;01/09/2015;31/12/2016;49 740,46;20 351,46;40,92%;33410 Cadillac;Aquitain;France;117 Amélioration de l'égalité d'accès à l'apprentissage tout au long de la vie pour toutes les catégories d'âges dans un cadre formel,...;22/02/2024
153110;AGEC - AQUITAINE GROUPEMENT EMPLOYEURS CULTURE;Soutien aux transferts de savoir-faire dans la filière des musiques actuelles et des variétés;;FSE;01/06/2015;30/06/2016;25 000,00;12 500,00;50,00%;33800 Bordeaux;Aquitain;France;104 Emploi indépendant, entrepreneuriat et création d'entreprises, y compris les micro, petites et moyennes entreprises innovantes;22/02/2024
153210;ASS MUSIQUES DE NUIT DIFFUSION;le FORUM-usage des outils numériques pour la création d'activité culturelle et artistique;;FSE;01/01/2015;31/12/2016;746 680,00;368 676,00;49,38%;33150 Cenon;Aquitain;France;104 Emploi indépendant, entrepreneuriat et création d'entreprises, y compris les micro, petites et moyennes entreprises innovantes;22/02/2024
153310;BORDEAUX METROPOLE;Amélioration énergétique du Crématorium Pessac-Mérignac;;FEDER;10/01/2014;30/12/2017;831 887,00;249 566,00;30,00%;33700 Mérignac;Aquitain;France;068 Efficacité énergétique et projets de démonstration dans les PME et mesures d’accompagnement;22/02/2024
153410;ASS TERRITOIRES ET INNOVATION SOCIALE - ATIS;Développement de l'incubateur d'innovation sociale;;FSE;01/01/2015;31/12/2015;85 629,56;51 536,30;60,19%;33600 Pessac;Aquitain;France;104 Emploi indépendant, entrepreneuriat et création d'entreprises, y compris les micro, petites et moyennes entreprises innovantes;22/02/2024
153510;BORDEAUX METROPOLE;Rénovation d'un bâtiment technique et administratif basse consommation (CGEP 8);;FEDER;01/01/2014;31/10/2016;2 004 176,00;601 252,00;30,00%;33000 Bordeaux;Aquitain;France;013 Rénovation en vue d'accroître l'efficacité énergétique des infrastructures publiques, projets de démonstration et actions de soutien;22/02/2024
153610;INSERTION EMPLOI BEARN ADOUR;Espace Métiers Aquitaine (EMA) - Création : 1 site (Morlaas);;FSE;09/02/2015;31/12/2016;82 653,56;29 501,18;35,69%;64160 Lombia;Aquitain;France;117 Amélioration de l'égalité d'accès à l'apprentissage tout au long de la vie pour toutes les catégories d'âges dans un cadre formel,...;22/02/2024
155710;CASENAVE;CHEQUE TIC SAS CASENAVE;;FEDER;01/10/2015;30/06/2016;43 779,20;9 992,51;22,82%;33700 Mérignac;Aquitain;France;082 Services et applications TIC pour les PME (y compris le commerce électronique, le e-Business et les processus d’entreprise en réseau), les laboratoires vivants, les entrepreneurs web et les start-ups en matière de TIC;22/02/2024
157510;TRANSTECH AQUITAINE;Detection et accompagnement des inventeurs- 2015;;FEDER;01/01/2015;31/12/2015;127 902,00;60 000,00;46,91%;33700 Mérignac;Aquitain;France;067 Développement commercial des PME, soutien à l’esprit d’entreprise et à l’incubation (y compris le soutien aux entreprises issues de l'essaimage);22/02/2024
158910;DEAL INFORMATIQUE;Deal 2020 - un logiciele de gestion nouvelle génération;;FEDER;01/09/2015;30/03/2018;2 430 586,78;752 197,02;30,95%;33170 Gradignan;Aquitain;France;082 Services et applications TIC pour les PME (y compris le commerce électronique, le e-Business et les processus d’entreprise en réseau), les laboratoires vivants, les entrepreneurs web et les start-ups en matière de TIC;22/02/2024
160210;SYND MIXTE DU PARC NATUREL REGIONAL PERIGORD LIMOUSIN;Conservation des milieux aquatiques et des zones humides - Parc du Périgord Limousin - 2015;;FEDER;01/01/2015;31/12/2015;71 920,00;26 198,00;36,43%;24450 Saint-Pierre-de-Frugie;Aquitain;France;085 Protection et amélioration de la biodiversité, protection de la nature et infrastructure verte;22/02/2024
160510;INSTITUT NATIONAL DE RECHERCHE INFORMATIQUE ET EN AUTOMATIQUE - INRIA;DomAssist500 : habitat connecté pour le maintien à domicile des seniors aquitains;;FEDER;01/03/2015;31/08/2018;826 561,00;412 020,00;49,85%;33400 Talence;Aquitain;France;081 Solutions TIC relevant le défi du vieillissement actif et en bonne santé et services et applications de santé en ligne (y compris les soins en ligne et l’assistance à l’autonomie à domicile);22/02/2024
160710;GROUPEMENT DE DEFENSE SANITAIRE AQUACOLE NOUVELLE AQUITAINE;ACIVIR 2 Approche intégrée pour la prévention des risques potentiels associés à un nouvel iridovirus;"Il s'agit d'un programme de R&amp;D visant pour les professionnels de la filière acipenséricole à se doter de moyens de connaissance et de traitement sanitaires efficaces contre un nouveau virus dont sont atteints certains esturgeons. Ce projet contribuera à améliorer l'état sanitaire des esturgeons, et donc leur production avec une optique de meilleure maitrise de l'impact environnemental des activités de la filière, objectif de la thématique ""agriculture de précision et éco-efficience"" de la spécialisation intelligente en Aquitaine.";FEDER;01/09/2015;31/08/2018;178 337,23;92 012,18;51,59%;40000 Mont-de-Marsan;Aquitain;France;061 Activités de recherche et d’innovation dans les centres de recherche privés, y compris la mise en réseau;22/02/2024
161410;INSTITUTION ADOUR;Aménagement d'un nouveau dispositif de franchissement piscicole au seuil du pont d'Aire-sur-l'Adour;Le seuil en aval du pont d'Aire-sur-l'Adour, sous la responsabilité de l'Institution Adour, présente des difficultés de franchissement piscicole. Le projet d'aménagement du seuil consiste à aménager, en rive droite, un dispositif de type rampe en enrochements munis de singularités régulièrement réparties, ainsi qu'une nouvelle passe à embarcations. Il permettra, notamment, l'amélioration de la circulation des poissons migrateurs amphihalins et la restauration de la continuité écologique sur l'Adour.;FEDER;01/01/2015;31/12/2018;224 860,09;65 716,01;29,23%;40800 Aire-sur-l'Adour;Aquitain;France;085 Protection et amélioration de la biodiversité, protection de la nature et infrastructure verte;22/02/2024
162110;LA DOUCE;"Projet de R&amp;D ""POUCH""";;FEDER;16/09/2014;03/10/2016;957 255,00;200 000,00;20,89%;40430 Sore;Aquitain;France;064 Processus de recherche et d’innovation dans les PME (y compris systèmes de bons, processus, conception, service et innovation sociale);22/02/2024
162210;CYCOM INTERNATIONAL;CHEQUE TRANSFORMATION NUMERIQUE CYCOM INTERNATIONAL;"Cycom International doté d'un réseau physique de 150 points de vente, souhaite réaliser le passage au multi-canal afin d'assurer sa pérennité et  son développement. Cette société projette , à terme, de développer une nouvelle approche de distribution de type ""Web to Store"" en complément du  trafic en magasin physique,  et pour répondre à une gestion du Besoin en Fonds de Roulement de plus en plus complexe (mises en stock pour obtenir des conditions financières intéressantes).";FEDER;10/07/2015;31/12/2018;326 340,74;134 433,71;41,19%;47150 Savignac-sur-Leyze;Aquitain;France;082 Services et applications TIC pour les PME (y compris le commerce électronique, le e-Business et les processus d’entreprise en réseau), les laboratoires vivants, les entrepreneurs web et les start-ups en matière de TIC;22/02/2024
162310;INSTITUT NATIONAL DE LA RECHERCHE AGRONOMIQUE;Améliorer la performance économique et réduire l'impact environnemental de la Filière Foie Gras;;FEDER;01/01/2014;31/12/2015;1 192 910,00;281 251,00;23,58%;40280 Benquet;Aquitain;France;060 Activités de recherche et d’innovation dans les centres de recherche publics et les centres de compétence, y compris la mise en réseau;22/02/2024
163410;LE LABA;EURODEV, formation des dirigeants de l'Economie Sociale et Solidaire du secteur de la Culturel ;;FSE;01/09/2015;31/08/2016;63 701,44;21 055,39;33,05%;33150 Cenon;Aquitain;France;104 Emploi indépendant, entrepreneuriat et création d'entreprises, y compris les micro, petites et moyennes entreprises innovantes;22/02/2024
165210;COMMUNAUTÉ D AGGLOMÉRATION BERGERACOIS E;Construction du Pôle Petite Enfance;;FEDER;01/01/2014;30/11/2016;2 021 974,88;636 517,69;31,48%;24100 Bergerac;Aquitain;France;073 Soutien aux entreprises sociales (PME);22/02/2024
166910;COMPAGNIE L'ESCALIER QUI MON TE;ACTES (Attractivité Culturelle des Territoires par l'Économie Solidaire);;FSE;01/01/2016;31/12/2016;22 902,00;16 000,00;69,86%;47000 Agen;Aquitain;France;104 Emploi indépendant, entrepreneuriat et création d'entreprises, y compris les micro, petites et moyennes entreprises innovantes;22/02/2024
168010;Institution Adour;Gestion et restauration des poissons migrateurs du bassin de l'Adour - 2014-2015;;FEDER;01/01/2014;31/12/2015;328 951,88;93 595,45;28,45%;40025 MONT DE MARSAN CEDEX;Aquitain;France;085 Protection et amélioration de la biodiversité, protection de la nature et infrastructure verte;22/02/2024
168410;CA PAU BEARN PYRENEES;AMENAGEMENT D'UNE VOIE VERTE SUR LES BERGES DU GAVE DE PAU;Le projet de voie verte le long des berges du Gave de Pau permet de développer l'usage du vélo, en valorisant une continuité écologique majeure du territoire. Il s'inscrit dans le cadre du Plan de Déplacements Urbains (PDU) adopté en 2004 et actuellement en cours de révision. Cet itinéraire de voie verte est par ailleurs inscrit à l'itinéraire départemental Pyrénées-Gave-Adour qui relie Lestelle-Bétharam à Bayonne, ainsi qu'au Schéma régional des véloroutes et voies vertes d'Aquitaine 2014-2024. La voie verte comprend l'aménagement de 7 km de voies en site propre ainsi que la création de 2 franchissements sur le gave de Pau et la restauration d'une passerelle sur le Gave à Billère.;FEDER;01/01/2014;31/12/2017;1 408 994,00;515 637,00;36,60%;64000 PAU;Aquitain;France;090 Pistes cyclables et chemins piétonniers;22/02/2024
168510;SOCIETE VALMY DEFENSE 41;Création d'une chaufferie bois et d'un réseau de chaleur pour la Ville de BAYONNE;;FEDER;01/10/2014;30/06/2017;7 495 351,99;1 956 261,02;26,10%;64100 Bayonne;Aquitain;France;011 Énergies renouvelables: énergie de biomasse;22/02/2024
169110;EPTA FRANCE SAS;Développement d'un meuble frigorifique à énergie positive;;FEDER;07/05/2015;31/12/2018;1 891 787,04;472 084,97;24,95%;64700 Hendaye;Aquitain;France;064 Processus de recherche et d’innovation dans les PME (y compris systèmes de bons, processus, conception, service et innovation sociale);22/02/2024
171110;Nutrikeo consulting;PLAN'EAT (Programme Ludique d'Apprentissage à la Nutrition - Education à la Nutrition par les TIC);;FEDER;15/04/2015;31/12/2017;713 178,00;190 000,00;26,64%;33600 PESSAC;Aquitain;France;064 Processus de recherche et d’innovation dans les PME (y compris systèmes de bons, processus, conception, service et innovation sociale);22/02/2024
171610;ETS JEAN SANSAN;Investissements matériels et immobiliers : Modernisation et extension de l'outil de séchage.;;FEDER;01/02/2015;30/06/2017;2 936 020,21;465 202,12;15,84%;47600 Nérac;Aquitain;France;001 Investissement productif générique dans les petites et moyennes entreprises («PME»);22/02/2024
171710;C2R;Chèque transformation numérique - C2R;;FEDER;01/05/2015;31/03/2020;35 000,00;10 000,00;28,57%;47800 Miramont-de-Guyenne;Aquitain;France;082 Services et applications TIC pour les PME (y compris le commerce électronique, le e-Business et les processus d’entreprise en réseau), les laboratoires vivants, les entrepreneurs web et les start-ups en matière de TIC;22/02/2024
171810;Coop & Bât;"Tester et reussir son projet de création d'entreprise dans la  CAE COOP&amp;BAT - 2015";;FSE;01/01/2015;31/12/2015;204 131,00;76 394,00;37,42%;33310 LORMONT;Aquitain;France;104 Emploi indépendant, entrepreneuriat et création d'entreprises, y compris les micro, petites et moyennes entreprises innovantes;22/02/2024
172010;Applied Technologies Internet;"Projet R&amp;D ""Mobile &amp; Multi-device""";;FEDER;11/02/2015;10/02/2017;1 558 092,00;358 361,00;23,00%;33700 MERIGNAC;Aquitain;France;064 Processus de recherche et d’innovation dans les PME (y compris systèmes de bons, processus, conception, service et innovation sociale);22/02/2024
172110;MISSION LOCALE JEUNES DES TERRITOIRES DE MOURENX-OLORON-ORTHEZ;Esapce Métiers Aquitaine (EMA) - création : 2 sites (Mourenx et Orthez);;FSE;09/02/2015;31/12/2016;174 721,00;65 127,00;37,27%;64150 Mourenx;Aquitain;France;117 Amélioration de l'égalité d'accès à l'apprentissage tout au long de la vie pour toutes les catégories d'âges dans un cadre formel,...;22/02/2024
173010;FRANCE ACTIVE AQUITAINE;Animation du Pole ESS et accompagnement / suivi des structures pour une expertise financière ;;FSE;01/01/2015;31/12/2015;323 345,00;39 485,00;12,21%;33000 BORDEAUX;Aquitain;France;104 Emploi indépendant, entrepreneuriat et création d'entreprises, y compris les micro, petites et moyennes entreprises innovantes;22/02/2024
173210;CHAMBRE DE METIERS ET DE L'ARTISANAT DE REGION NOUVELLE AQUITAINE;CHAMBRE NUMERIQUE;NC;FEDER;01/07/2015;30/06/2020;1 200 000,00;600 000,00;50,00%;33000 BORDEAUX;Aquitain;France;082 Services et applications TIC pour les PME (y compris le commerce électronique, le e-Business et les processus d’entreprise en réseau), les laboratoires vivants, les entrepreneurs web et les start-ups en matière de TIC;22/02/2024
173910;COPELECTRONIC;Construction d'une nouvelle usine;;FEDER;01/01/2016;31/12/2016;3 009 716,23;601 943,25;20,00%;64990 Saint-Pierre-d'Irube;Aquitain;France;001 Investissement productif générique dans les petites et moyennes entreprises («PME»);22/02/2024
174410;EPLEFPA DU PERIGORD LYCEE AGRI DEP COULOUNIEIX CDFAA;Développement de l'apprentissage;;FSE;01/01/2015;30/06/2016;14 000,00;7 000,00;50,00%;24660 Coulounieix-Chamiers;Aquitain;France;117 Amélioration de l'égalité d'accès à l'apprentissage tout au long de la vie pour toutes les catégories d'âges dans un cadre formel,...;22/02/2024
174510;CTRE NATIONAL DE LA RECHERCHE SCIENTIF IQUE - CNRS AQUITAINE;MicroCorSuperRes: Microscopie corrélative 3D photonique et électronique à haute résolution;;FEDER;01/01/2016;31/12/2018;1 550 000,00;850 000,00;54,84%;33000 Bordeaux;Aquitain;France;060 Activités de recherche et d’innovation dans les centres de recherche publics et les centres de compétence, y compris la mise en réseau;22/02/2024
174710;BIOLOKLOCK;CHEQUE TIC BIOLOKLOCK;;FEDER;24/06/2015;30/04/2016;15 325,39;8 300,15;54,16%;47360 Montpezat;Aquitain;France;082 Services et applications TIC pour les PME (y compris le commerce électronique, le e-Business et les processus d’entreprise en réseau), les laboratoires vivants, les entrepreneurs web et les start-ups en matière de TIC;22/02/2024
174810;COOPÉRATIVE D'ACTIVITÉS ET D'EMPLOI 33 COOP'ALPHA;Tester et reussir son projet de création d'entreprise dans une CAE COOP ALFA-2015;;FSE;01/01/2015;31/12/2015;456 187,00;160 149,00;35,11%;33310 Lormont;Aquitain;France;104 Emploi indépendant, entrepreneuriat et création d'entreprises, y compris les micro, petites et moyennes entreprises innovantes;22/02/2024
174910;FRANCE FLEURS;Chéque transformation numérique France Fleurs;;FEDER;01/10/2015;01/09/2016;40 304,80;14 600,72;36,23%;33800 Bordeaux;Aquitain;France;082 Services et applications TIC pour les PME (y compris le commerce électronique, le e-Business et les processus d’entreprise en réseau), les laboratoires vivants, les entrepreneurs web et les start-ups en matière de TIC;22/02/2024
410910;FEDERATION REGIONALE MAISONS FAMILIALES RURALES AQUITAINE;Accroître le nombre et la qualité des contrats d'apprentissage dans le CFA MFR Aquitaine;;FSE;01/01/2015;30/06/2016;18 300,00;9 150,00;50,00%;33370 Loupes;Aquitain;France;117 Amélioration de l'égalité d'accès à l'apprentissage tout au long de la vie pour toutes les catégories d'âges dans un cadre formel,...;22/02/2024
411010;ASS POUR DROIT A L INITIATIVE ECONOMIQ UE - ADIE;CREAJEUNE AQUITAINE création d'entreprise par un public jeunes éloignés de l'emploi;;FSE;01/01/2015;31/12/2015;80 815,00;30 000,00;37,12%;33310 Lormont;Aquitain;France;104 Emploi indépendant, entrepreneuriat et création d'entreprises, y compris les micro, petites et moyennes entreprises innovantes;22/02/2024
411110;STE INDUSTRIELLE TUYAUTERIE CHAUDRONNE RIE;CHEQUE TIC  SITC;;FEDER;01/10/2015;31/03/2016;20 800,00;10 000,00;48,08%;64150 Mourenx;Aquitain;France;082 Services et applications TIC pour les PME (y compris le commerce électronique, le e-Business et les processus d’entreprise en réseau), les laboratoires vivants, les entrepreneurs web et les start-ups en matière de TIC;22/02/2024
420310;ASS HAUTS DE GARONNE DEVELOPPEMENT;Sensibilisation et accompagnement à l'entrepreneuriat chez les jeunes de moins de 26ans ;;FSE;01/07/2015;31/12/2018;239 205,00;155 308,00;64,93%;33270 Floirac;Aquitain;France;104 Emploi indépendant, entrepreneuriat et création d'entreprises, y compris les micro, petites et moyennes entreprises innovantes;22/02/2024
420410;ENVIRONNEMENT ET DEVELOPPEME NT DURABLE EN BEARN- EDDB;Education à l'environnement et sensibilisation à la biodiversité en Béarn - 2015-2016;;FEDER;01/01/2015;30/12/2016;147 745,00;80 473,00;54,47%;64260 Buzy;Aquitain;France;085 Protection et amélioration de la biodiversité, protection de la nature et infrastructure verte;22/02/2024
421210;UNIVERSITE DE BORDEAUX;Expérience d'un dispositif de médiation pour des Lycéens/étudiants atteints d'altérités singulières;;FSE;01/01/2016;31/08/2019;728 662,45;385 749,88;52,94%;33000 Bordeaux;Aquitain;France;116 Amélioration de la qualité, de l'efficacité et de l'accès à l'enseignement supérieur et équivalent afin d'accroître la participation et les niveaux de qualification, notamment des groupes défavorisés;22/02/2024
421710;ASSOCIATION EPI SOL;EPI'SOL Epicerie Solidaire de PESSAC;;FSE;01/01/2016;31/08/2016;23 264,00;16 000,00;68,78%;33600 Pessac;Aquitain;France;104 Emploi indépendant, entrepreneuriat et création d'entreprises, y compris les micro, petites et moyennes entreprises innovantes;22/02/2024
422110;SOVAL;Récupération et transport de la chaleur fatale pour le chauffage de serres agricoles;;FEDER;07/01/2015;15/11/2017;2 261 754,00;450 000,00;19,90%;33620 Lapouyade;Aquitain;France;016 Cogénération et chauffage urbain à haut rendement;22/02/2024
422210;CAP VERT BIOENERGIE DE BREUILH;Unité de méthanisation à Saint-Antoine de Breuilh;"Le projet Cap Vert Bioénergie De Breuilh, dont les actionnaires sont Cap Vert Bioénergie et ENGIE Biogaz, porte sur la réalisation d'une unité de méthanisation valorisant des matières organiques industrielles du territoire. Cette unité sera située sur la commune de Saint-Antoine de Breuilh, produira un débit moyen de biométhane de 190 Nm3/h injectés sur le réseau de gaz GrDF. Le digestat produit sera épandu pour fertiliser des terres agricoles. Le projet permettra une économie d'émissions CO2 de 4 000 tonnes par an, la création de 3 emplois sur site et d'une dizaine d'emplois indirects. 
";FEDER;02/07/2018;31/12/2021;7 035 451,00;721 602,00;10,26%;24230 Saint-Antoine-de-Breuilh;Aquitain;France;011 Énergies renouvelables: énergie de biomasse;22/02/2024
422310;EPIDOR;Suivi scientifique de l'Anguille sur la rivière index Dronne 2015-2016 - EPIDOR;;FEDER;01/09/2015;31/08/2016;54 972,64;13 981,43;25,43%;33230 Églisottes-et-Chalaures;Aquitain;France;085 Protection et amélioration de la biodiversité, protection de la nature et infrastructure verte;22/02/2024
422410;ASS REG DE FORMATION PROF INDUSTRIE DU BOIS;CFAIB - SRA - V1 - P2 - Développement Apprentissage;;FSE;01/01/2015;30/06/2016;8 500,00;4 250,00;50,00%;40180 Seyresse;Aquitain;France;117 Amélioration de l'égalité d'accès à l'apprentissage tout au long de la vie pour toutes les catégories d'âges dans un cadre formel,...;22/02/2024
422510;ASS HAUTS DE GARONNE DEVELOPPEMENT;Accroitre la pérennité des nouvelles entreprises et soutenir la dynamique entrepreneuriale.;;FSE;01/07/2015;31/12/2018;237 762,00;108 809,00;45,76%;33270 Floirac;Aquitain;France;104 Emploi indépendant, entrepreneuriat et création d'entreprises, y compris les micro, petites et moyennes entreprises innovantes;22/02/2024
422610;SURFRIDER FOUNDATION EUROPE;Surfrider Open Campus Aquitaine;sans objet;FEDER;01/01/2015;31/12/2016;169 882,77;78 126,33;45,99%;;Aquitain;France;082 Services et applications TIC pour les PME (y compris le commerce électronique, le e-Business et les processus d’entreprise en réseau), les laboratoires vivants, les entrepreneurs web et les start-ups en matière de TIC;22/02/2024
422810;LA CHAINE DES ARTISANS LANDAIS;CHEQUE TIC LA CHAINE DES ARTISANS LANDAIS;;FEDER;04/01/2016;30/06/2018;185 269,00;81 911,00;44,21%;40100 Dax;Aquitain;France;082 Services et applications TIC pour les PME (y compris le commerce électronique, le e-Business et les processus d’entreprise en réseau), les laboratoires vivants, les entrepreneurs web et les start-ups en matière de TIC;22/02/2024
422910;SURFRIDER FOUNDATION EUROPE;Suivi de la qualité de l'eau Surfrider 2015-2016;;FEDER;01/01/2015;31/12/2016;181 151,38;30 921,10;17,07%;64200 Biarritz;Aquitain;France;087 Mesures d'adaptation au changement climatique, prévention et gestion des risques liés au climat, comme l’érosion, les incendies, les inondations,...;22/02/2024
423010;ASS POUR L ENVIRONNEMENT ET LA SECURITE EN AQUITAINE - APESA;Programme de ressourcement scientifique 2016;;FEDER;01/01/2016;31/12/2016;638 562,00;200 000,00;31,32%;64000 Pau;Aquitain;France;062 Transfert de technologies et coopération entre universités et entreprises, principalement au profit des PME;22/02/2024
423110;WIMOOV;Actions innovantes de formation mobilité pour les publics fragiles;;FSE;01/09/2015;31/12/2017;50 171,39;35 119,66;70,00%;33800 BORDEAUX;Aquitain;France;117 Amélioration de l'égalité d'accès à l'apprentissage tout au long de la vie pour toutes les catégories d'âges dans un cadre formel,...;22/02/2024
428910;GROUPE VOLTAIRE;Investissements immobiliers et matériels;;FEDER;01/08/2015;31/12/2017;1 487 700,00;297 540,00;20,00%;64210 Bidart;Aquitain;France;001 Investissement productif générique dans les petites et moyennes entreprises («PME»);22/02/2024
429310;ADAPEI;CHEQUE TRANSFORMATION NUMERIQUE ADAPEI;;FEDER;01/07/2015;31/12/2017;335 432,00;150 000,00;44,72%;33300 BORDEAUX;Aquitain;France;082 Services et applications TIC pour les PME (y compris le commerce électronique, le e-Business et les processus d’entreprise en réseau), les laboratoires vivants, les entrepreneurs web et les start-ups en matière de TIC;22/02/2024
429410;CME DE BORDEAUX;Parc Pinçon phase 1 : aménagement du parvis des écoles;;FEDER;01/10/2015;30/06/2017;769 367,00;488 917,00;63,55%;33100 Bordeaux;Aquitain;France;097 Initiatives de développement local menées par les acteurs locaux dans les zones urbaines et rurales;22/02/2024
429510;INSUP AQUITAINE;L'ART D'AGIR / PROCCREA;;FSE;01/09/2015;31/07/2016;113 082,55;46 942,41;41,51%;33150 Cenon;Aquitain;France;117 Amélioration de l'égalité d'accès à l'apprentissage tout au long de la vie pour toutes les catégories d'âges dans un cadre formel,...;22/02/2024
429610;OSONS, ICI ET MAINTENANT  (OIM);Structuration de l'association Osons, Ici et Maintenant,;;FSE;01/10/2015;31/05/2016;20 000,00;16 000,00;80,00%;33130 Bègles;Aquitain;France;104 Emploi indépendant, entrepreneuriat et création d'entreprises, y compris les micro, petites et moyennes entreprises innovantes;22/02/2024
429810;LUNGTA;Création et expérimentation d'un plateau de services dédié aux échanges entre la France et l'Inde;;FSE;01/01/2016;31/12/2016;28 000,00;16 000,00;57,14%;33400 Talence;Aquitain;France;104 Emploi indépendant, entrepreneuriat et création d'entreprises, y compris les micro, petites et moyennes entreprises innovantes;22/02/2024
429910;CA DU PAYS BASQUE;Phase 2 projet Elaboration de la stratégie de gestion des risques littoraux (érosion et submersion);;FEDER;01/01/2015;31/12/2016;209 447,50;67 966,24;32,45%;64100 BAYONNE;Aquitain;France;087 Mesures d'adaptation au changement climatique, prévention et gestion des risques liés au climat, comme l’érosion, les incendies, les inondations,...;22/02/2024
430010;ASS NATIONALE DES PRODUCTEURS DE NOISETTES;Etude du bio contrôle du balanin de la noisette;;FEDER;01/01/2015;31/03/2018;254 368,00;203 494,00;80,00%;47290 Cancon;Aquitain;France;061 Activités de recherche et d’innovation dans les centres de recherche privés, y compris la mise en réseau;22/02/2024
430210;EPTA FRANCE SAS;Projet compétitivité énergétique Epta France;;FEDER;10/08/2015;31/12/2018;1 658 239,80;351 447,83;21,19%;64700 Hendaye;Aquitain;France;068 Efficacité énergétique et projets de démonstration dans les PME et mesures d’accompagnement;22/02/2024
430310;CHAMBRE RÉGIONALE D AGRICULTURE NOUVEL LE-AQUITAINE;Développement de l'apprentissage en ex-Aquitaine 2017;;FSE;01/01/2017;31/12/2017;111 383,51;68 796,99;61,77%;87060 LIMOGES;Aquitain;France;117 Amélioration de l'égalité d'accès à l'apprentissage tout au long de la vie pour toutes les catégories d'âges dans un cadre formel,...;22/02/2024
447010;AGROPOLE SERVICES;Modernisation des infrastructures de la pépinière Agropole;;FEDER;01/11/2015;31/12/2016;413 767,64;248 260,58;60,00%;47310 Estillac;Aquitain;France;056 Investissements dans les infrastructures, capacités et équipements des PME directement liés aux activités de recherche et d’innovation;22/02/2024
466010;CO-ACTIONS;Tester et réussir son projet de création d'entreprise dans une CAE - CO-ACTIONS - 2015.;;FSE;01/01/2015;31/12/2015;112 831,00;58 000,00;51,40%;33840 Captieux;Aquitain;France;104 Emploi indépendant, entrepreneuriat et création d'entreprises, y compris les micro, petites et moyennes entreprises innovantes;22/02/2024
466210;REGION AQUITAINE-LIMOUSIN-POITOU-CHARENTES;2013ID003S09900000 - FQS1 2014 - Lot 03 - Ouvrier-ière polyvalent-e VRD Travaux Publics Dordogne;;IEJ;01/01/2014;31/12/2015;92 935,00;74 348,00;80,00%;24130 Fleix;Aquitain;France;103 Intégration durable sur le marché du travail des jeunes, en particulier ceux qui sont sans emploi et qui ne suivent ni enseignement ni formation, en mettant notamment en oeuvre la garantie pour la jeunesse;22/02/2024
466310;REGION AQUITAINE-LIMOUSIN-POITOU-CHARENTES;2013ID004S09900000 - FQS1 2014 - LOT 4 - Ouvrier-ière polyvalent-e VRD Travaux Publics Gironde ;;IEJ;01/01/2014;31/12/2015;80 834,13;64 667,31;80,00%;24100 Bergerac;Aquitain;France;103 Intégration durable sur le marché du travail des jeunes, en particulier ceux qui sont sans emploi et qui ne suivent ni enseignement ni formation, en mettant notamment en oeuvre la garantie pour la jeunesse;22/02/2024
466510;BRGM;Observatoire de la Côte Aquitaine - Année 2015 - Programme BRGM;;FEDER;01/01/2015;31/12/2015;211 524,18;94 604,06;44,72%;33600 Pessac;Aquitain;France;087 Mesures d'adaptation au changement climatique, prévention et gestion des risques liés au climat, comme l’érosion, les incendies, les inondations,...;22/02/2024
466910;COMMUNE DE BORDEAUX;Le compagnon de visite, un outil numérique au service des espaces culturels Bordelais;;FEDER;01/03/2015;31/07/2017;1 076 878,00;538 439,00;50,00%;33000 Bordeaux;Aquitain;France;079 Accès aux informations du secteur public (y compris les données culturelles libres de droit en ligne, les bibliothèques numériques, les contenus numériques et le tourisme en ligne);22/02/2024
471910;AQUITEM SAS;"Projet "" Allinone "" : développement de produits et services liés à la fidélisation client";;FEDER;01/04/2016;31/12/2016;1 984 523,00;600 000,00;30,23%;33520 Bruges;Aquitain;France;064 Processus de recherche et d’innovation dans les PME (y compris systèmes de bons, processus, conception, service et innovation sociale);22/02/2024
473610;CEA - COMMISSARIAT À L ENERGIE ATOMIQU E & AUX ÉNERGIES ALTERNATIVES - GRENOB;Plateforme Energie;;FEDER;02/11/2015;30/06/2018;2 069 593,73;1 565 898,76;75,66%;33600 Pessac;Aquitain;France;060 Activités de recherche et d’innovation dans les centres de recherche publics et les centres de compétence, y compris la mise en réseau;22/02/2024
473910;REGION AQUITAINE-LIMOUSIN-POITOU-CHARENTES;2013ID005S09900000 - FQS1 2014 - LOT 5 - Ouvrier-ière polyvalent-e VRD Travaux Publics Landes;;IEJ;01/01/2014;31/12/2015;89 716,50;71 773,20;80,00%;24100 Bergerac;Aquitain;France;103 Intégration durable sur le marché du travail des jeunes, en particulier ceux qui sont sans emploi et qui ne suivent ni enseignement ni formation, en mettant notamment en oeuvre la garantie pour la jeunesse;22/02/2024
474010;ASSOCIATION DE PREFIGURATION BILLES EN TETE;Les Granges Boissec : lieu de résidence mutualisé et de formation professionnelle;;FSE;01/01/2016;31/12/2016;29 858,00;16 000,00;53,59%;40250 Larbey;Aquitain;France;104 Emploi indépendant, entrepreneuriat et création d'entreprises, y compris les micro, petites et moyennes entreprises innovantes;22/02/2024
477810;REGION AQUITAINE-LIMOUSIN-POITOU-CHARENTES;2013ID006S09900000-FQS1 2014-Lot 6-Ouvrier-ère polyvalent-e VRD Travaux Publics Pyrénées Atlantiques;;IEJ;01/01/2014;31/12/2015;28 963,00;23 170,40;80,00%;24100 Bergerac;Aquitain;France;103 Intégration durable sur le marché du travail des jeunes, en particulier ceux qui sont sans emploi et qui ne suivent ni enseignement ni formation, en mettant notamment en oeuvre la garantie pour la jeunesse;22/02/2024
478510;REGION AQUITAINE-LIMOUSIN-POITOU-CHARENTES;2013ID007S09900000-FQS1 2014-Lot 7-Ouvrier-ère polyvalent-e conducteur-trice d'engins TP Dordogne ;;IEJ;01/01/2014;31/12/2015;98 220,00;78 576,00;80,00%;24130 Fleix;Aquitain;France;103 Intégration durable sur le marché du travail des jeunes, en particulier ceux qui sont sans emploi et qui ne suivent ni enseignement ni formation, en mettant notamment en oeuvre la garantie pour la jeunesse;22/02/2024
479310;REGION AQUITAINE-LIMOUSIN-POITOU-CHARENTES;2013ID008S09900000- FQS1 2014 -Lot 8 - Ouvrier-ère polyvalent-e conducteur-trice d'engins TP Gironde;;IEJ;01/01/2014;31/12/2015;174 512,50;139 610,00;80,00%;33700 Mérignac;Aquitain;France;103 Intégration durable sur le marché du travail des jeunes, en particulier ceux qui sont sans emploi et qui ne suivent ni enseignement ni formation, en mettant notamment en oeuvre la garantie pour la jeunesse;22/02/2024
479410;REGION AQUITAINE-LIMOUSIN-POITOU-CHARENTES;2013ID009S09900000-FQS1 2014-Lot 9-Ouvrier-ère poluvalent-e conducteur-trice d'engins TP Lot-Garonne;;IEJ;01/01/2014;31/12/2015;59 848,89;47 879,11;80,00%;47200 Marmande;Aquitain;France;103 Intégration durable sur le marché du travail des jeunes, en particulier ceux qui sont sans emploi et qui ne suivent ni enseignement ni formation, en mettant notamment en oeuvre la garantie pour la jeunesse;22/02/2024
479510;REGION AQUITAINE-LIMOUSIN-POITOU-CHARENTES;2013ID010S09900000-FQS1 2014-Lot 10-Ouvrier-ère polyvalent-e conducteur-trice engins TP Pyrénée Atl;;IEJ;01/01/2014;31/12/2015;74 516,08;59 612,86;80,00%;33370 Artigues-près-Bordeaux;Aquitain;France;103 Intégration durable sur le marché du travail des jeunes, en particulier ceux qui sont sans emploi et qui ne suivent ni enseignement ni formation, en mettant notamment en oeuvre la garantie pour la jeunesse;22/02/2024
479610;REGION AQUITAINE-LIMOUSIN-POITOU-CHARENTES;2013ID011S09900000 - FQS1 2014 - Lot 11 - Agent Magasinier Gironde;;IEJ;01/01/2014;31/12/2015;96 142,00;76 914,00;80,00%;33370 Artigues-près-Bordeaux;Aquitain;France;103 Intégration durable sur le marché du travail des jeunes, en particulier ceux qui sont sans emploi et qui ne suivent ni enseignement ni formation, en mettant notamment en oeuvre la garantie pour la jeunesse;22/02/2024
479710;REGION AQUITAINE-LIMOUSIN-POITOU-CHARENTES;2013ID012S09900000 - FQS1 2014 - Lot 12 - Agent magasinier Landes;;IEJ;01/01/2014;31/12/2015;3 341,12;2 672,00;79,97%;33370 Artigues-près-Bordeaux;Aquitain;France;103 Intégration durable sur le marché du travail des jeunes, en particulier ceux qui sont sans emploi et qui ne suivent ni enseignement ni formation, en mettant notamment en oeuvre la garantie pour la jeunesse;22/02/2024
479810;Région Nouvelle-Aquitaine;2013ID013S09900000-FQS12014-Lot 13-Titre professionnel Gestionnaire de paie niveau 3 Dax Peyrehorade;;IEJ;01/01/2014;31/12/2015;26 116,44;20 893,15;80,00%;40100 Dax;Aquitain;France;103 Intégration durable sur le marché du travail des jeunes, en particulier ceux qui sont sans emploi et qui ne suivent ni enseignement ni formation, en mettant notamment en oeuvre la garantie pour la jeunesse;22/02/2024
479910;Région Nouvelle-Aquitaine;2013ID014S09900000 - FQS1 2014 - Lot 14 - Conseiller funéraire Aquitaine;;IEJ;01/01/2014;31/12/2015;10 314,73;8 251,79;80,00%;33077 BORDEAUX CEDEX;Aquitain;France;103 Intégration durable sur le marché du travail des jeunes, en particulier ceux qui sont sans emploi et qui ne suivent ni enseignement ni formation, en mettant notamment en oeuvre la garantie pour la jeunesse;22/02/2024
480010;Région Nouvelle-Aquitaine;2013ID015S09900000 - FQS1 2014 - Lot 15 - Négociateur Immobilier Aquitaine;;IEJ;01/01/2014;31/12/2015;28 080,00;22 464,00;80,00%;33150 Cenon;Aquitain;France;103 Intégration durable sur le marché du travail des jeunes, en particulier ceux qui sont sans emploi et qui ne suivent ni enseignement ni formation, en mettant notamment en oeuvre la garantie pour la jeunesse;22/02/2024
480410;REGION AQUITAINE-LIMOUSIN-POITOU-CHARENTES;2013ID016S09900000 - FQS1 2014 - Lot 16 - Employé Commercial en Magasin Mont de Marsan, Nord landes;;IEJ;01/01/2014;31/12/2015;14 112,00;11 290,00;80,00%;40100 Dax;Aquitain;France;103 Intégration durable sur le marché du travail des jeunes, en particulier ceux qui sont sans emploi et qui ne suivent ni enseignement ni formation, en mettant notamment en oeuvre la garantie pour la jeunesse;22/02/2024
482110;SCI METALLIC ADOUR;PROJET IMMOBILIER DE LA PLATEFORME TECHNOLOGIQUE METALLICADOUR;;FEDER;01/06/2015;30/06/2017;837 000,00;418 500,00;50,00%;64510 Assat;Aquitain;France;059 Infrastructures de recherche et d’innovation (privées, y compris les parcs scientifiques);22/02/2024
482710;Chambre de Commerce et d'Industrie de Région Nouvelle-Aquitaine -;Développement de l'apprentissage en Aquitaine 2016;;FSE;01/01/2016;31/12/2016;500 535,00;250 250,00;50,00%;33000 BORDEAUX;Aquitain;France;117 Amélioration de l'égalité d'accès à l'apprentissage tout au long de la vie pour toutes les catégories d'âges dans un cadre formel,...;22/02/2024
482810;AGENCE NATIONALE POUR LA FORMATION PRO FESSIONNELLE DES ADULTES;Nouvelle Chance pour un Avenir professionnel;;IEJ;01/01/2016;31/12/2016;758 346,39;227 503,91;30,00%;33200 BORDEAUX;Aquitain;France;103 Intégration durable sur le marché du travail des jeunes, en particulier ceux qui sont sans emploi et qui ne suivent ni enseignement ni formation, en mettant notamment en oeuvre la garantie pour la jeunesse;22/02/2024
488510;REGION D'AQUITAINE;2014ID001S01440000 - FQS2 2014 - Lot 01 - Educateur-trice Canin Aquitaine;;IEJ;01/09/2014;31/08/2016;37 454,65;29 963,72;80,00%;40180 Oeyreluy;Aquitain;France;103 Intégration durable sur le marché du travail des jeunes, en particulier ceux qui sont sans emploi et qui ne suivent ni enseignement ni formation, en mettant notamment en oeuvre la garantie pour la jeunesse;22/02/2024
488710;REGION D'AQUITAINE;2014ID002S01440000 - FQS2 2014 - Lot 02 - Toiletteur canin Aquitaine;;IEJ;01/09/2014;31/08/2016;39 708,00;31 766,00;80,00%;47200 Marmande;Aquitain;France;103 Intégration durable sur le marché du travail des jeunes, en particulier ceux qui sont sans emploi et qui ne suivent ni enseignement ni formation, en mettant notamment en oeuvre la garantie pour la jeunesse;22/02/2024
488810;REGION D'AQUITAINE;2014ID003S01440000 - FQS2 2014 - Lot 3 - Ouvrier-ère Paysagiste Nord-Aquitaine;;IEJ;01/09/2014;31/08/2016;31 050,00;24 840,00;80,00%;47110 Sainte-Livrade-sur-Lot;Aquitain;France;103 Intégration durable sur le marché du travail des jeunes, en particulier ceux qui sont sans emploi et qui ne suivent ni enseignement ni formation, en mettant notamment en oeuvre la garantie pour la jeunesse;22/02/2024
488910;REGION D'AQUITAINE;2014ID004S01440000 - FQS2 2014 - Lot 04 - Agent de maintenance et de Services Nautiques Aquitaine;;IEJ;01/09/2014;31/08/2016;37 295,05;29 836,04;80,00%;33000 Bordeaux;Aquitain;France;103 Intégration durable sur le marché du travail des jeunes, en particulier ceux qui sont sans emploi et qui ne suivent ni enseignement ni formation, en mettant notamment en oeuvre la garantie pour la jeunesse;22/02/2024
495910;REGION D'AQUITAINE;2014ID005SO1440000 - FQS2 2014 - Lot 05 - Coffreur-euse bancheur-euse génie civil Aquitaine;;IEJ;01/09/2014;31/08/2016;66 356,23;53 084,98;80,00%;33000 Bordeaux;Aquitain;France;103 Intégration durable sur le marché du travail des jeunes, en particulier ceux qui sont sans emploi et qui ne suivent ni enseignement ni formation, en mettant notamment en oeuvre la garantie pour la jeunesse;22/02/2024
496610;REGION D'AQUITAINE;2014ID006S01440000-FQS2 2014-Lot 6-Constructeur d'ouvrages du bâtiment aluminium verres et matériaux;;IEJ;01/09/2014;31/08/2016;33 028,00;26 422,00;80,00%;33000 Bordeaux;Aquitain;France;103 Intégration durable sur le marché du travail des jeunes, en particulier ceux qui sont sans emploi et qui ne suivent ni enseignement ni formation, en mettant notamment en oeuvre la garantie pour la jeunesse;22/02/2024
496810;REGION D'AQUITAINE;2014ID007S0144 - FQS2 2014 - Lot 7 - Peintre Pays Basque, Lacq-Orthez-Oloron-Mauléon, Béarn;;IEJ;01/09/2014;31/08/2016;61 748,32;49 398,65;80,00%;;Aquitain;France;103 Intégration durable sur le marché du travail des jeunes, en particulier ceux qui sont sans emploi et qui ne suivent ni enseignement ni formation, en mettant notamment en oeuvre la garantie pour la jeunesse;22/02/2024
496910;CHAMBRE REGION D'AGRICULTURE AQUITAINE-LIMOUSIN-POITOU-CHARENTES;Développement de l'apprentissage en Aquitaine 2016;;FSE;01/01/2016;31/12/2016;112 862,82;56 431,41;50,00%;87060 LIMOGES CEDEX 2;Aquitain;France;117 Amélioration de l'égalité d'accès à l'apprentissage tout au long de la vie pour toutes les catégories d'âges dans un cadre formel,...;22/02/2024
497310;COMITE LIAISON ACTEURS DE LA PROMOTION DANS SUD-OUEST - CLAP SUD-OUEST;Plateformes d'accueil, évaluation linguistique, orientation et suivi 2015;;FSE;01/01/2015;31/12/2015;302 089,21;111 639,21;36,96%;33000 Bordeaux;Aquitain;France;117 Amélioration de l'égalité d'accès à l'apprentissage tout au long de la vie pour toutes les catégories d'âges dans un cadre formel,...;22/02/2024
497410;REGION D'AQUITAINE;2014ID008S01440000-FQS2 2014-Lot 8-Cuisinier-e littoral Nord Aquitaine Arcachon Mt de M. Nord Landes;;IEJ;01/09/2014;31/08/2016;34 016,95;27 213,56;80,00%;33800 Bordeaux;Aquitain;France;103 Intégration durable sur le marché du travail des jeunes, en particulier ceux qui sont sans emploi et qui ne suivent ni enseignement ni formation, en mettant notamment en oeuvre la garantie pour la jeunesse;22/02/2024
497510;RÉGION AQUITAINE - LIMOUSIN - POITOU-CHARENTES;2014ID009S01440000 - FQS2 2014 - Lot 9 - Technicien supérieur en méthodes et exploitation logistique;;IEJ;01/09/2014;31/08/2016;31 647,40;25 317,92;80,00%;33370 Artigues-près-Bordeaux;Aquitain;France;103 Intégration durable sur le marché du travail des jeunes, en particulier ceux qui sont sans emploi et qui ne suivent ni enseignement ni formation, en mettant notamment en oeuvre la garantie pour la jeunesse;22/02/2024
497610;RÉGION AQUITAINE - LIMOUSIN - POITOU-CHARENTES;2014ID010S01440000 - FQS2 2014 - Lot 10 - Enseignant-e à la conduite routière Aquitaine Nord;;IEJ;01/09/2014;31/08/2016;55 424,00;44 339,00;80,00%;33600 Pessac;Aquitain;France;103 Intégration durable sur le marché du travail des jeunes, en particulier ceux qui sont sans emploi et qui ne suivent ni enseignement ni formation, en mettant notamment en oeuvre la garantie pour la jeunesse;22/02/2024
497710;RÉGION AQUITAINE - LIMOUSIN - POITOU-CHARENTES;2014ID011S01440000-FQS2 2014-Lot 11-Conducteur-trice livreur Sud Aquitaine Dax, Landes, Pyrénées;;IEJ;01/09/2014;31/08/2016;8 033,05;6 426,44;80,00%;33370 Artigues-près-Bordeaux;Aquitain;France;103 Intégration durable sur le marché du travail des jeunes, en particulier ceux qui sont sans emploi et qui ne suivent ni enseignement ni formation, en mettant notamment en oeuvre la garantie pour la jeunesse;22/02/2024
500010;MANEGE;TRANSFORMATION NUMERIQUE MANEGE;;FEDER;01/06/2015;30/06/2018;370 210,00;160 000,00;43,22%;33290 Blanquefort;Aquitain;France;082 Services et applications TIC pour les PME (y compris le commerce électronique, le e-Business et les processus d’entreprise en réseau), les laboratoires vivants, les entrepreneurs web et les start-ups en matière de TIC;22/02/2024
502210;Région Nouvelle-Aquitaine;ASSISTANCE TECHNIQUE 2014-2018 : OPERATIONS D'EFFICACITE ENERGETIQUE DANS LES LOGEMENTS SOCIAUX;;FEDER;01/01/2014;29/10/2018;83 486,79;66 789,43;80,00%;33077 BORDEAUX CEDEX;Aquitain;France;121 Préparation, mise en oeuvre, suivi et contrôle;22/02/2024
503110;RÉGION AQUITAINE - LIMOUSIN - POITOU-CHARENTES;2014ID0013S01440000 - FQS2 2014 - Lot 13 - Gestionnaire de paie TP niveau III Gironde;;IEJ;01/09/2014;31/08/2015;4 078,25;3 262,60;80,00%;24100 Bergerac;Aquitain;France;103 Intégration durable sur le marché du travail des jeunes, en particulier ceux qui sont sans emploi et qui ne suivent ni enseignement ni formation, en mettant notamment en oeuvre la garantie pour la jeunesse;22/02/2024
503210;RÉGION AQUITAINE - LIMOUSIN - POITOU-CHARENTES;2014ID014S01440000 - FQS2 2014 - Lot 14 - Fleuriste Aquitaine;;IEJ;01/09/2014;31/08/2016;63 853,00;51 082,00;80,00%;40000 Mont-de-Marsan;Aquitain;France;103 Intégration durable sur le marché du travail des jeunes, en particulier ceux qui sont sans emploi et qui ne suivent ni enseignement ni formation, en mettant notamment en oeuvre la garantie pour la jeunesse;22/02/2024
503310;RÉGION AQUITAINE - LIMOUSIN - POITOU-CHARENTES;2014ID015S01440000 - FQS2 2014 - Lot 15 - Vendeur Conseiller;;IEJ;01/09/2014;31/08/2016;32 663,00;26 131,00;80,00%;64230 Lescar;Aquitain;France;103 Intégration durable sur le marché du travail des jeunes, en particulier ceux qui sont sans emploi et qui ne suivent ni enseignement ni formation, en mettant notamment en oeuvre la garantie pour la jeunesse;22/02/2024
503410;RÉGION AQUITAINE - LIMOUSIN - POITOU-CHARENTES;2014ID016S01440000 - FQS2 2014 - Lot 16 - Négociateur Technico Commercial Dordogne;;IEJ;01/09/2014;31/08/2016;47 661,00;38 129,00;80,00%;24100 Bergerac;Aquitain;France;103 Intégration durable sur le marché du travail des jeunes, en particulier ceux qui sont sans emploi et qui ne suivent ni enseignement ni formation, en mettant notamment en oeuvre la garantie pour la jeunesse;22/02/2024
505810;REGION AQUITAINE LIMOUSIN POITOU-CHARENTES;RENOAQT - Programme d'animation du plan de rénovation  énergétique aquitain;;FEDER;05/06/2015;05/06/2018;2 576 636,06;1 545 981,45;60,00%;33000 Bordeaux;Aquitain;France;013 Rénovation en vue d'accroître l'efficacité énergétique des infrastructures publiques, projets de démonstration et actions de soutien;22/02/2024
508110;WORLDCAST SYSTEMS;"Programme de R&amp;D : ""diviser par deux nos temps de traitement""";;FEDER;01/04/2015;30/09/2017;894 737,00;223 684,00;25,00%;33700 Mérignac;Aquitain;France;064 Processus de recherche et d’innovation dans les PME (y compris systèmes de bons, processus, conception, service et innovation sociale);22/02/2024
509410;Centre d'Information sur les Droits des Femmes et des Familles de la Gironde;accompagner à la création d'entreprise et développer l'entrepreneuriat  féminin;;FSE;01/01/2016;31/12/2016;152 423,00;74 300,00;48,75%;33000 BORDEAUX;Aquitain;France;104 Emploi indépendant, entrepreneuriat et création d'entreprises, y compris les micro, petites et moyennes entreprises innovantes;22/02/2024
510310;NOUVELLES APPLICATIONS TECHNOLOGIQUES;CHEQUE TRANSFORMATION NUMERIQUE NOUVELLES APPLICATIONS TECHNOLOGIQUES;;FEDER;01/12/2015;31/08/2016;26 743,00;9 472,25;35,42%;33290 Pian-Médoc;Aquitain;France;082 Services et applications TIC pour les PME (y compris le commerce électronique, le e-Business et les processus d’entreprise en réseau), les laboratoires vivants, les entrepreneurs web et les start-ups en matière de TIC;22/02/2024
556010;RÉGION AQUITAINE - LIMOUSIN - POITOU-CHARENTES;2014ID017S01440000 - FQS2 2014 - Lot 17 - Employé-e Commercial-e en Magasin Libournais;;IEJ;01/09/2014;31/08/2016;18 762,00;15 009,00;80,00%;33500 Libourne;Aquitain;France;103 Intégration durable sur le marché du travail des jeunes, en particulier ceux qui sont sans emploi et qui ne suivent ni enseignement ni formation, en mettant notamment en oeuvre la garantie pour la jeunesse;22/02/2024
556210;RÉGION AQUITAINE - LIMOUSIN - POITOU-CHARENTES;2014ID018S01440000 - FQS2 2014 - Lot 18 - Employé-e Commercial-e en Magasin Médoc;;IEJ;01/09/2014;31/08/2016;24 009,00;19 207,00;80,00%;33000 Bordeaux;Aquitain;France;103 Intégration durable sur le marché du travail des jeunes, en particulier ceux qui sont sans emploi et qui ne suivent ni enseignement ni formation, en mettant notamment en oeuvre la garantie pour la jeunesse;22/02/2024
556510;RÉGION AQUITAINE - LIMOUSIN - POITOU-CHARENTES;2014ID019S01440000 - FQS2 2014 - Lot 19 - Employé-e Commercial-e en Magasin Sud-Gironde;;IEJ;01/09/2014;31/08/2016;20 431,00;16 345,00;80,00%;33000 Bordeaux;Aquitain;France;103 Intégration durable sur le marché du travail des jeunes, en particulier ceux qui sont sans emploi et qui ne suivent ni enseignement ni formation, en mettant notamment en oeuvre la garantie pour la jeunesse;22/02/2024
557010;RÉGION AQUITAINE - LIMOUSIN - POITOU-CHARENTES;2014ID020S01440000 - FQS2 2014 - Lot 20 - Vendeur Conseil Magasin Landes;;IEJ;01/09/2014;31/08/2016;106 558,00;85 246,00;80,00%;33800 Bordeaux;Aquitain;France;103 Intégration durable sur le marché du travail des jeunes, en particulier ceux qui sont sans emploi et qui ne suivent ni enseignement ni formation, en mettant notamment en oeuvre la garantie pour la jeunesse;22/02/2024
557110;RÉGION AQUITAINE - LIMOUSIN - POITOU-CHARENTES;2014ID021S01440000 - FQS2 2014 - Lot 21 - Employé-e Commercial-e en Magasin Pays-Basque;;IEJ;01/09/2014;31/08/2016;21 707,00;17 366,00;80,00%;33800 Bordeaux;Aquitain;France;103 Intégration durable sur le marché du travail des jeunes, en particulier ceux qui sont sans emploi et qui ne suivent ni enseignement ni formation, en mettant notamment en oeuvre la garantie pour la jeunesse;22/02/2024
557210;RÉGION AQUITAINE - LIMOUSIN - POITOU-CHARENTES;2014ID027S01440000 - FQS2 2014 - Lot 27 - Auxiliaire de Vie Sociale Mt de Marsan - Nord landes;;IEJ;01/09/2014;31/08/2016;19 527,00;15 622,00;80,00%;33000 Bordeaux;Aquitain;France;103 Intégration durable sur le marché du travail des jeunes, en particulier ceux qui sont sans emploi et qui ne suivent ni enseignement ni formation, en mettant notamment en oeuvre la garantie pour la jeunesse;22/02/2024
557310;RÉGION AQUITAINE - LIMOUSIN - POITOU-CHARENTES;2014ID028S01440000 - FQS2 2014 - Lot 28 - Aide médico Psychologique Pyrénées Atlantiques;;IEJ;01/09/2014;31/08/2016;5 336,52;4 269,22;80,00%;64000 Pau;Aquitain;France;103 Intégration durable sur le marché du travail des jeunes, en particulier ceux qui sont sans emploi et qui ne suivent ni enseignement ni formation, en mettant notamment en oeuvre la garantie pour la jeunesse;22/02/2024
559010;RÉGION AQUITAINE - LIMOUSIN - POITOU-CHARENTES;2014ID029S01440000-FQS2 2014 - Lot 29 - BPJEPS Activités Aquatiques et de la Natation Aquitaine Nord;;IEJ;01/09/2014;31/08/2016;18 346,00;14 677,00;80,00%;33400 Talence;Aquitain;France;103 Intégration durable sur le marché du travail des jeunes, en particulier ceux qui sont sans emploi et qui ne suivent ni enseignement ni formation, en mettant notamment en oeuvre la garantie pour la jeunesse;22/02/2024
559110;RÉGION AQUITAINE - LIMOUSIN - POITOU-CHARENTES;2014ID030S01440000 - FQS2 2014 - Lot 30 - BPJEPS Activités Gymnastiques de la Forme et de la Force;;IEJ;01/09/2014;31/08/2016;22 312,00;17 849,00;80,00%;47200 Marmande;Aquitain;France;103 Intégration durable sur le marché du travail des jeunes, en particulier ceux qui sont sans emploi et qui ne suivent ni enseignement ni formation, en mettant notamment en oeuvre la garantie pour la jeunesse;22/02/2024
559210;SOBLACO;Investissements immobiliers et matériels;;FEDER;05/11/2015;31/03/2017;1 707 999,00;341 600,00;20,00%;33240 Saint-André-de-Cubzac;Aquitain;France;001 Investissement productif générique dans les petites et moyennes entreprises («PME»);22/02/2024
559310;RÉGION AQUITAINE - LIMOUSIN - POITOU-CHARENTES;2014ID031S01440000 - FQS2 2014 - Lot 31 - BPJEPS Activités Physiques pour Tous Aquitaine Nord;;IEJ;01/09/2014;31/08/2016;20 160,00;16 128,00;80,00%;33000 Bordeaux;Aquitain;France;103 Intégration durable sur le marché du travail des jeunes, en particulier ceux qui sont sans emploi et qui ne suivent ni enseignement ni formation, en mettant notamment en oeuvre la garantie pour la jeunesse;22/02/2024
559410;RÉGION AQUITAINE - LIMOUSIN - POITOU-CHARENTES;2014ID032S01440000 - FQS2 2014 - Lot 32 - BPJEPS Loisirs Tous Publics Aquitaine Nord;;IEJ;01/09/2014;31/08/2016;15 239,07;12 191,25;80,00%;33000 Bordeaux;Aquitain;France;103 Intégration durable sur le marché du travail des jeunes, en particulier ceux qui sont sans emploi et qui ne suivent ni enseignement ni formation, en mettant notamment en oeuvre la garantie pour la jeunesse;22/02/2024
559510;RÉGION AQUITAINE - LIMOUSIN - POITOU-CHARENTES;2014ID03301440000 - FQS2 2014 - Lot 33 - Technicien d'accueil touristique Gironde;;IEJ;01/09/2014;31/08/2016;102 717,00;82 174,00;80,00%;33170 Gradignan;Aquitain;France;103 Intégration durable sur le marché du travail des jeunes, en particulier ceux qui sont sans emploi et qui ne suivent ni enseignement ni formation, en mettant notamment en oeuvre la garantie pour la jeunesse;22/02/2024
559610;RÉGION AQUITAINE - LIMOUSIN - POITOU-CHARENTES;2014ID034S01440000- FQS2 2014 - Lot 34 - BPJEPS Activités Aquatiques et de la Natation Aquitaine Sud;;IEJ;01/09/2014;31/08/2016;17 950,00;14 360,00;80,00%;33400 Talence;Aquitain;France;103 Intégration durable sur le marché du travail des jeunes, en particulier ceux qui sont sans emploi et qui ne suivent ni enseignement ni formation, en mettant notamment en oeuvre la garantie pour la jeunesse;22/02/2024
559910;RÉGION AQUITAINE - LIMOUSIN - POITOU-CHARENTES;2014ID038S01440000 - FQS2 2014 - Lot 38 - Agent cynophile de sécurité Aquitaine Nord;;IEJ;01/09/2014;31/10/2015;9 266,58;7 413,26;80,00%;44800 Saint-Herblain;Aquitain;France;103 Intégration durable sur le marché du travail des jeunes, en particulier ceux qui sont sans emploi et qui ne suivent ni enseignement ni formation, en mettant notamment en oeuvre la garantie pour la jeunesse;22/02/2024
560110;RÉGION AQUITAINE - LIMOUSIN - POITOU-CHARENTES;2014ID039S01440000 - FQS2 2014 - Lot 39 - Agent-e de propreté et d'hygiène Gironde sauf Arcachonnais;;IEJ;01/09/2014;31/08/2016;36 030,00;28 824,00;80,00%;33150 Cenon;Aquitain;France;103 Intégration durable sur le marché du travail des jeunes, en particulier ceux qui sont sans emploi et qui ne suivent ni enseignement ni formation, en mettant notamment en oeuvre la garantie pour la jeunesse;22/02/2024
563810;RÉGION AQUITAINE - LIMOUSIN - POITOU-CHARENTES;2014ID040S01440000 - FQS2 2014 - Lot 40 - Agent-e de sureté et de sécurité privée Gironde;;IEJ;01/09/2014;31/08/2016;70 274,00;56 219,20;80,00%;44800 Saint-Herblain;Aquitain;France;103 Intégration durable sur le marché du travail des jeunes, en particulier ceux qui sont sans emploi et qui ne suivent ni enseignement ni formation, en mettant notamment en oeuvre la garantie pour la jeunesse;22/02/2024
563910;RÉGION AQUITAINE - LIMOUSIN - POITOU-CHARENTES;2014ID041S01440000 - FQS2 2014 - Lot 41 - Agent-e de propreté et d'hygiène Lot et Garonne;;IEJ;01/09/2014;31/08/2016;14 012,15;11 209,72;80,00%;33000 Bordeaux;Aquitain;France;103 Intégration durable sur le marché du travail des jeunes, en particulier ceux qui sont sans emploi et qui ne suivent ni enseignement ni formation, en mettant notamment en oeuvre la garantie pour la jeunesse;22/02/2024
564010;RÉGION AQUITAINE - LIMOUSIN - POITOU-CHARENTES;2014ID043S01440000 - FQS2 2014 - Lot 43 - Agent-e de sureté et de sécurité Privée Béarn.;;IEJ;01/09/2014;31/08/2016;23 093,00;18 474,00;80,00%;44800 Saint-Herblain;Aquitain;France;103 Intégration durable sur le marché du travail des jeunes, en particulier ceux qui sont sans emploi et qui ne suivent ni enseignement ni formation, en mettant notamment en oeuvre la garantie pour la jeunesse;22/02/2024
564110;RÉGION AQUITAINE - LIMOUSIN - POITOU-CHARENTES;2014ID044S01440000 - FQS2 2014 - Lot 44 - Agent-e de sûreté et de sécurité privée Pays-Basque;;IEJ;01/09/2014;31/08/2016;25 066,00;20 053,00;80,00%;33700 Mérignac;Aquitain;France;103 Intégration durable sur le marché du travail des jeunes, en particulier ceux qui sont sans emploi et qui ne suivent ni enseignement ni formation, en mettant notamment en oeuvre la garantie pour la jeunesse;22/02/2024
564210;RÉGION AQUITAINE - LIMOUSIN - POITOU-CHARENTES;2014ID045S01440000- FQS2 2014 - Lot 45 - D.U. Réalisateur-trice d'applications multimédias Aquitaine;;IEJ;01/09/2014;31/08/2016;14 248,27;11 398,62;80,00%;33000 Bordeaux;Aquitain;France;103 Intégration durable sur le marché du travail des jeunes, en particulier ceux qui sont sans emploi et qui ne suivent ni enseignement ni formation, en mettant notamment en oeuvre la garantie pour la jeunesse;22/02/2024
564310;RÉGION AQUITAINE - LIMOUSIN - POITOU-CHARENTES;2014ID046S01440000 - FQS2 2014 - Lot 46 - Technicien-ne d'Exploitation Son Aquitaine;;IEJ;01/09/2014;31/08/2016;70 502,00;56 402,00;80,00%;64600 Anglet;Aquitain;France;103 Intégration durable sur le marché du travail des jeunes, en particulier ceux qui sont sans emploi et qui ne suivent ni enseignement ni formation, en mettant notamment en oeuvre la garantie pour la jeunesse;22/02/2024
569810;REGION AQUITAINE-LIMOUSIN-POITOU-CHARENTES;2013ID001S08490000 - ORI1 2014 - Lot 1 - Plate-forme d'Orientation Agenais;;IEJ;01/01/2014;31/12/2015;203 288,00;162 630,00;80,00%;33800 Bordeaux;Aquitain;France;103 Intégration durable sur le marché du travail des jeunes, en particulier ceux qui sont sans emploi et qui ne suivent ni enseignement ni formation, en mettant notamment en oeuvre la garantie pour la jeunesse;22/02/2024
570110;REGION AQUITAINE-LIMOUSIN-POITOU-CHARENTES;2013ID002S08490000 - ORI1 2014 - Lot 2 - Plate-forme d'Orientation Arcachon;;IEJ;01/01/2014;31/08/2015;141 530,00;113 224,00;80,00%;33800 Bordeaux;Aquitain;France;103 Intégration durable sur le marché du travail des jeunes, en particulier ceux qui sont sans emploi et qui ne suivent ni enseignement ni formation, en mettant notamment en oeuvre la garantie pour la jeunesse;22/02/2024
578410;SEEGERS FRANCOIS;accompagnement à l'installation en agricultre;;FSE;01/01/2016;31/12/2016;18 900,00;9 450,00;50,00%;24590 JAYAC;Aquitain;France;104 Emploi indépendant, entrepreneuriat et création d'entreprises, y compris les micro, petites et moyennes entreprises innovantes;22/02/2024
579910;REGION AQUITAINE-LIMOUSIN-POITOU-CHARENTES;2013ID004S08490000 - ORI1 2014 - Lot 4 - Plate-forme d'orientation Béarn Adour;;IEJ;01/01/2014;31/08/2015;117 561,00;94 049,00;80,00%;33000 Bordeaux;Aquitain;France;103 Intégration durable sur le marché du travail des jeunes, en particulier ceux qui sont sans emploi et qui ne suivent ni enseignement ni formation, en mettant notamment en oeuvre la garantie pour la jeunesse;22/02/2024
580710;ASSO POUR LA MUTUALISATION DE MOYENS EDUCATIFS THERAPEUTIQUES ET SOCIAUX;Prise en charge éducative pour enfants porteurs d'un trouble du spectre autistique;;FSE;01/10/2015;30/09/2016;40 506,00;16 000,00;39,50%;64100 BAYONNE;Aquitain;France;104 Emploi indépendant, entrepreneuriat et création d'entreprises, y compris les micro, petites et moyennes entreprises innovantes;22/02/2024
580910;SEGEO SARL;CHEQUE TRANSFORMATION NUMERIQUE SEGEO;réalisation d'une application métier SERCICES. ;FEDER;30/11/2015;30/04/2017;46 185,00;25 000,00;54,13%;33150 CENON;Aquitain;France;082 Services et applications TIC pour les PME (y compris le commerce électronique, le e-Business et les processus d’entreprise en réseau), les laboratoires vivants, les entrepreneurs web et les start-ups en matière de TIC;22/02/2024
582510;MIGADO;Conservation du stock d'esturgeons européens, production de juvéniles pour repeuplement et animation;;FEDER;01/01/2016;31/12/2016;496 243,46;168 419,30;33,94%;47520 LE PASSAGE;Aquitain;France;085 Protection et amélioration de la biodiversité, protection de la nature et infrastructure verte;22/02/2024
585010;ASSOCIATION MIGADO;Programme général de restauration des poissons migrateurs Dordogne et Garonne en Aquitaine-année 2016;;FEDER;01/01/2016;31/12/2016;679 823,00;240 047,00;35,31%;47520 Passage;Aquitain;France;085 Protection et amélioration de la biodiversité, protection de la nature et infrastructure verte;22/02/2024
585910;REGION AQUITAINE-LIMOUSIN-POITOU-CHARENTES;2013ID005S08490000 - ORI1 2014 - Lot 5 - Plate-forme d'Orientation Pau-Pyrénées;;IEJ;01/01/2014;31/12/2015;390 157,00;312 125,00;80,00%;33800 Bordeaux;Aquitain;France;103 Intégration durable sur le marché du travail des jeunes, en particulier ceux qui sont sans emploi et qui ne suivent ni enseignement ni formation, en mettant notamment en oeuvre la garantie pour la jeunesse;22/02/2024
587910;OFFICE NATIONAL DES FORETS;OBSERVATOIRE DE LA COTE AQUITAINE - Programme 2015 ONF;;FEDER;01/01/2015;31/12/2015;222 881,00;70 747,00;31,74%;45760 BOIGNY-SUR-BIONNE;Aquitain;France;087 Mesures d'adaptation au changement climatique, prévention et gestion des risques liés au climat, comme l’érosion, les incendies, les inondations,...;22/02/2024
589510;CC DU BEARN DES GAVES;Construction d'une pépinière d'entreprises ;;FEDER;14/12/2015;01/04/2017;1 270 000,00;321 500,00;25,31%;64270 SALIES-DE-BEARN;Aquitain;France;067 Développement commercial des PME, soutien à l’esprit d’entreprise et à l’incubation (y compris le soutien aux entreprises issues de l'essaimage);22/02/2024
589710;ASS OCEAN OBS OBSERVER COMPRENDRE PRESERVER;OCEAN OBS OBSERVER COMPRENDRE PRESERVER;;FSE;01/03/2016;28/02/2017;40 107,00;16 000,00;39,89%;33800 BORDEAUX;Aquitain;France;104 Emploi indépendant, entrepreneuriat et création d'entreprises, y compris les micro, petites et moyennes entreprises innovantes;22/02/2024
590710;REGION AQUITAINE-LIMOUSIN-POITOU-CHARENTES;2013ID006S08490000 - ORI1 2014 - Lot 6 - Plate-forme d'Orientation Bergeracois ;;IEJ;01/01/2014;31/08/2015;201 570,00;161 256,00;80,00%;24100 Bergerac;Aquitain;France;103 Intégration durable sur le marché du travail des jeunes, en particulier ceux qui sont sans emploi et qui ne suivent ni enseignement ni formation, en mettant notamment en oeuvre la garantie pour la jeunesse;22/02/2024
591810;REGION AQUITAINE-LIMOUSIN-POITOU-CHARENTES;2013ID007S08490000-ORI1 2014-Lot 7- Aide aux choix professionnels spécialisée métiers du tourisme Bx;;IEJ;01/01/2014;31/08/2015;39 948,06;31 958,45;80,00%;33170 Gradignan;Aquitain;France;103 Intégration durable sur le marché du travail des jeunes, en particulier ceux qui sont sans emploi et qui ne suivent ni enseignement ni formation, en mettant notamment en oeuvre la garantie pour la jeunesse;22/02/2024
594010;ASTRIA;Travaux de récupération de chaleur pour alimenter le réseau de chaleur St Jean Belcier;;FEDER;14/04/2014;31/12/2018;1 295 700,00;388 710,00;30,00%;33130 Bègles;Aquitain;France;016 Cogénération et chauffage urbain à haut rendement;22/02/2024
594910;COMPAGNIE INDUSTRIELLE DES LASERS CILAS;"Programme de R&amp;D HELIAM 2 : High Energy Lasers for Improved Aeronautic Materials (Volet 2)";;FEDER;01/01/2016;31/12/2022;2 668 177,00;532 349,00;19,95%;33400 Talence;Aquitain;France;064 Processus de recherche et d’innovation dans les PME (y compris systèmes de bons, processus, conception, service et innovation sociale);22/02/2024
595110;Région Nouvelle-Aquitaine;2014ID001S1541- Lot 1 :  Métiers de la Restauration;;FSE;01/01/2015;31/12/2016;131 712,00;65 856,00;50,00%;33120 Arcachon;Aquitain;France;117 Amélioration de l'égalité d'accès à l'apprentissage tout au long de la vie pour toutes les catégories d'âges dans un cadre formel,...;22/02/2024
595210;REGION AQUITAINE-LIMOUSIN-POITOU-CHARENTES;2013ID008S08490000-ORI1 2014-Lot 8-Aide aux choix professionnels spécialisée services aux familles;;IEJ;01/01/2014;31/08/2015;53 070,83;42 456,66;80,00%;33800 Bordeaux;Aquitain;France;103 Intégration durable sur le marché du travail des jeunes, en particulier ceux qui sont sans emploi et qui ne suivent ni enseignement ni formation, en mettant notamment en oeuvre la garantie pour la jeunesse;22/02/2024
595510;Région Nouvelle-Aquitaine;2014ID002S1541 -  LOT 2 : Métiers de la Peinture;;FSE;01/01/2015;31/12/2016;257 495,00;128 747,50;50,00%;33000 Bordeaux;Aquitain;France;117 Amélioration de l'égalité d'accès à l'apprentissage tout au long de la vie pour toutes les catégories d'âges dans un cadre formel,...;22/02/2024
596310;REGION AQUITAINE-LIMOUSIN-POITOU-CHARENTES;2013ID009S08490000 - ORI1 2014 - Lot 9 - Plate forme d'Orientation Bordeaux Ville;;IEJ;01/01/2014;31/12/2015;520 254,00;416 203,00;80,00%;33800 Bordeaux;Aquitain;France;103 Intégration durable sur le marché du travail des jeunes, en particulier ceux qui sont sans emploi et qui ne suivent ni enseignement ni formation, en mettant notamment en oeuvre la garantie pour la jeunesse;22/02/2024
596410;Région Nouvelle-Aquitaine;2014ID003S1541 - Lot 03 : Métiers agent d'entretien du batiment;;FSE;01/01/2015;31/12/2016;105 683,66;52 841,83;50,00%;24000 Périgueux;Aquitain;France;117 Amélioration de l'égalité d'accès à l'apprentissage tout au long de la vie pour toutes les catégories d'âges dans un cadre formel,...;22/02/2024
596510;Région Nouvelle-Aquitaine;2014ID004S1541- LOT 4 : Métiers de la propreté et de l'hygiène;;FSE;01/01/2015;31/12/2016;214 941,00;107 470,50;50,00%;33170 Gradignan;Aquitain;France;117 Amélioration de l'égalité d'accès à l'apprentissage tout au long de la vie pour toutes les catégories d'âges dans un cadre formel,...;22/02/2024
597710;MISSION LOCALE PERIGORD NOIR;Espace Métiers Aquitaine (EMA) - Création : 2 sites (Sarlat et Terrasson);;FSE;09/02/2015;31/12/2016;134 448,00;67 224,00;50,00%;24200 SARLAT LA CANEDA;Aquitain;France;117 Amélioration de l'égalité d'accès à l'apprentissage tout au long de la vie pour toutes les catégories d'âges dans un cadre formel,...;22/02/2024
598310;REGION AQUITAINE-LIMOUSIN-POITOU-CHARENTES;2013ID010S08490000 - ORI1 2014 - Lot 10 - Plate-forme d'Orientation Bordeaux Sud-Ouest;;IEJ;01/01/2014;31/08/2015;322 711,00;258 169,00;80,00%;33000 Bordeaux;Aquitain;France;103 Intégration durable sur le marché du travail des jeunes, en particulier ceux qui sont sans emploi et qui ne suivent ni enseignement ni formation, en mettant notamment en oeuvre la garantie pour la jeunesse;22/02/2024
599710;REGION AQUITAINE-LIMOUSIN-POITOU-CHARENTES;2013ID012S08490000 - ORI1 2014 - Lot 12 - Plate-forme d'Orientation Bordeaux Nord-Ouest;;IEJ;01/01/2014;31/08/2015;435 085,31;348 068,44;80,00%;33000 Bordeaux;Aquitain;France;103 Intégration durable sur le marché du travail des jeunes, en particulier ceux qui sont sans emploi et qui ne suivent ni enseignement ni formation, en mettant notamment en oeuvre la garantie pour la jeunesse;22/02/2024
600910;REGION AQUITAINE-LIMOUSIN-POITOU-CHARENTES;2013ID013S08490000 - ORI1 2014 - Lot 13 - Plate-Forme d'Orientation Dax Peyrehorade;;IEJ;01/01/2014;31/08/2015;224 989,00;179 991,00;80,00%;33000 Bordeaux;Aquitain;France;103 Intégration durable sur le marché du travail des jeunes, en particulier ceux qui sont sans emploi et qui ne suivent ni enseignement ni formation, en mettant notamment en oeuvre la garantie pour la jeunesse;22/02/2024
601010;Région Nouvelle-Aquitaine;2014ID005S1541- LOT 05 : Métiers de la mode vêtement flou;;FSE;01/01/2015;31/12/2016;29 339,76;14 669,88;50,00%;33170 Gradignan;Aquitain;France;117 Amélioration de l'égalité d'accès à l'apprentissage tout au long de la vie pour toutes les catégories d'âges dans un cadre formel,...;22/02/2024
601210;REGION AQUITAINE-LIMOUSIN-POITOU-CHARENTES;2013ID014S08490000 - ORI1 2014 - Lot 14 - Plate-forme d'Orientation Tarnos, St Vincent de Tyrosse;;IEJ;01/01/2014;31/08/2015;133 616,00;106 893,00;80,00%;40220 Tarnos;Aquitain;France;103 Intégration durable sur le marché du travail des jeunes, en particulier ceux qui sont sans emploi et qui ne suivent ni enseignement ni formation, en mettant notamment en oeuvre la garantie pour la jeunesse;22/02/2024
601610;Région Nouvelle-Aquitaine;2014ID006S1541- LOT 06 : Métiers de la soudure et de la métallurgie;;FSE;01/01/2015;31/12/2016;16 800,00;8 400,00;50,00%;47300 Villeneuve-sur-Lot;Aquitain;France;117 Amélioration de l'égalité d'accès à l'apprentissage tout au long de la vie pour toutes les catégories d'âges dans un cadre formel,...;22/02/2024
601910;Région Nouvelle-Aquitaine;2014ID007S1541- LOT 07 : Métiers agent de fabrication;;FSE;01/01/2015;31/12/2016;92 170,00;46 085,00;50,00%;24150 Mauzac-et-Grand-Castang;Aquitain;France;117 Amélioration de l'égalité d'accès à l'apprentissage tout au long de la vie pour toutes les catégories d'âges dans un cadre formel,...;22/02/2024
602110;Région Nouvelle-Aquitaine;2014ID008S1541 LOT 08 Métier menuisier de fabrication;;FSE;01/01/2015;31/12/2016;56 522,20;28 261,10;50,00%;47300 Villeneuve-sur-Lot;Aquitain;France;117 Amélioration de l'égalité d'accès à l'apprentissage tout au long de la vie pour toutes les catégories d'âges dans un cadre formel,...;22/02/2024
602310;Région Nouvelle-Aquitaine;2014ID009S1541 LOT 09 Métiers horticoles ;;FSE;01/01/2015;31/12/2016;337 916,81;168 958,40;50,00%;24150 Mauzac-et-Grand-Castang;Aquitain;France;117 Amélioration de l'égalité d'accès à l'apprentissage tout au long de la vie pour toutes les catégories d'âges dans un cadre formel,...;22/02/2024
602710;REGION AQUITAINE-LIMOUSIN-POITOU-CHARENTES;2013ID017S08490000 - ORI1 2014 - Lot 17 - Bilan Jeune d'Accès à la Qualification Bordeaux Rive...;;IEJ;01/01/2014;31/08/2015;123 144,05;98 515,24;80,00%;33100 Bordeaux;Aquitain;France;103 Intégration durable sur le marché du travail des jeunes, en particulier ceux qui sont sans emploi et qui ne suivent ni enseignement ni formation, en mettant notamment en oeuvre la garantie pour la jeunesse;22/02/2024
603110;Région Nouvelle-Aquitaine;2014ID010S1541 LOT 10 Action de découverte des métiers ;;FSE;01/01/2015;31/12/2016;253 497,00;126 748,50;50,00%;33000 Bordeaux;Aquitain;France;117 Amélioration de l'égalité d'accès à l'apprentissage tout au long de la vie pour toutes les catégories d'âges dans un cadre formel,...;22/02/2024
603410;REGION AQUITAINE-LIMOUSIN-POITOU-CHARENTES;2013ID018S08490000 - ORI1 2014 - Lot 18 - Plate-forme d'Orientation Lacq-Orthez-Oloron;;IEJ;01/01/2014;31/08/2015;220 897,00;176 717,00;80,00%;47190 Aiguillon;Aquitain;France;103 Intégration durable sur le marché du travail des jeunes, en particulier ceux qui sont sans emploi et qui ne suivent ni enseignement ni formation, en mettant notamment en oeuvre la garantie pour la jeunesse;22/02/2024
603710;REGION AQUITAINE-LIMOUSIN-POITOU-CHARENTES;2013ID019S08490000 - ORI1 2014 - Lot 19 - Plate-forme d'Orientation Libournais;;IEJ;01/01/2014;31/08/2015;292 809,00;234 247,00;80,00%;33500 Libourne;Aquitain;France;103 Intégration durable sur le marché du travail des jeunes, en particulier ceux qui sont sans emploi et qui ne suivent ni enseignement ni formation, en mettant notamment en oeuvre la garantie pour la jeunesse;22/02/2024
604010;REGION AQUITAINE-LIMOUSIN-POITOU-CHARENTES;2013ID020S08490000 - ORI1 2014 - Lot 20 - Bilan Jeune d'Accès à la Qualification Bordeaux NO...;;IEJ;01/01/2014;31/08/2015;203 394,19;162 715,36;80,00%;33270 Floirac;Aquitain;France;103 Intégration durable sur le marché du travail des jeunes, en particulier ceux qui sont sans emploi et qui ne suivent ni enseignement ni formation, en mettant notamment en oeuvre la garantie pour la jeunesse;22/02/2024
604510;CODIS AQUITAINE;Transformation numérique CODIS;;FEDER;01/10/2015;31/12/2017;442 065,00;130 000,00;29,41%;40220 TARNOS;Aquitain;France;082 Services et applications TIC pour les PME (y compris le commerce électronique, le e-Business et les processus d’entreprise en réseau), les laboratoires vivants, les entrepreneurs web et les start-ups en matière de TIC;22/02/2024
604610;REGION AQUITAINE-LIMOUSIN-POITOU-CHARENTES;2013ID011S08490000 - ORI1 2014 - Lot 11 - Plate-forme d'Orientation Bordeaux Rive Droite;;IEJ;01/01/2014;31/08/2015;560 954,38;448 763,50;80,00%;33000 Bordeaux;Aquitain;France;103 Intégration durable sur le marché du travail des jeunes, en particulier ceux qui sont sans emploi et qui ne suivent ni enseignement ni formation, en mettant notamment en oeuvre la garantie pour la jeunesse;22/02/2024
604710;REGION AQUITAINE-LIMOUSIN-POITOU-CHARENTES;2013ID021S08490000 - ORI1 2014 - Lot 21 - Plate-forme d'Orientation Marmandais;;IEJ;01/01/2014;31/08/2015;194 954,00;155 963,00;80,00%;47190 Aiguillon;Aquitain;France;103 Intégration durable sur le marché du travail des jeunes, en particulier ceux qui sont sans emploi et qui ne suivent ni enseignement ni formation, en mettant notamment en oeuvre la garantie pour la jeunesse;22/02/2024
604810;REGION AQUITAINE-LIMOUSIN-POITOU-CHARENTES;2013ID022S08490000 -ORI1 2014-Lot 22-Aide aux choix Professionnels Spécialisée Services aux Familles;;IEJ;01/01/2014;31/08/2015;15 930,00;12 744,00;80,00%;33370 Artigues-près-Bordeaux;Aquitain;France;103 Intégration durable sur le marché du travail des jeunes, en particulier ceux qui sont sans emploi et qui ne suivent ni enseignement ni formation, en mettant notamment en oeuvre la garantie pour la jeunesse;22/02/2024
604910;LES AMIS DE SUPERCOOP;SUPERCOOP, supermarché coopératif et participatif de Bordeaux Métropole;-;FSE;01/01/2016;31/12/2016;65 769,00;16 000,00;24,33%;33130 Bègles;Aquitain;France;104 Emploi indépendant, entrepreneuriat et création d'entreprises, y compris les micro, petites et moyennes entreprises innovantes;22/02/2024
605010;REGION AQUITAINE-LIMOUSIN-POITOU-CHARENTES;2013ID023S08490000 - ORI1 2014 - Lot 23 - Plate-forme d'Orientation Médoc;;IEJ;01/01/2014;31/08/2015;173 796,00;139 037,00;80,00%;33300 Bordeaux;Aquitain;France;103 Intégration durable sur le marché du travail des jeunes, en particulier ceux qui sont sans emploi et qui ne suivent ni enseignement ni formation, en mettant notamment en oeuvre la garantie pour la jeunesse;22/02/2024
605110;REGION AQUITAINE-LIMOUSIN-POITOU-CHARENTES;2013ID024S08490000 - ORI1 2014 - Lot 24 - Plate-forme d'Orientation Mont de Marsan;;IEJ;01/01/2014;31/08/2015;339 066,00;271 253,00;80,00%;40000 Mont-de-Marsan;Aquitain;France;103 Intégration durable sur le marché du travail des jeunes, en particulier ceux qui sont sans emploi et qui ne suivent ni enseignement ni formation, en mettant notamment en oeuvre la garantie pour la jeunesse;22/02/2024
605210;SYND INTERCOM DU BASSIN D'ARCACHON;Elaboration de la Stratégie Locale de Gestion du Risque d'Inondation (SLGRI) et du PAPI par le SIBA;;FEDER;01/01/2016;31/12/2017;95 910,00;51 708,00;53,91%;33120 ARCACHON;Aquitain;France;087 Mesures d'adaptation au changement climatique, prévention et gestion des risques liés au climat, comme l’érosion, les incendies, les inondations,...;22/02/2024
605310;REGION AQUITAINE-LIMOUSIN-POITOU-CHARENTES;2013ID025S08490000 - ORI1 2014 - Lot 25 - Plate-forme d'Orientation Nord landes.;;IEJ;01/01/2014;31/08/2015;133 761,00;107 009,00;80,00%;33000 Bordeaux;Aquitain;France;103 Intégration durable sur le marché du travail des jeunes, en particulier ceux qui sont sans emploi et qui ne suivent ni enseignement ni formation, en mettant notamment en oeuvre la garantie pour la jeunesse;22/02/2024
605410;SURFRIDER FOUNDATION EUROPE;Création d'un dispositif de sensibilisation grand public aux risques d'érosion et de submersion sur le territoire aquitain - Surfrider;;FEDER;01/01/2016;31/12/2018;104 045,55;80 680,60;77,54%;64200 BIARRITZ;Aquitain;France;087 Mesures d'adaptation au changement climatique, prévention et gestion des risques liés au climat, comme l’érosion, les incendies, les inondations,...;22/02/2024
605610;REGION AQUITAINE-LIMOUSIN-POITOU-CHARENTES;2013ID026S08490000 - ORI1 2014 - Lot 26 - Bilan Jeune d'Accès à la Qualification Pays-Basque;;IEJ;01/01/2014;31/08/2015;118 591,66;81 717,00;68,91%;64600 Anglet;Aquitain;France;103 Intégration durable sur le marché du travail des jeunes, en particulier ceux qui sont sans emploi et qui ne suivent ni enseignement ni formation, en mettant notamment en oeuvre la garantie pour la jeunesse;22/02/2024
606710;REGION AQUITAINE-LIMOUSIN-POITOU-CHARENTES;2013ID027S08490000 - ORI1 2014 - Lot 27 - Plate-forme d'Orientation Hendaye St jean de Luz;;IEJ;01/01/2014;31/08/2015;99 085,00;79 268,00;80,00%;33000 Bordeaux;Aquitain;France;103 Intégration durable sur le marché du travail des jeunes, en particulier ceux qui sont sans emploi et qui ne suivent ni enseignement ni formation, en mettant notamment en oeuvre la garantie pour la jeunesse;22/02/2024
607410;REGION AQUITAINE-LIMOUSIN-POITOU-CHARENTES;2013ID028S08490000 - ORI1 2014 - Lot 28 - Plate-forme d'Orientation Pays-Basque.;;IEJ;01/01/2014;31/12/2015;344 450,00;275 560,00;80,00%;33800 Bordeaux;Aquitain;France;103 Intégration durable sur le marché du travail des jeunes, en particulier ceux qui sont sans emploi et qui ne suivent ni enseignement ni formation, en mettant notamment en oeuvre la garantie pour la jeunesse;22/02/2024
608010;REGION AQUITAINE-LIMOUSIN-POITOU-CHARENTES;2013ID029S08490000 - ORI1 2014 - Lot 29 - Plate-forme d'Orientation Périgueux;;IEJ;01/01/2014;31/08/2015;150 816,00;120 653,00;80,00%;33000 Bordeaux;Aquitain;France;103 Intégration durable sur le marché du travail des jeunes, en particulier ceux qui sont sans emploi et qui ne suivent ni enseignement ni formation, en mettant notamment en oeuvre la garantie pour la jeunesse;22/02/2024
608710;REGION AQUITAINE-LIMOUSIN-POITOU-CHARENTES;2013ID030S08490000 - ORI1 2014 - Lot 30 - Plate-forme d'Orientation Périgord Noir;;IEJ;01/01/2014;31/08/2015;178 362,00;142 690,00;80,00%;33000 Bordeaux;Aquitain;France;103 Intégration durable sur le marché du travail des jeunes, en particulier ceux qui sont sans emploi et qui ne suivent ni enseignement ni formation, en mettant notamment en oeuvre la garantie pour la jeunesse;22/02/2024
608910;ASS REG DEVELOP INDUSTRIES ALIMENTAIRES;Agroveille 2016;;FEDER;01/01/2016;31/12/2016;96 253,79;46 245,62;48,05%;33403 TALENCE CEDEX;Aquitain;France;066 Services d'appui avancé aux PME et groupes de PME (y compris services de gestion, de commercialisation et de conception);22/02/2024
609010;REGION AQUITAINE-LIMOUSIN-POITOU-CHARENTES;2013ID031S08490000 - ORI1 2014 - Lot 31 - Plate-forme d'Orientation Haut Périgord;;IEJ;01/01/2014;31/08/2015;118 587,00;94 870,00;80,00%;24300 Nontron;Aquitain;France;103 Intégration durable sur le marché du travail des jeunes, en particulier ceux qui sont sans emploi et qui ne suivent ni enseignement ni formation, en mettant notamment en oeuvre la garantie pour la jeunesse;22/02/2024
614310;COMMUNAUTE DE COMMUNES MAREMNE ADOUR COTE SUD;RESTAURATION DU TRAIT DE COTE ET RESTAURATION DE LA BIODIVERSITE DU LAC MARIN D HOSSEGOR;Les travaux de dragage du lac d'Hossegor vont permettre de valoriser une majorité du sable retiré en le déposant à la plage de la Savane de Capbreton fortement impactée par l'érosion. Les études ont montré la bonne qualité des sédiments du lac d'Hossegor et leur compatibilité granulométrique avec ceux de la plage la Savane de Capbreton facilitant l'opération. Le transfert de ces 130 000 m3 va se faire par l'utilisation de tuyauteries et des installations du bypass de Capbreton. Le sable ainsi déposé va protéger la plage de l'érosion et permettre d'étudier l'impact de la houle sur ce dépôt de sable.;FEDER;01/01/2016;31/12/2019;2 796 995,00;1 221 166,00;43,66%;40130 Capbreton;Aquitain;France;071 Développement et promotion d’entreprises spécialisées dans la fourniture de services contribuant à l’économie à faible intensité de carbone et à la résilience face au changement climatique (y compris le soutien à ces services);22/02/2024
615710;CEA - COMMISSARIAT A L'ENERGIE ATOMIQUE & AUX ENERGIES ALTERNATIVES - GRENOBLE;Plateforme TROPIC;;FEDER;02/11/2015;01/11/2018;1 789 867,43;1 248 795,05;69,77%;33600 Pessac;Aquitain;France;058 Infrastructures de recherche et d’innovation (publiques);22/02/2024
619610;EUSKAL HERRIKO LABORANTZA GANBARA;accompagnement à l'installation en agriculture;;FSE;01/01/2016;31/12/2016;28 800,00;14 400,00;50,00%;64220 AINHICE-MONGELOS;Aquitain;France;104 Emploi indépendant, entrepreneuriat et création d'entreprises, y compris les micro, petites et moyennes entreprises innovantes;22/02/2024
621810;REGION AQUITAINE-LIMOUSIN-POITOU-CHARENTES;2013IS032S08490000 - ORI1 2014 - Lot 32 - Plate-forme d'Orientation Ribéracois- Vallée de l'Isle;;IEJ;01/01/2014;31/08/2015;151 025,00;120 820,00;80,00%;33000 Bordeaux;Aquitain;France;103 Intégration durable sur le marché du travail des jeunes, en particulier ceux qui sont sans emploi et qui ne suivent ni enseignement ni formation, en mettant notamment en oeuvre la garantie pour la jeunesse;22/02/2024
622610;REGION AQUITAINE-LIMOUSIN-POITOU-CHARENTES;2013IS033S08490000 - ORI1 2014 - Lot 33 - Bilan Jeune d'Accès à la Qualification Arcachon, Bordeaux ;;IEJ;01/01/2014;31/08/2015;138 404,29;110 723,43;80,00%;33270 Floirac;Aquitain;France;103 Intégration durable sur le marché du travail des jeunes, en particulier ceux qui sont sans emploi et qui ne suivent ni enseignement ni formation, en mettant notamment en oeuvre la garantie pour la jeunesse;22/02/2024
623210;REGION AQUITAINE-LIMOUSIN-POITOU-CHARENTES;2013IS034S08490000 - ORI1 2014 - Lot 34 - Plate-forme d'Orientation Sud-Gironde;;IEJ;01/01/2014;31/08/2015;350 701,00;280 561,00;80,00%;33270 Floirac;Aquitain;France;103 Intégration durable sur le marché du travail des jeunes, en particulier ceux qui sont sans emploi et qui ne suivent ni enseignement ni formation, en mettant notamment en oeuvre la garantie pour la jeunesse;22/02/2024
623610;COMMUNAUTE D AGGLOMERATION DU BASSIN D ARCACHON NORD ATLANTIQUE (COBAN);AMÉNAGEMENT D'UN POLE D'ECHANGES MULTIMODAUX AUTOUR DE LA GARE DE MARCHEPRIME ;;FEDER;01/03/2014;31/05/2017;1 102 487,10;385 870,49;35,00%;33380 Marcheprime;Aquitain;France;043 Infrastructures et promotion des transports urbains propres (y compris les équipements et le matériel roulant);22/02/2024
624610;REGION AQUITAINE-LIMOUSIN-POITOU-CHARENTES;2013IS035S08490000 - ORI1 2014 - Lot 35 - Plate-forme d'Orientation Villeneuvois;;IEJ;01/01/2014;31/08/2015;168 424,00;134 739,00;80,00%;47300 Villeneuve-sur-Lot;Aquitain;France;103 Intégration durable sur le marché du travail des jeunes, en particulier ceux qui sont sans emploi et qui ne suivent ni enseignement ni formation, en mettant notamment en oeuvre la garantie pour la jeunesse;22/02/2024
624710;REGION AQUITAINE-LIMOUSIN-POITOU-CHARENTES;2013IS036S08490000 - ORI1 2014 - Lot 36 - Aide aux choix professionnels spécialisée;;IEJ;01/01/2014;31/08/2015;50 538,00;40 430,00;80,00%;47190 Aiguillon;Aquitain;France;103 Intégration durable sur le marché du travail des jeunes, en particulier ceux qui sont sans emploi et qui ne suivent ni enseignement ni formation, en mettant notamment en oeuvre la garantie pour la jeunesse;22/02/2024
624810;REGION AQUITAINE-LIMOUSIN-POITOU-CHARENTES;2013IS037S08490000 - ORI1 2014 - Lot 37 - Aide aux choix professionnels spécialisée Métiers du Goût ;;IEJ;01/01/2014;31/08/2015;36 629,00;29 303,00;80,00%;24660 Coulounieix-Chamiers;Aquitain;France;103 Intégration durable sur le marché du travail des jeunes, en particulier ceux qui sont sans emploi et qui ne suivent ni enseignement ni formation, en mettant notamment en oeuvre la garantie pour la jeunesse;22/02/2024
624910;REGION AQUITAINE-LIMOUSIN-POITOU-CHARENTES;2013IS038S08490000 - ORI1 2014 - Lot 38 - Bilan Jeune d'Accès à la Qualification Dordogne.;;IEJ;01/01/2014;31/08/2015;163 935,29;131 148,23;80,00%;47000 Agen;Aquitain;France;103 Intégration durable sur le marché du travail des jeunes, en particulier ceux qui sont sans emploi et qui ne suivent ni enseignement ni formation, en mettant notamment en oeuvre la garantie pour la jeunesse;22/02/2024
625410;REGION AQUITAINE-LIMOUSIN-POITOU-CHARENTES;2013IS039S08490000 - ORI1 2014 - Lot 39 - Bilan Jeune d'Accès à la Qualification Landes;;IEJ;01/01/2014;31/08/2015;149 203,93;119 363,14;80,00%;64600 Anglet;Aquitain;France;103 Intégration durable sur le marché du travail des jeunes, en particulier ceux qui sont sans emploi et qui ne suivent ni enseignement ni formation, en mettant notamment en oeuvre la garantie pour la jeunesse;22/02/2024
625710;REGION AQUITAINE-LIMOUSIN-POITOU-CHARENTES;2013IS040S08490000 - ORI1 2014 - Lot 40 - Bilan Jeune d'Accès à la Qualification Lot et Garonne;;IEJ;01/01/2014;31/10/2015;170 033,00;136 026,00;80,00%;47000 Agen;Aquitain;France;103 Intégration durable sur le marché du travail des jeunes, en particulier ceux qui sont sans emploi et qui ne suivent ni enseignement ni formation, en mettant notamment en oeuvre la garantie pour la jeunesse;22/02/2024
625810;REGION AQUITAINE-LIMOUSIN-POITOU-CHARENTES;2013IS041S08490000 - ORI1 2014 - Lot 41 - Aide aux Choix Professionnels Spécialisée Animation Sport;;IEJ;01/01/2014;31/08/2015;70 803,00;56 642,00;80,00%;64000 Pau;Aquitain;France;103 Intégration durable sur le marché du travail des jeunes, en particulier ceux qui sont sans emploi et qui ne suivent ni enseignement ni formation, en mettant notamment en oeuvre la garantie pour la jeunesse;22/02/2024
626310;LES AMIS D'OTSOKOP;OTSOKOP;;FSE;01/04/2016;31/03/2017;35 350,00;16 000,00;45,26%;64100 BAYONNE;Aquitain;France;104 Emploi indépendant, entrepreneuriat et création d'entreprises, y compris les micro, petites et moyennes entreprises innovantes;22/02/2024
626410;MIGRADOUR;Suivi scientifique de l'Anguille sur le Courant de Soustons - rivière index 2014-2015 - MIGRADOUR;;FEDER;03/03/2014;31/03/2017;215 370,17;64 610,29;30,00%;64290 GAN;Aquitain;France;085 Protection et amélioration de la biodiversité, protection de la nature et infrastructure verte;22/02/2024
626510;REGION AQUITAINE-LIMOUSIN-POITOU-CHARENTES;2013IS042S08490000 - ORI1 2014 - Lot 42 - Aide aux Choix Professionnels Spécialisée Animation Sport ;;IEJ;01/01/2014;31/08/2015;47 654,00;38 123,00;80,00%;33370 Artigues-près-Bordeaux;Aquitain;France;103 Intégration durable sur le marché du travail des jeunes, en particulier ceux qui sont sans emploi et qui ne suivent ni enseignement ni formation, en mettant notamment en oeuvre la garantie pour la jeunesse;22/02/2024
626610;TONNELLERIE VINCENT DARNAJOU;CHEQUE DE TRANSFORMATION NUMERIQUE TONNELLERIE DARNAJOU;;FEDER;01/01/2015;31/12/2016;15 550,00;7 775,00;50,00%;33570 MONTAGNE;Aquitain;France;082 Services et applications TIC pour les PME (y compris le commerce électronique, le e-Business et les processus d’entreprise en réseau), les laboratoires vivants, les entrepreneurs web et les start-ups en matière de TIC;22/02/2024
627510;ASSO REGIONALE DES FEDERATIONS D AQUITAINE POUR LA PECHE;Plan Régional d'Actions en faveur de la sauvegarde de l'Ecrevisses à Pattes Blanches - Tranche 2016;;FEDER;01/01/2016;31/12/2016;198 276,89;99 137,98;50,00%;33750 BEYCHAC-ET-CAILLAU;Aquitain;France;085 Protection et amélioration de la biodiversité, protection de la nature et infrastructure verte;22/02/2024
631910;FÉDÉRATION DE LA GIRONDE POUR LA PÊCHE ET LA PROTECTION DU MILIEU AQUATIQUE;Connaissance, préservation et animation autour des milieux aquatiques d'eau douce en Gironde - 2016;;FEDER;01/01/2016;31/12/2016;466 605,00;93 321,00;20,00%;33750 BEYCHAC-ET-CAILLAU;Aquitain;France;085 Protection et amélioration de la biodiversité, protection de la nature et infrastructure verte;22/02/2024
632810;REGION D'AQUITAINE-LIMOUSIN-POITOU-CHARENTES;DIAGNOSTICS DE RESPONSABILITE SOCIETALE DES ORGANISATIONS DES PROJETS DE + 2 Meuros - 2016-2017;;FEDER;01/01/2016;31/12/2017;90 192,00;72 153,60;80,00%;33077 BORDEAUX CEDEX;Aquitain;France;121 Préparation, mise en oeuvre, suivi et contrôle;22/02/2024
634410;AGROPOLE SERVICES;Detection et accompagnement de jeunes entreprises innovantes 2016;;FEDER;01/01/2016;31/12/2016;239 935,38;92 976,38;38,75%;47310 ESTILLAC;Aquitain;France;067 Développement commercial des PME, soutien à l’esprit d’entreprise et à l’incubation (y compris le soutien aux entreprises issues de l'essaimage);22/02/2024
636210;ACTIV INSIDE;Investissements avals à un projet innovant;;FEDER;07/09/2015;30/06/2018;1 550 800,00;310 160,00;20,00%;33750 BEYCHAC-ET-CAILLAU;Aquitain;France;001 Investissement productif générique dans les petites et moyennes entreprises («PME»);22/02/2024
638310;ENGIE ENERGIE SERVICES - COFELY;Chaufferie biomasse et réseau de chaleur des Deux Rives à Périgueux;;FEDER;07/05/2016;31/12/2020;5 316 000,00;1 350 000,00;25,40%;24000 Périgueux;Aquitain;France;011 Énergies renouvelables: énergie de biomasse;22/02/2024
2243110;UNIVERSITE DE BORDEAUX;Equipement du plateau d'expérimentation Rongeurs du bâtiment NEUROCAMPUS/ AniMUB;;FEDER;01/12/2015;31/05/2017;1 430 624,04;734 604,04;51,35%;33000 Bordeaux;Aquitain;France;058 Infrastructures de recherche et d’innovation (publiques);22/02/2024
2243310;RAYONIER A.M. TARTAS;Amélioration de la Performance Energétique d'une unité de fabrication de Celluloses de Spécialités;;FEDER;01/10/2015;31/03/2017;1 361 943,51;180 457,52;13,25%;40400 TARTAS;Aquitain;France;068 Efficacité énergétique et projets de démonstration dans les PME et mesures d’accompagnement;22/02/2024
2243510;GIP Chemparc;Programme d'actions 2016 - Accueil d'investisseurs sur le bassin de Lacq;;FEDER;01/01/2016;31/12/2016;268 810,12;75 473,48;28,08%;64170 Lacq;Aquitain;France;066 Services d'appui avancé aux PME et groupes de PME (y compris services de gestion, de commercialisation et de conception);22/02/2024
2243610;CENTRE REGIONAL DES OEUVRES UNIVERSITAIRES ET SCOLAIRES DE BORDEAUX;Rénovation thermique de la résidence univesitaire Village 2 à Pessac ;"Depuis 2006, le CROUS de Bordeaux Aquitaine a mis en place un programme de réhabilitation de ses résidences universitaires. La rénovation thermique de la résidence du Village 2 à Pessac fait partie de ce programme. Elle s'inscrit dans la rénovation globale de la résidence. 

Le projet de rénovation thermique du Village 2 comporte 443 logements collectifs pour les étudiants et il vise l'amélioration de la performance énergétique des logements afin de réduire les charges et d'améliorer le confort au quotidien.

Le projet vise : 

- le coefficient d'énergie primaire (CEP) après travaux de 101,68 kWhep/m2.an (l'étiquette C), ce qui représente un gain de 173,67 kWhep/m2.an, 

Le chauffage avant et après travaux, reste à gaz. 
";FEDER;02/01/2014;31/12/2018;2 769 728,70;430 415,06;15,54%;33800 BORDEAUX;Aquitain;France;014 Rénovation en vue d'accroître l'efficacité énergétique du parc de logements existant, projets de démonstration et actions de soutien;22/02/2024
2243710;LA PETITE MOULETE;Création d'une Entreprise d'Insertion - Brasserie/Salon de thé;;FSE;01/03/2016;30/06/2017;25 000,00;16 000,00;64,00%;40000 Mont-de-Marsan;Aquitain;France;104 Emploi indépendant, entrepreneuriat et création d'entreprises, y compris les micro, petites et moyennes entreprises innovantes;22/02/2024
2244810;OFFICE PUBLIC DE L HABITAT DE LOT ET GARONNE HABITALYS;Rénovation thermique de la résidence EAUBONNE à Marmande;.;FEDER;06/01/2014;30/06/2017;762 418,21;79 292,40;10,40%;47000 AGEN;Aquitain;France;014 Rénovation en vue d'accroître l'efficacité énergétique du parc de logements existant, projets de démonstration et actions de soutien;22/02/2024
2244910;GIP DU GRAND PROJET DES HAUT DE GARONNE;SocialLab - Création d'espaces de proximité dans les quartiers Rive Droite;;FEDER;01/01/2016;31/03/2017;209 425,86;113 341,28;54,12%;33150 CENON;Aquitain;France;097 Initiatives de développement local menées par les acteurs locaux dans les zones urbaines et rurales;22/02/2024
2245910;MISSION LOCALE DU MEDOC;Espace Métiers Aquitaine (EMA) - Création : 1 site (Lesparre);;FSE;21/03/2016;31/12/2016;20 583,33;8 102,33;39,36%;33340 Lesparre-Médoc;Aquitain;France;117 Amélioration de l'égalité d'accès à l'apprentissage tout au long de la vie pour toutes les catégories d'âges dans un cadre formel,...;22/02/2024
2246510;CME DE BAYONNE;Gestion et valorisation des zones humides de la Plaine d'Ansot - Bayonne 2014-2016;;FEDER;01/01/2014;31/12/2016;505 674,64;328 687,89;65,00%;64109 BAYONNE CEDEX;Aquitain;France;085 Protection et amélioration de la biodiversité, protection de la nature et infrastructure verte;22/02/2024
2247010;PAU BEARN HABITAT;Rénovation thermique de la résidence RICHELIEU à Pau;"Le projet a pour but de rénover le système de chauffage électrique de la résidence Richelieu en raison de son caractère énergivore. La rénovation thermique de cette résidence s'inscrit dans la rénovation globale de cette dernière. Cela permettra ainsi de passer d'un bâtiment énergivore (231,97 kWhep/m2.an) à un bâtiment plus écologique (77,09kWhep/m2.an). Le bâtiment passerait donc d'une étiquette énergétique E à B.  

Cette rénovation thermique permettra également une baisse des charges locatives des résidents en situation économique déjà fragile.";FEDER;02/03/2015;30/10/2017;149 538,00;44 861,00;30,00%;64000 Pau;Aquitain;France;014 Rénovation en vue d'accroître l'efficacité énergétique du parc de logements existant, projets de démonstration et actions de soutien;22/02/2024
2251610;INSTITUT POLYTECHNIQUE DE BORDEAUX;Cognitique collaborative et Facteur humain sur le territoire régional;;FEDER;01/02/2016;31/01/2019;531 303,64;265 651,35;50,00%;33400 Talence;Aquitain;France;;22/02/2024
2254910;EOVE;Projet de développement  d'un assistant de toux destiné aux patients ventilo-dépendants ;;FEDER;01/12/2015;30/06/2017;1 257 510,05;180 843,93;14,38%;64000 PAU;Aquitain;France;064 Processus de recherche et d’innovation dans les PME (y compris systèmes de bons, processus, conception, service et innovation sociale);22/02/2024
2256810;AQUI NAUS, DES BATEAUX AUTREMENT;Association de préfiguration pour l'usage coopératif et la valorisation de gréements traditionnels;;FSE;01/05/2016;31/08/2017;32 906,00;16 000,00;48,62%;333000 BORDEAUX;Aquitain;France;104 Emploi indépendant, entrepreneuriat et création d'entreprises, y compris les micro, petites et moyennes entreprises innovantes;22/02/2024
2256910;SA SYCLOPE ELECTRONIQUE;GREEN SENSOR - Développement d'un capteur industriel pour l'analyse des métaux in situ et en continu;-;FEDER;01/11/2016;31/12/2019;439 586,57;87 713,47;19,95%;64230 SAUVAGNON;Aquitain;France;064 Processus de recherche et d’innovation dans les PME (y compris systèmes de bons, processus, conception, service et innovation sociale);22/02/2024
2260510;UN PTIT VERS DE DROPT;"""Un ptit vers de Dropt"" de long en large";;FSE;01/05/2016;30/04/2017;36 900,00;16 000,00;43,36%;47120 PARDAILLAN;Aquitain;France;104 Emploi indépendant, entrepreneuriat et création d'entreprises, y compris les micro, petites et moyennes entreprises innovantes;22/02/2024
2263210;SEM HELIOPARC PAU PYRENEES;Travaux de réhabilitation-équipement en vue de la  création de la pépiniére et incubateur GEOSTART ;;FEDER;01/02/2016;30/08/2016;166 194,48;44 194,48;26,59%;64000 PAU;Aquitain;France;056 Investissements dans les infrastructures, capacités et équipements des PME directement liés aux activités de recherche et d’innovation;22/02/2024
2263410;HOLIGHT;Investissements immobiliers et matériels;;FEDER;10/02/2016;30/06/2018;1 110 098,00;330 000,00;29,73%;64680 OGEU-LES-BAINS;Aquitain;France;001 Investissement productif générique dans les petites et moyennes entreprises («PME»);22/02/2024
2274210;ASS BORDEAUX TECHNOWEST;Détection et accompagnement de jeunes entreprises innovantes 2016;;FEDER;01/01/2016;31/12/2016;1 228 105,70;391 742,41;31,90%;33702 MERIGNAC CEDEX;Aquitain;France;067 Développement commercial des PME, soutien à l’esprit d’entreprise et à l’incubation (y compris le soutien aux entreprises issues de l'essaimage);22/02/2024
2275010;UNIVERSITE DE BORDEAUX;Plateforme Mutualisée de Biologie et Imagerie Moléculaire;;FEDER;01/10/2016;31/12/2017;917 060,45;715 307,15;78,00%;33600 Pessac;Aquitain;France;058 Infrastructures de recherche et d’innovation (publiques);22/02/2024
2283610;BETOMORROW;Projet RTS : développement d'une solution complète de suivi interactif de courses hippiques;;FEDER;15/09/2014;31/12/2016;1 144 931,27;348 835,33;30,47%;33000 BORDEAUX;Aquitain;France;064 Processus de recherche et d’innovation dans les PME (y compris systèmes de bons, processus, conception, service et innovation sociale);22/02/2024
2293910;IPM TECHNOLOGIES;Développement d'unités de production pharmaceutiques modulaires (hémodialyse et solutés injectables);;FEDER;30/07/2015;30/06/2017;1 465 569,65;522 226,67;35,63%;47520 LE PASSAGE;Aquitain;France;001 Investissement productif générique dans les petites et moyennes entreprises («PME»);22/02/2024
2299410;REGION NOUVELLE-AQUITAINE;Evaluation de la Performance Industrielle des entreprises / Usine du Futur Phase 2;;FEDER;01/09/2015;30/10/2017;563 268,77;563 268,77;100,00%;33077 BORDEAUX CEDEX;Aquitain;France;066 Services d'appui avancé aux PME et groupes de PME (y compris services de gestion, de commercialisation et de conception);22/02/2024
2303510;CONSERVATOIRE DES RACES D AQUITAINE;Pratiques écopastorales pour la biodiversité - Conservatoire des races d'Aquitaine 2016-2017;;FEDER;01/01/2016;31/12/2017;120 228,00;75 000,00;62,38%;33160 Salaunes;Aquitain;France;085 Protection et amélioration de la biodiversité, protection de la nature et infrastructure verte;22/02/2024
2303610;CA LE GRAND PERIGUEUX;POLE D'ECHANGES MULTIMODAL DE LA GARE DE PÉRIGUEUX - PHASE 2;"Éléments phare :
- Nouvelle passerelle enjambant les voies ferrées et accessible PMR
Enjeux :
Améliorer les conditions d'accessibilité à la gare pour tous les modes de transport et permettre un fonctionnement optimisé
Répartir l'offre de services de part et d'autre du faisceau ferré grâce à une gare bi-face
Assurer la qualité d'espace public à la hauteur des besoins des habitants avec des solutions d'aménagements conformes aux enjeux environnementaux
À terme, favoriser le report modal dans les usages quotidien";FEDER;01/09/2020;30/11/2023;5 645 635,00;1 758 053,00;31,14%;24000 Périgueux;Aquitain;France;036 Transports multimodaux;22/02/2024
2303710;DÉPARTEMENT DES PYRÉNÉES ATLANTIQUES;Promotion territoriale,prospection exogène,suivi d'investisseurs industriels de la filière spatiale;;FEDER;29/08/2014;31/12/2016;94 800,00;94 800,00;100,00%;64058 PAU CEDEX 9;Aquitain;France;067 Développement commercial des PME, soutien à l’esprit d’entreprise et à l’incubation (y compris le soutien aux entreprises issues de l'essaimage);22/02/2024
2303810;S.E.E MAYTE SAUVEUR ET FILS;Construction du nouvel atelier de fabrication de la charcuterie Mayté ;;FEDER;02/02/2015;30/12/2017;3 133 526,00;600 000,00;19,15%;64220 ST JEAN LE VIEUX;Aquitain;France;001 Investissement productif générique dans les petites et moyennes entreprises («PME»);22/02/2024
2304010;LES 3 A;Développement du bureau d'accompagnement culture;;FSE;01/01/2016;31/12/2016;89 261,30;39 915,40;44,72%;33000 BORDEAUX;Aquitain;France;104 Emploi indépendant, entrepreneuriat et création d'entreprises, y compris les micro, petites et moyennes entreprises innovantes;22/02/2024
2308210;TALIS ITINÉRAIRE EMPLOI;Sécurisation des parcours par le diplôme d'accès aux études  universitaires (DAEU);;FSE;01/08/2016;31/07/2017;48 684,33;18 085,51;37,15%;24100 BERGERAC;Aquitain;France;117 Amélioration de l'égalité d'accès à l'apprentissage tout au long de la vie pour toutes les catégories d'âges dans un cadre formel,...;22/02/2024
2308610;PAU BEARN HABITAT;Rénovation thermique de la résidence ROUSSANE à Monein;"Ce projet a pour but de rénover le système de chauffage et de production d'eau chaude sanitaire (ECS)  électrique dans chaque logement de la résidence Roussane située à Monein (Pyrénées Atlantiques)  en raison de sa vétusté et de son caractère énergivore. Cette dernière comporte  7 logements.  Il s'agit de la rénovation thermique de la résidence. Le projet vise  la transformation totale du système de chauffage pour passer d'un bâtiment énergivore (253,3 kWhep/m².an) à un bâtiment plus écologique (103 kWhep/m²..an). Le classement énergétique de l'immeuble passerait d'une étiquette énergétique  E à une étiquette C. Cette rénovation permettra également une baisse du coût des charges locatives des résidents en situation économique fragile. 
";FEDER;01/09/2014;16/09/2016;54 211,00;16 263,00;30,00%;64360 Monein;Aquitain;France;014 Rénovation en vue d'accroître l'efficacité énergétique du parc de logements existant, projets de démonstration et actions de soutien;22/02/2024
2315010;ELIXIR;LUTTE CONTRE LE GASPILLAGE ALIMENTAIRE;;FSE;01/05/2016;31/12/2016;53 091,00;16 000,00;30,14%;33100 BORDEAUX;Aquitain;France;104 Emploi indépendant, entrepreneuriat et création d'entreprises, y compris les micro, petites et moyennes entreprises innovantes;22/02/2024
2318410;JARDIN GARONNE;LE JARDIN PECHEUR GARONNE;;FEDER;01/03/2016;30/04/2017;645 000,00;200 000,00;31,01%;33000 Bordeaux;Aquitain;France;097 Initiatives de développement local menées par les acteurs locaux dans les zones urbaines et rurales;22/02/2024
2324010;AQUITANIS;Réhabilitation thermique des résidences GHI à Bordeaux;;FEDER;02/01/2014;22/11/2016;10 768 957,00;736 662,00;6,84%;33300 BORDEAUX CEDEX;Aquitain;France;014 Rénovation en vue d'accroître l'efficacité énergétique du parc de logements existant, projets de démonstration et actions de soutien;22/02/2024
2330810;SEM HELIOPARC PAU PYRENEES;Détection et accompagnement des jeunes entreprises innovantes 2016;;FEDER;01/01/2016;31/12/2016;291 208,70;53 935,16;18,52%;64053 PAU;Aquitain;France;067 Développement commercial des PME, soutien à l’esprit d’entreprise et à l’incubation (y compris le soutien aux entreprises issues de l'essaimage);22/02/2024
2336610;EUCC-FRANCE;"Conférence Internationale ""Littoral 2016 : anticipation et adaptation aux changements climatiques"" EUCC France";;FEDER;15/07/2015;01/07/2017;139 857,00;85 000,00;60,78%;64200 Biarritz;Aquitain;France;087 Mesures d'adaptation au changement climatique, prévention et gestion des risques liés au climat, comme l’érosion, les incendies, les inondations,...;22/02/2024
2337110;ASSOCIATION BORDEAUX UNITEC;Détection et accompagnement de jeunes entreprises innovantes 2016;;FEDER;01/01/2016;31/12/2016;999 341,60;397 998,65;39,83%;33600 PESSAC;Aquitain;France;067 Développement commercial des PME, soutien à l’esprit d’entreprise et à l’incubation (y compris le soutien aux entreprises issues de l'essaimage);22/02/2024
2338010;L ATELIER BASH;Chéque transformation numerique Atelier Bash;;FEDER;01/06/2016;31/03/2017;35 200,00;17 600,00;50,00%;24190 NEUVIC;Aquitain;France;082 Services et applications TIC pour les PME (y compris le commerce électronique, le e-Business et les processus d’entreprise en réseau), les laboratoires vivants, les entrepreneurs web et les start-ups en matière de TIC;22/02/2024
2339810;REGION AQUITAINE-LIMOUSIN-POITOU-CHARENTES;2014ID001S1541 LOT 1 AFEC Métiers de la restauration Reconduction;;FSE;01/01/2016;31/12/2016;132 733,88;66 366,94;50,00%;24000 Périgueux;Aquitain;France;117 Amélioration de l'égalité d'accès à l'apprentissage tout au long de la vie pour toutes les catégories d'âges dans un cadre formel,...;22/02/2024
2340010;REGION AQUITAINE-LIMOUSIN-POITOU-CHARENTES;2015IA009S1372 LOT 9 APES 24 Découverte métiers des espaces verts;;FSE;01/01/2016;30/06/2017;34 750,00;17 375,00;50,00%;24190 Neuvic;Aquitain;France;117 Amélioration de l'égalité d'accès à l'apprentissage tout au long de la vie pour toutes les catégories d'âges dans un cadre formel,...;22/02/2024
2340610;Région Nouvelle-Aquitaine;2014ID001S01530000 - FM2 2014 - Lot 01 - Ouvrier-ère agricole polyvalent et cultures spécialisées 47;;IEJ;01/09/2014;31/08/2016;18 572,25;14 857,80;80,00%;47110 Sainte-Livrade-sur-Lot;Aquitain;France;103 Intégration durable sur le marché du travail des jeunes, en particulier ceux qui sont sans emploi et qui ne suivent ni enseignement ni formation, en mettant notamment en oeuvre la garantie pour la jeunesse;22/02/2024
2340710;MESOLIA HABITAT;Réhabilitation thermique d'ensemble du lotissement La Beylive à Bergerac ;;FEDER;02/01/2014;15/12/2017;938 209,00;281 462,00;30,00%;24100 Bergerac;Aquitain;France;014 Rénovation en vue d'accroître l'efficacité énergétique du parc de logements existant, projets de démonstration et actions de soutien;22/02/2024
2341010;Région Nouvelle-Aquitaine;2014ID002S01530000 - FM2 2014- Lot 02 - Ouvrier-ère agricole polyvalent Landes;;IEJ;01/09/2014;31/08/2016;3 254,20;2 603,36;80,00%;33077 BORDEAUX CEDEX;Aquitain;France;103 Intégration durable sur le marché du travail des jeunes, en particulier ceux qui sont sans emploi et qui ne suivent ni enseignement ni formation, en mettant notamment en oeuvre la garantie pour la jeunesse;22/02/2024
2341210;Région Nouvelle-Aquitaine;2014ID003S01530000 - FM2 2 -LOT 03 - Tx de conduite et d'entretien d'engins agricoles et forestiers ;;IEJ;01/09/2014;31/08/2016;16 975,08;13 580,06;80,00%;40180 Oeyreluy;Aquitain;France;103 Intégration durable sur le marché du travail des jeunes, en particulier ceux qui sont sans emploi et qui ne suivent ni enseignement ni formation, en mettant notamment en oeuvre la garantie pour la jeunesse;22/02/2024
2343310;Région Nouvelle-Aquitaine;2014ID004S01530000 - FM2 2014  Lot 04 - Responsable d'exploit agricole coventionnelle et agro-bio;;IEJ;01/09/2014;31/08/2016;110 664,94;88 531,96;80,00%;64121 Montardon;Aquitain;France;103 Intégration durable sur le marché du travail des jeunes, en particulier ceux qui sont sans emploi et qui ne suivent ni enseignement ni formation, en mettant notamment en oeuvre la garantie pour la jeunesse;22/02/2024
2343710;Région Nouvelle-Aquitaine;"2014ID005S01530000-FM2 2014-Lot 05-Brevet Prof. Responsable d'Exploit; Aquacole et Marit  ";;IEJ;01/09/2014;31/08/2016;23 386,20;18 708,96;80,00%;33000 Bordeaux;Aquitain;France;103 Intégration durable sur le marché du travail des jeunes, en particulier ceux qui sont sans emploi et qui ne suivent ni enseignement ni formation, en mettant notamment en oeuvre la garantie pour la jeunesse;22/02/2024
2343910;Région Nouvelle-Aquitaine;2014ID006S01530000-FM2 20141-Lot 06-Pré-qualif. Qualif métiers du bâtiment gros et second oeuvre;;IEJ;01/09/2014;31/08/2016;57 907,50;46 326,00;80,00%;24000 Périgueux;Aquitain;France;103 Intégration durable sur le marché du travail des jeunes, en particulier ceux qui sont sans emploi et qui ne suivent ni enseignement ni formation, en mettant notamment en oeuvre la garantie pour la jeunesse;22/02/2024
2344110;Région Nouvelle-Aquitaine;2014ID007S01530000-FM2 2014-Lot 07-Qualification bâtiment Libournais, Blayais et Hte Gironde;;IEJ;01/09/2014;31/08/2016;211 896,00;169 516,00;80,00%;33500 Libourne;Aquitain;France;103 Intégration durable sur le marché du travail des jeunes, en particulier ceux qui sont sans emploi et qui ne suivent ni enseignement ni formation, en mettant notamment en oeuvre la garantie pour la jeunesse;22/02/2024
2344410;Région Nouvelle-Aquitaine;2014ID008S01530000-FM2 2014-Lot 08-Préformation chantiers clausés Bordeaux Agglomération;;IEJ;01/09/2014;31/08/2016;73 394,64;58 714,96;80,00%;33100 Bordeaux;Aquitain;France;103 Intégration durable sur le marché du travail des jeunes, en particulier ceux qui sont sans emploi et qui ne suivent ni enseignement ni formation, en mettant notamment en oeuvre la garantie pour la jeunesse;22/02/2024
2344510;DOMOFRANCE;Rénovation thermique de la résidence Saint Martin à Villenave d'Ornon ;;FEDER;02/01/2014;31/12/2016;2 507 450,32;361 493,28;14,42%;33140 Villenave-d'Ornon;Aquitain;France;014 Rénovation en vue d'accroître l'efficacité énergétique du parc de logements existant, projets de démonstration et actions de soutien;22/02/2024
2344710;Région Nouvelle-Aquitaine;2014ID009S01530000-FM2 2014-Lot 09-Métiers de bouche - Dordogne;;IEJ;01/09/2014;31/08/2016;41 213,95;32 971,16;80,00%;45000 Orléans;Aquitain;France;103 Intégration durable sur le marché du travail des jeunes, en particulier ceux qui sont sans emploi et qui ne suivent ni enseignement ni formation, en mettant notamment en oeuvre la garantie pour la jeunesse;22/02/2024
2344910;Région Nouvelle-Aquitaine;2014ID010S01530000-FM2 2014-Lot 10-Métiers de la restauration Dordogne;;IEJ;01/09/2014;31/08/2016;84 252,73;67 402,18;80,00%;33000 Bordeaux;Aquitain;France;103 Intégration durable sur le marché du travail des jeunes, en particulier ceux qui sont sans emploi et qui ne suivent ni enseignement ni formation, en mettant notamment en oeuvre la garantie pour la jeunesse;22/02/2024
2347410;REGION AQUITAINE-LIMOUSIN-POITOU-CHARENTES;2014ID002S1541 lot 2 Métiers de la peinture INSUP Reconduction;;FSE;01/01/2016;31/12/2016;240 236,30;120 118,15;50,00%;33170 Gradignan;Aquitain;France;117 Amélioration de l'égalité d'accès à l'apprentissage tout au long de la vie pour toutes les catégories d'âges dans un cadre formel,...;22/02/2024
2347510;Région Nouvelle-Aquitaine;2014ID003S1541 lot 3 Métiers agent d'entretien du batiment PREFACE Reconduction;;FSE;01/01/2016;31/12/2016;129 350,66;64 675,33;50,00%;24150 Mauzac-et-Grand-Castang;Aquitain;France;117 Amélioration de l'égalité d'accès à l'apprentissage tout au long de la vie pour toutes les catégories d'âges dans un cadre formel,...;22/02/2024
2347610;L INCUBATEUR AU FEMININ BORDEAUX AQUITAINE;Incubateur d'entreprises au féminin et sensibilisation à  l'entrepreneuriat féminin ;;FSE;01/01/2016;31/12/2016;161 583,47;46 700,42;28,90%;33100 Bordeaux;Aquitain;France;104 Emploi indépendant, entrepreneuriat et création d'entreprises, y compris les micro, petites et moyennes entreprises innovantes;22/02/2024
2347710;REGION AQUITAINE-LIMOUSIN-POITOU-CHARENTES;2014ID004S1541 lot 4 Métiers de la propreté et de l'hygiène INSUP Reconduction;;FSE;01/01/2016;31/12/2016;176 480,84;88 240,42;50,00%;33170 Gradignan;Aquitain;France;117 Amélioration de l'égalité d'accès à l'apprentissage tout au long de la vie pour toutes les catégories d'âges dans un cadre formel,...;22/02/2024
2347810;REGION AQUITAINE-LIMOUSIN-POITOU-CHARENTES;2014ID005S1541 lot 5 Métiers de la mode vetement flou INSUP Reconduction;;FSE;01/01/2016;31/12/2016;27 317,50;13 658,75;50,00%;33170 Gradignan;Aquitain;France;117 Amélioration de l'égalité d'accès à l'apprentissage tout au long de la vie pour toutes les catégories d'âges dans un cadre formel,...;22/02/2024
2347910;REGION AQUITAINE-LIMOUSIN-POITOU-CHARENTES;2014ID006S1541 lot 6 Métiers de la soudure et de la métallurgie STI Reconduction;;FSE;01/01/2016;31/12/2016;26 076,96;13 038,48;50,00%;47300 Villeneuve-sur-Lot;Aquitain;France;117 Amélioration de l'égalité d'accès à l'apprentissage tout au long de la vie pour toutes les catégories d'âges dans un cadre formel,...;22/02/2024
2348010;REGION AQUITAINE-LIMOUSIN-POITOU-CHARENTES;2014ID007S1541 lot 7 Métiers agent de fabrication SUNSET CREATION Reconduction;;FSE;01/01/2016;31/12/2016;93 139,20;46 569,60;50,00%;24150 Mauzac-et-Grand-Castang;Aquitain;France;117 Amélioration de l'égalité d'accès à l'apprentissage tout au long de la vie pour toutes les catégories d'âges dans un cadre formel,...;22/02/2024
2348110;L EPICERIE SANS FIN;Structuration de l'Épicerie Sans Fin;;FSE;01/06/2016;31/05/2017;65 717,00;16 000,00;24,35%;64390 SAUVETERRE-DE-BEARN;Aquitain;France;104 Emploi indépendant, entrepreneuriat et création d'entreprises, y compris les micro, petites et moyennes entreprises innovantes;22/02/2024
2348210;LE CHANT DES HISTOIRES;Contes et histoires pour la petite enfance et la jeunesse en Pays basque;;FSE;04/07/2016;30/06/2017;35 082,00;16 000,00;45,61%;64600 ANGLET;Aquitain;France;104 Emploi indépendant, entrepreneuriat et création d'entreprises, y compris les micro, petites et moyennes entreprises innovantes;22/02/2024
2348510;REGION AQUITAINE-LIMOUSIN-POITOU-CHARENTES;2014ID008S1541 lot 8 Métier menuisier de fabrication PREFACE Reconduction;;FSE;01/01/2016;31/12/2016;61 883,90;30 941,95;50,00%;47300 Villeneuve-sur-Lot;Aquitain;France;117 Amélioration de l'égalité d'accès à l'apprentissage tout au long de la vie pour toutes les catégories d'âges dans un cadre formel,...;22/02/2024
2348810;REGION AQUITAINE-LIMOUSIN-POITOU-CHARENTES;2014ID009S1541 lot 9 Métiers horticoles AFAC 24 Reconduction;;FSE;01/01/2016;31/12/2016;348 497,40;174 248,70;50,00%;24150 Mauzac-et-Grand-Castang;Aquitain;France;117 Amélioration de l'égalité d'accès à l'apprentissage tout au long de la vie pour toutes les catégories d'âges dans un cadre formel,...;22/02/2024
2349010;REGION AQUITAINE-LIMOUSIN-POITOU-CHARENTES;2014ID010S1541 lot 10  Action de découverte des métiers  IREP Reconduction;;FSE;01/01/2016;31/12/2016;268 258,34;134 129,17;50,00%;33000 Bordeaux;Aquitain;France;117 Amélioration de l'égalité d'accès à l'apprentissage tout au long de la vie pour toutes les catégories d'âges dans un cadre formel,...;22/02/2024
2350210;Région Nouvelle-Aquitaine;2014ID011S01530000-FM2 2014-LOT 11- Métiers de bouche Gironde;;IEJ;01/09/2014;31/08/2016;43 630,00;34 904,00;80,00%;33800 Bordeaux;Aquitain;France;103 Intégration durable sur le marché du travail des jeunes, en particulier ceux qui sont sans emploi et qui ne suivent ni enseignement ni formation, en mettant notamment en oeuvre la garantie pour la jeunesse;22/02/2024
2350610;Région Nouvelle-Aquitaine;2014ID012S01530000-FM2 2014-LOT12-METIER DE LA RESTAURATION GIRONDE;;IEJ;01/09/2014;31/08/2016;102 978,84;82 383,08;80,00%;33170 Gradignan;Aquitain;France;103 Intégration durable sur le marché du travail des jeunes, en particulier ceux qui sont sans emploi et qui ne suivent ni enseignement ni formation, en mettant notamment en oeuvre la garantie pour la jeunesse;22/02/2024
2352710;Région Nouvelle-Aquitaine;2014ID013S01530000-FM2-2014-LOT13- PREQUALIFICATION / QUALIFICATION METIERS AGRO-ALIMENTAIRE GIRONDE;;IEJ;01/09/2014;31/08/2016;44 610,60;35 688,48;80,00%;33290 Blanquefort;Aquitain;France;103 Intégration durable sur le marché du travail des jeunes, en particulier ceux qui sont sans emploi et qui ne suivent ni enseignement ni formation, en mettant notamment en oeuvre la garantie pour la jeunesse;22/02/2024
2353110;Région Nouvelle-Aquitaine;2014ID014S01530000-FM2 2014 -Lot 14-Métiers de bouche Lot et Garonne;;IEJ;01/09/2014;31/08/2016;21 808,10;17 446,48;80,00%;33000 Bordeaux;Aquitain;France;103 Intégration durable sur le marché du travail des jeunes, en particulier ceux qui sont sans emploi et qui ne suivent ni enseignement ni formation, en mettant notamment en oeuvre la garantie pour la jeunesse;22/02/2024
2353410;Région Nouvelle-Aquitaine;2014ID015S01530000-FM2 2014-Lot 15- Métiers de la restauration Lot et Garonne;;IEJ;01/09/2014;31/08/2016;40 126,58;32 101,38;80,00%;33170 Gradignan;Aquitain;France;103 Intégration durable sur le marché du travail des jeunes, en particulier ceux qui sont sans emploi et qui ne suivent ni enseignement ni formation, en mettant notamment en oeuvre la garantie pour la jeunesse;22/02/2024
2353610;Région Nouvelle-Aquitaine;2014ID016S01530000-FM2 2014-Lot 16- Métiers de bouche Aquitaine Sud;;IEJ;01/09/2014;31/08/2016;12 402,15;9 921,72;80,00%;64000 Pau;Aquitain;France;103 Intégration durable sur le marché du travail des jeunes, en particulier ceux qui sont sans emploi et qui ne suivent ni enseignement ni formation, en mettant notamment en oeuvre la garantie pour la jeunesse;22/02/2024
2353710;Région Nouvelle-Aquitaine;2014ID017S01530000-FM 2014-Lot 17- Métiers de la restauration Béarn;;IEJ;01/09/2014;31/08/2016;21 747,11;17 397,68;80,00%;33000 Bordeaux;Aquitain;France;103 Intégration durable sur le marché du travail des jeunes, en particulier ceux qui sont sans emploi et qui ne suivent ni enseignement ni formation, en mettant notamment en oeuvre la garantie pour la jeunesse;22/02/2024
2353810;BORDEAUX METROPOLE;Construction d'un réseau de chaleur à Saint-Jean Belcier MO Bordeaux Métropole;;FEDER;24/04/2014;30/06/2019;7 547 613,00;1 100 000,00;14,57%;33000 Bordeaux;Aquitain;France;016 Cogénération et chauffage urbain à haut rendement;22/02/2024
2353910;Région Nouvelle-Aquitaine;2014ID018S01530000-FM2 2014-Lot 18-Secrétariat spécialisé viti/vini ou médico/social Médoc;;IEJ;01/09/2014;31/08/2016;3 679,90;2 943,92;80,00%;33300 Bordeaux;Aquitain;France;103 Intégration durable sur le marché du travail des jeunes, en particulier ceux qui sont sans emploi et qui ne suivent ni enseignement ni formation, en mettant notamment en oeuvre la garantie pour la jeunesse;22/02/2024
2354010;Région Nouvelle-Aquitaine;1014ID019S01530000-FM2 2014-Lot 19-CAP Petite Enfance Lot et Garonne;;IEJ;01/09/2014;31/08/2016;22 404,67;17 923,74;80,00%;33000 Bordeaux;Aquitain;France;103 Intégration durable sur le marché du travail des jeunes, en particulier ceux qui sont sans emploi et qui ne suivent ni enseignement ni formation, en mettant notamment en oeuvre la garantie pour la jeunesse;22/02/2024
2354110;Région Nouvelle-Aquitaine;2014ID020S01530000-FM2 2014-Lot 20- Parcours qualifiant animation sportive Aquitaine Sud;;IEJ;01/09/2014;31/08/2016;18 775,87;15 020,70;80,00%;33370 Artigues-près-Bordeaux;Aquitain;France;103 Intégration durable sur le marché du travail des jeunes, en particulier ceux qui sont sans emploi et qui ne suivent ni enseignement ni formation, en mettant notamment en oeuvre la garantie pour la jeunesse;22/02/2024
2354210;Région Nouvelle-Aquitaine;2014ID021S01530000-FM2 2014-Lot 21- Gardien-ne d'immeuble Gironde;;IEJ;01/09/2014;31/08/2016;20 394,15;16 315,32;80,00%;33150 Cenon;Aquitain;France;103 Intégration durable sur le marché du travail des jeunes, en particulier ceux qui sont sans emploi et qui ne suivent ni enseignement ni formation, en mettant notamment en oeuvre la garantie pour la jeunesse;22/02/2024
2354410;Région Nouvelle-Aquitaine;2014ID022S01530000-FM2 2014-Lot 22- Assistant-e Technique et Technicien-ne spectable vivant Aquitain;;IEJ;01/09/2014;31/08/2016;72 186,00;57 748,00;80,00%;33000 Bordeaux;Aquitain;France;103 Intégration durable sur le marché du travail des jeunes, en particulier ceux qui sont sans emploi et qui ne suivent ni enseignement ni formation, en mettant notamment en oeuvre la garantie pour la jeunesse;22/02/2024
2354510;Région Nouvelle-Aquitaine;2014ID023S01530000-FM2 2014-Lot 23-Musicien musiques actuelles-Professionnalisation et qualification;;IEJ;01/09/2014;31/08/2016;90 715,00;72 572,00;80,00%;33000 Bordeaux;Aquitain;France;103 Intégration durable sur le marché du travail des jeunes, en particulier ceux qui sont sans emploi et qui ne suivent ni enseignement ni formation, en mettant notamment en oeuvre la garantie pour la jeunesse;22/02/2024
2354810;ECOLE SUPÉRIEURE DES TECHNOLOGIES INDU TRIELLES AVANCÉES - ESTIA;Détection et accompagnement des jeunes entreprises innovantes - 2016;;FEDER;01/01/2016;31/12/2016;547 597,00;215 000,00;39,26%;64210 BIDART;Aquitain;France;067 Développement commercial des PME, soutien à l’esprit d’entreprise et à l’incubation (y compris le soutien aux entreprises issues de l'essaimage);22/02/2024
2354910;ASS TERRITOIRES ET INNOVATION SOCIALE - ATIS;Développement de l'incubateur d'innovation sociale;;FSE;01/01/2016;31/12/2016;88 094,12;46 779,51;53,10%;33600 PESSAC;Aquitain;France;104 Emploi indépendant, entrepreneuriat et création d'entreprises, y compris les micro, petites et moyennes entreprises innovantes;22/02/2024
2359610;SAFRAN CERAMICS;Création d'un centre de recherche sur les matériaux composites;;FEDER;01/08/2015;31/12/2017;20 027 452,78;1 931 321,62;9,64%;33185 LE HAILLAN;Aquitain;France;002 Processus de recherche et d’innovation dans les grandes entreprises;22/02/2024
2361010;CME CAPBRETON;REHABILITATION DU CORDON DUNAIRE- Littoral de Capbreton;;FEDER;01/09/2014;31/12/2016;509 512,00;92 782,00;18,21%;40130 CAPBRETON;Aquitain;France;087 Mesures d'adaptation au changement climatique, prévention et gestion des risques liés au climat, comme l’érosion, les incendies, les inondations,...;22/02/2024
2361510;IFAID AQUITAINE;Formation COPSIL - Promotion 2015/2017;;FSE;01/06/2015;30/09/2017;556 502,41;134 325,68;24,14%;33600 PESSAC;Aquitain;France;117 Amélioration de l'égalité d'accès à l'apprentissage tout au long de la vie pour toutes les catégories d'âges dans un cadre formel,...;22/02/2024
2364110;ANDROPHYNE;CONTAINER, espace de création partagé;;FSE;01/03/2016;31/12/2016;34 453,00;16 000,00;46,44%;40150 Soorts-Hossegor;Aquitain;France;104 Emploi indépendant, entrepreneuriat et création d'entreprises, y compris les micro, petites et moyennes entreprises innovantes;22/02/2024
2366310;CME DE GAN;Aménagement de la voie verte de la commune de GAN concernant l'itinéraire de liaison Pau-route des cols;;FEDER;19/10/2015;30/09/2019;1 148 621,68;412 318,67;35,90%;64290 GAN;Aquitain;France;090 Pistes cyclables et chemins piétonniers;22/02/2024
2367510;Région Nouvelle-Aquitaine;2013ID001S10280000-FM1 2014-LOT01- Responsable d'entreprise hippique-salarié secteur équin;;IEJ;01/01/2014;31/01/2016;45 346,60;36 277,28;80,00%;40000 Mont-de-Marsan;Aquitain;France;103 Intégration durable sur le marché du travail des jeunes, en particulier ceux qui sont sans emploi et qui ne suivent ni enseignement ni formation, en mettant notamment en oeuvre la garantie pour la jeunesse;22/02/2024
2367810;Région Nouvelle-Aquitaine;2013ID029S10280000-FM1 2014 - LOT 29 - Métiers d'assistance aux familles Bordeaux Agglomération;;IEJ;01/01/2014;31/01/2016;89 222,89;71 378,31;80,00%;33800 Bordeaux;Aquitain;France;103 Intégration durable sur le marché du travail des jeunes, en particulier ceux qui sont sans emploi et qui ne suivent ni enseignement ni formation, en mettant notamment en oeuvre la garantie pour la jeunesse;22/02/2024
2368110;Région Nouvelle-Aquitaine;2013ID004S10280000-FM1 2014-Lot 04 - Ouvrier-ère d'exploitation viti-vini conventionnelle  agrobio ;;IEJ;01/01/2014;31/01/2016;3 150,70;2 520,56;80,00%;33230 Églisottes-et-Chalaures;Aquitain;France;103 Intégration durable sur le marché du travail des jeunes, en particulier ceux qui sont sans emploi et qui ne suivent ni enseignement ni formation, en mettant notamment en oeuvre la garantie pour la jeunesse;22/02/2024
2368210;Région Nouvelle-Aquitaine;2013ID003S10280000-FM1 2014-LOT 003-Ouvrier-ère d'exploitation viti-vini conv et agrobio Médoc;;IEJ;01/01/2014;31/01/2016;37 148,40;29 718,72;80,00%;33340 Saint-Yzans-de-Médoc;Aquitain;France;103 Intégration durable sur le marché du travail des jeunes, en particulier ceux qui sont sans emploi et qui ne suivent ni enseignement ni formation, en mettant notamment en oeuvre la garantie pour la jeunesse;22/02/2024
2368310;Région Nouvelle-Aquitaine;2013ID028S10280000-FM1 2014 - LOT 28 - Métiers d'assistance aux familles Arcachon;;IEJ;01/01/2014;31/01/2016;18 407,40;14 725,92;80,00%;33800 Bordeaux;Aquitain;France;103 Intégration durable sur le marché du travail des jeunes, en particulier ceux qui sont sans emploi et qui ne suivent ni enseignement ni formation, en mettant notamment en oeuvre la garantie pour la jeunesse;22/02/2024
2368610;Région Nouvelle-Aquitaine;2013ID008S10280000-FM1 2014 - LOT 8 - Métiers de la Mer : Qualifications marins  Aquitaine Nord;;IEJ;01/01/2014;31/01/2016;15 139,52;12 111,62;80,00%;64500 Ciboure;Aquitain;France;103 Intégration durable sur le marché du travail des jeunes, en particulier ceux qui sont sans emploi et qui ne suivent ni enseignement ni formation, en mettant notamment en oeuvre la garantie pour la jeunesse;22/02/2024
2368810;Région Nouvelle-Aquitaine;2013ID007S10280000-FM1 2014-LOT007-Métiers de la Mer : Qualifications marins  Aquitaine;;IEJ;01/01/2014;31/01/2016;5 383,15;4 306,52;80,00%;64500 Ciboure;Aquitain;France;103 Intégration durable sur le marché du travail des jeunes, en particulier ceux qui sont sans emploi et qui ne suivent ni enseignement ni formation, en mettant notamment en oeuvre la garantie pour la jeunesse;22/02/2024
2368910;Région Nouvelle-Aquitaine;2013ID026S10280000-FM1 2014 - LOT26 - Vendeur en produits alimentaires Arcachon, Landes;;IEJ;01/01/2014;31/01/2016;14 202,00;11 362,00;80,00%;33000 Bordeaux;Aquitain;France;103 Intégration durable sur le marché du travail des jeunes, en particulier ceux qui sont sans emploi et qui ne suivent ni enseignement ni formation, en mettant notamment en oeuvre la garantie pour la jeunesse;22/02/2024
2369110;Région Nouvelle-Aquitaine;2013ID010S10280000-FM1 2014 - LOT10 - Métier de technicien en maintenance industrielle Aquitaine Sud;;IEJ;01/01/2014;31/01/2016;60 361,40;48 289,12;80,00%;40000 Mont-de-Marsan;Aquitain;France;103 Intégration durable sur le marché du travail des jeunes, en particulier ceux qui sont sans emploi et qui ne suivent ni enseignement ni formation, en mettant notamment en oeuvre la garantie pour la jeunesse;22/02/2024
2369410;Région Nouvelle-Aquitaine;2013ID012S10280000 - FM1 2014 - LOT12 - Préqualif et qualifi métiers de l'agro alimentaire Landes;;IEJ;01/01/2014;31/01/2016;1 887,20;1 509,76;80,00%;40180 Oeyreluy;Aquitain;France;103 Intégration durable sur le marché du travail des jeunes, en particulier ceux qui sont sans emploi et qui ne suivent ni enseignement ni formation, en mettant notamment en oeuvre la garantie pour la jeunesse;22/02/2024
2369610;Région Nouvelle-Aquitaine;2013ID009S10280000-FM1 2014-LOT009-Soudeurs Multi Procédés (licences)  Lot-et-Garonne;;IEJ;01/01/2014;31/01/2016;65 686,55;52 549,24;80,00%;47500 Fumel;Aquitain;France;103 Intégration durable sur le marché du travail des jeunes, en particulier ceux qui sont sans emploi et qui ne suivent ni enseignement ni formation, en mettant notamment en oeuvre la garantie pour la jeunesse;22/02/2024
2369710;Région Nouvelle-Aquitaine;2013ID025S10280000-FM1 2014 - LOT25 - assistant (e) polyvalent parcours en EEP - qualification CCP ;;IEJ;01/01/2014;31/01/2016;3 869,85;3 095,88;80,00%;64600 Anglet;Aquitain;France;103 Intégration durable sur le marché du travail des jeunes, en particulier ceux qui sont sans emploi et qui ne suivent ni enseignement ni formation, en mettant notamment en oeuvre la garantie pour la jeunesse;22/02/2024
2369810;Région Nouvelle-Aquitaine;2013ID024S10280000-FM1 2014 - LOT24 - Conducteur(trice) routier marchandises  Pays-Basque;;IEJ;01/01/2014;31/01/2016;13 587,09;10 869,68;80,00%;64100 Bayonne;Aquitain;France;103 Intégration durable sur le marché du travail des jeunes, en particulier ceux qui sont sans emploi et qui ne suivent ni enseignement ni formation, en mettant notamment en oeuvre la garantie pour la jeunesse;22/02/2024
2370410;Région Nouvelle-Aquitaine;2013ID014S10280000-FM1 2014 - LOT 14 - Ouvrier(ère) forestier agricole  Dordogne;;IEJ;01/01/2014;31/01/2016;26 684,00;21 348,00;80,00%;24300 Nontron;Aquitain;France;103 Intégration durable sur le marché du travail des jeunes, en particulier ceux qui sont sans emploi et qui ne suivent ni enseignement ni formation, en mettant notamment en oeuvre la garantie pour la jeunesse;22/02/2024
2370510;Région Nouvelle-Aquitaine;2013ID011S10280000-FM1 2014-lot 011-Préqualification métiers de l'agro alimentaire Dordogne;;IEJ;01/01/2014;31/01/2016;3 698,10;2 958,48;80,00%;24660 Coulounieix-Chamiers;Aquitain;France;103 Intégration durable sur le marché du travail des jeunes, en particulier ceux qui sont sans emploi et qui ne suivent ni enseignement ni formation, en mettant notamment en oeuvre la garantie pour la jeunesse;22/02/2024
2370610;Région Nouvelle-Aquitaine;2013ID023S10280000- FM1 2014 - LOT23 - Cariste d'entrepôt / Cariste  Pays-Basque;;IEJ;01/01/2014;31/01/2016;27 480,05;21 984,04;80,00%;24100 Bergerac;Aquitain;France;103 Intégration durable sur le marché du travail des jeunes, en particulier ceux qui sont sans emploi et qui ne suivent ni enseignement ni formation, en mettant notamment en oeuvre la garantie pour la jeunesse;22/02/2024
2370710;Région Nouvelle-Aquitaine;2013ID016S10280000 - Fm1 2014 - LOT16 - Cariste d'entrepôt / cariste Bordeaux Agglomération;;IEJ;01/01/2014;31/01/2016;65 395,00;52 316,00;80,00%;24100 Bergerac;Aquitain;France;103 Intégration durable sur le marché du travail des jeunes, en particulier ceux qui sont sans emploi et qui ne suivent ni enseignement ni formation, en mettant notamment en oeuvre la garantie pour la jeunesse;22/02/2024
